Workbook

Sheet Main
B10: 2019-02-12
B12: Sheet No. | C12: Template Name | D12: Summary
B13: 1 | C13: Future Intra | D13: For Intraday trading in F&O segment
B14: 2 | C14: Cash Intra | D14: For Intraday trading in cash market segment
B15: 3 | C15: Mid-cap Intra | D15: For Intraday trading in Mid-cap stocks
B16: 4 | C16: Bulk Deals | D16: Reveals Bulk Deals carried on NSE & BSE
B17: 5 | C17: Call Tracker

Sheet Future Intra
M5: Back to Main Page
A6: FOR INTRA DAY TRADING | L6: =Main!B10 -> 2019-02-12
A9: Sr.no | B9: Sector | C9: Scrip | D9: CLOSE RATE | E9: Pivot Point | F9: Supports | I9: Resistances
B10: Sector | D10: Point | E10: Point | F10: S1 | G10: S2 | H10: S3 | I10: R1 | J10: R2 | K10: R3 | L10: HIGH | M10: LOW | N10: OI | O10: % Change in OI
A11: 1 | B11: Index | C11: BANKNIFTY | D11: 27295.90 | E11: 27284.68 | F11: 27219.42 | G11: 27142.93 | H11: 27077.67 | I11: 27361.17 | J11: 27426.43 | K11: 27502.92 | L11: 27349.95 | M11: 27208.2 | N11: 1709840 | O11: -2.68%
A12: 2 | B12: Index | C12: NIFTY | D12: 10909.60 | E12: 10908.53 | F12: 10871.17 | G12: 10832.73 | H12: 10795.37 | I12: 10946.97 | J12: 10984.33 | K12: 11022.77 | L12: 10945.9 | M12: 10870.1 | N12: 23585625 | O12: 3.56%
A13: 3 | B13: Index | C13: NIFTYIT | D13: 16153.00 | E13: 16122.67 | F13: 16041.33 | G13: 15929.67 | H13: 15848.33 | I13: 16234.33 | J13: 16315.67 | K13: 16427.33 | L13: 16204 | M13: 16011 | N13: 36850 | O13: 8.70%
A14: 4 | B14: Cement | C14: ACC | D14: 1372.70 | E14: 1381.55 | F14: 1359.95 | G14: 1347.20 | H14: 1325.60 | I14: 1394.30 | J14: 1415.90 | K14: 1428.65 | L14: 1403.15 | M14: 1368.8 | N14: 2219200 | O14: -1.58%
A15: 5 | B15: Others | C15: ADANIENT | D15: 119.20 | E15: 119.52 | F15: 116.28 | G15: 113.37 | H15: 110.13 | I15: 122.43 | J15: 125.67 | K15: 128.58 | L15: 122.75 | M15: 116.6 | N15: 42768000 | O15: -0.96%
A16: 6 | B16: Others | C16: ADANIPORTS | D16: 329.60 | E16: 327.72 | F16: 321.08 | G16: 312.57 | H16: 305.93 | I16: 336.23 | J16: 342.87 | K16: 351.38 | L16: 334.35 | M16: 319.2 | N16: 26245000 | O16: 1.41%
A17: 7 | B17: Power | C17: ADANIPOWER | D17: 34.75 | E17: 34.80 | F17: 33.25 | G17: 31.75 | H17: 30.20 | I17: 36.30 | J17: 37.85 | K17: 39.35 | L17: 36.35 | M17: 33.3 | N17: 158540000 | O17: 1.42%
A18: 8 | B18: Pharma | C18: AJANTPHARM | D18: 984.40 | E18: 969.77 | F18: 948.63 | G18: 912.87 | H18: 891.73 | I18: 1005.53 | J18: 1026.67 | K18: 1062.43 | L18: 990.9 | M18: 934 | N18: 932000 | O18: -7.86%
A19: 9 | B19: Banking | C19: ALBK | D19: 36.85 | E19: 37.40 | F19: 35.80 | G19: 34.75 | H19: 33.15 | I19: 38.45 | J19: 40.05 | K19: 41.10 | L19: 39 | M19: 36.35 | N19: 23205000 | O19: 8.51%
A20: 10 | B20: Automobile | C20: AMARAJABAT | D20: 742.85 | E20: 744.62 | F20: 735.23 | G20: 727.62 | H20: 718.23 | I20: 752.23 | J20: 761.62 | K20: 769.23 | L20: 754 | M20: 737 | N20: 1098300 | O20: 2.21%
A21: 11 | B21: Cement | C21: AMBUJACEM | D21: 208.15 | E21: 209.50 | F21: 206.20 | G21: 204.25 | H21: 200.95 | I21: 211.45 | J21: 214.75 | K21: 216.70 | L21: 212.8 | M21: 207.55 | N21: 10987500 | O21: 0.07%
A22: 12 | B22: Others | C22: APOLLOHOSP | D22: 1128.05 | E22: 1174.60 | F22: 1049.55 | G22: 971.05 | H22: 846.00 | I22: 1253.10 | J22: 1378.15 | K22: 1456.65 | L22: 1299.65 | M22: 1096.1 | N22: 1267000 | O22: 47.33%
A23: 13 | B23: Automobile | C23: APOLLOTYRE | D23: 202.80 | E23: 203.22 | F23: 200.83 | G23: 198.87 | H23: 196.48 | I23: 205.18 | J23: 207.57 | K23: 209.53 | L23: 205.6 | M23: 201.25 | N23: 10020000 | O23: 2.83%
A24: 14 | B24: Textile | C24: ARVIND | D24: 79.90 | E24: 80.52 | F24: 78.33 | G24: 76.77 | H24: 74.58 | I24: 82.08 | J24: 84.27 | K24: 85.83 | L24: 82.7 | M24: 78.95 | N24: 6964000 | O24: 2.38%
A25: 15 | B25: Automobile | C25: ASHOKLEY | D25: 83.35 | E25: 84.23 | F25: 81.67 | G25: 79.98 | H25: 77.42 | I25: 85.92 | J25: 88.48 | K25: 90.17 | L25: 86.8 | M25: 82.55 | N25: 80104000 | O25: -1.95%
A26: 16 | B26: FMCG | C26: ASIANPAINT | D26: 1445.05 | E26: 1447.20 | F26: 1431.55 | G26: 1418.05 | H26: 1402.40 | I26: 1460.70 | J26: 1476.35 | K26: 1489.85 | L26: 1462.85 | M26: 1433.7 | N26: 5974200 | O26: 1.88%
A27: 17 | B27: Pharma | C27: AUROPHARMA | D27: 766.05 | E27: 762.65 | F27: 753.90 | G27: 741.75 | H27: 733.00 | I27: 774.80 | J27: 783.55 | K27: 795.70 | L27: 771.4 | M27: 750.5 | N27: 19186000 | O27: -0.74%
A28: 18 | B28: Banking | C28: AXISBANK | D28: 713.20 | E28: 712.97 | F28: 707.38 | G28: 701.57 | H28: 695.98 | I28: 718.78 | J28: 724.37 | K28: 730.18 | L28: 718.55 | M28: 707.15 | N28: 42854400 | O28: -3.01%
A29: 19 | B29: Automobile | C29: BAJAJ-AUTO | D29: 2858.10 | E29: 2854.45 | F29: 2831.65 | G29: 2805.20 | H29: 2782.40 | I29: 2880.90 | J29: 2903.70 | K29: 2930.15 | L29: 2877.25 | M29: 2828 | N29: 2179750 | O29: 1.60%
A30: 20 | B30: Others | C30: BAJAJFINSV | D30: 6127.90 | E30: 6155.35 | F30: 6074.70 | G30: 6021.50 | H30: 5940.85 | I30: 6208.55 | J30: 6289.20 | K30: 6342.40 | L30: 6236 | M30: 6102.15 | N30: 747250 | O30: 1.87%
A31: 21 | B31: Finance | C31: BAJFINANCE | D31: 2667.60 | E31: 2679.68 | F31: 2630.92 | G31: 2594.23 | H31: 2545.47 | I31: 2716.37 | J31: 2765.13 | K31: 2801.82 | L31: 2728.45 | M31: 2643 | N31: 6165750 | O31: 0.60%
A32: 22 | B32: Others | C32: BALKRISIND | D32: 807.80 | E32: 787.85 | F32: 762.20 | G32: 716.60 | H32: 690.95 | I32: 833.45 | J32: 859.10 | K32: 904.70 | L32: 813.5 | M32: 742.25 | N32: 2776800 | O32: -1.64%
A33: 23 | B33: Banking | C33: BANKBARODA | D33: 104.20 | E33: 104.22 | F33: 103.03 | G33: 101.87 | H33: 100.68 | I33: 105.38 | J33: 106.57 | K33: 107.73 | L33: 105.4 | M33: 103.05 | N33: 60380000 | O33: -1.37%
A34: 24 | B34: Banking | C34: BANKINDIA | D34: 85.15 | E34: 85.53 | F34: 83.77 | G34: 82.38 | H34: 80.62 | I34: 86.92 | J34: 88.68 | K34: 90.07 | L34: 87.3 | M34: 84.15 | N34: 23334000 | O34: 0.00%
A35: 25 | B35: FMCG | C35: BATAINDIA | D35: 1192.10 | E35: 1194.03 | F35: 1179.07 | G35: 1166.03 | H35: 1151.07 | I35: 1207.07 | J35: 1222.03 | K35: 1235.07 | L35: 1209 | M35: 1181 | N35: 2303950 | O35: 1.87%
A36: 26 | B36: Capital_Goods | C36: BEL | D36: 76.80 | E36: 77.30 | F36: 74.95 | G36: 73.10 | H36: 70.75 | I36: 79.15 | J36: 81.50 | K36: 83.35 | L36: 79.65 | M36: 75.45 | N36: 33108000 | O36: 3.08%
A37: 27 | B37: Infrastructure | C37: BEML | D37: 788.55 | E37: 782.60 | F37: 768.70 | G37: 748.85 | H37: 734.95 | I37: 802.45 | J37: 816.35 | K37: 836.20 | L37: 796.5 | M37: 762.75 | N37: 1535800 | O37: 6.50%
A38: 28 | B38: Others | C38: BERGEPAINT | D38: 301.20 | E38: 303.28 | F38: 297.57 | G38: 293.93 | H38: 288.22 | I38: 306.92 | J38: 312.63 | K38: 316.27 | L38: 309 | M38: 299.65 | N38: 5808000 | O38: 9.18%
A39: 29 | B39: Finance | C39: BHARATFIN | D39: 944.40 | E39: 941.52 | F39: 935.43 | G39: 926.47 | H39: 920.38 | I39: 950.48 | J39: 956.57 | K39: 965.53 | L39: 947.6 | M39: 932.55 | N39: 5126000 | O39: -0.31%
A40: 30 | B40: Automobile | C40: BHARATFORG | D40: 480.85 | E40: 480.48 | F40: 473.97 | G40: 467.08 | H40: 460.57 | I40: 487.37 | J40: 493.88 | K40: 500.77 | L40: 487 | M40: 473.6 | N40: 12718800 | O40: -1.38%
A41: 31 | B41: Telecom | C41: BHARTIARTL | D41: 313.70 | E41: 313.97 | F41: 311.68 | G41: 309.67 | H41: 307.38 | I41: 315.98 | J41: 318.27 | K41: 320.28 | L41: 316.25 | M41: 311.95 | N41: 35938000 | O41: 0.70%
A42: 32 | B42: Capital_Goods | C42: BHEL | D42: 61.95 | E42: 61.47 | F42: 60.53 | G42: 59.12 | H42: 58.18 | I42: 62.88 | J42: 63.82 | K42: 65.23 | L42: 62.4 | M42: 60.05 | N42: 36465000 | O42: -3.47%
A43: 33 | B43: Pharma | C43: BIOCON | D43: 647.15 | E43: 649.38 | F43: 641.22 | G43: 635.28 | H43: 627.12 | I43: 655.32 | J43: 663.48 | K43: 669.42 | L43: 657.55 | M43: 643.45 | N43: 5796000 | O43: 1.13%
A44: 34 | B44: Automobile | C44: BOSCHLTD | D44: 18818.15 | E44: 18821.32 | F44: 18654.03 | G44: 18489.92 | H44: 18322.63 | I44: 18985.43 | J44: 19152.72 | K44: 19316.83 | L44: 18988.6 | M44: 18657.2 | N44: 146310 | O44: -4.07%
A45: 35 | B45: Oil_Gas | C45: BPCL | D45: 322.20 | E45: 321.10 | F45: 317.70 | G45: 313.20 | H45: 309.80 | I45: 325.60 | J45: 329.00 | K45: 333.50 | L45: 324.5 | M45: 316.6 | N45: 6692400 | O45: 11.08%
A46: 36 | B46: FMCG | C46: BRITANNIA | D46: 3117.80 | E46: 3107.27 | F46: 3074.53 | G46: 3031.27 | H46: 2998.53 | I46: 3150.53 | J46: 3183.27 | K46: 3226.53 | L46: 3140 | M46: 3064 | N46: 3322400 | O46: -0.67%
A47: 37 | B47: Pharma | C47: CADILAHC | D47: 326.15 | E47: 324.97 | F47: 322.63 | G47: 319.12 | H47: 316.78 | I47: 328.48 | J47: 330.82 | K47: 334.33 | L47: 327.3 | M47: 321.45 | N47: 9355200 | O47: -1.99%
A48: 38 | B48: Banking | C48: CANBK | D48: 226.20 | E48: 227.00 | F48: 223.70 | G48: 221.20 | H48: 217.90 | I48: 229.50 | J48: 232.80 | K48: 235.30 | L48: 230.3 | M48: 224.5 | N48: 11884000 | O48: 2.68%
A49: 39 | B49: Others | C49: CANFINHOME | D49: 241.50 | E49: 241.38 | F49: 236.82 | G49: 232.13 | H49: 227.57 | I49: 246.07 | J49: 250.63 | K49: 255.32 | L49: 245.95 | M49: 236.7 | N49: 4401000 | O49: -0.41%
A50: 40 | B50: Oil_Gas | C50: CASTROLIND | D50: 147.25 | E50: 147.40 | F50: 145.45 | G50: 143.65 | H50: 141.70 | I50: 149.20 | J50: 151.15 | K50: 152.95 | L50: 149.35 | M50: 145.6 | N50: 6793200 | O50: 0.55%
A51: 41 | B51: Automobile | C51: CEATLTD | D51: 1070.95 | E51: 1073.05 | F51: 1058.90 | G51: 1046.85 | H51: 1032.70 | I51: 1085.10 | J51: 1099.25 | K51: 1111.30 | L51: 1087.2 | M51: 1061 | N51: 1383200 | O51: 5.23%
A52: 42 | B52: Textile | C52: CENTURYTEX | D52: 739.40 | E52: 744.75 | F52: 727.20 | G52: 715.00 | H52: 697.45 | I52: 756.95 | J52: 774.50 | K52: 786.70 | L52: 762.3 | M52: 732.55 | N52: 5049600 | O52: 0.37%
A53: 43 | B53: Power | C53: CESC | D53: 662.15 | E53: 666.92 | F53: 652.73 | G53: 643.32 | H53: 629.13 | I53: 676.33 | J53: 690.52 | K53: 699.93 | L53: 681.1 | M53: 657.5 | N53: 1348050 | O53: -1.92%
A54: 44 | B54: Power | C54: CGPOWER | D54: 34.45 | E54: 34.38 | F54: 33.42 | G54: 32.38 | H54: 31.42 | I54: 35.42 | J54: 36.38 | K54: 37.42 | L54: 35.35 | M54: 33.35 | N54: 43416000 | O54: 0.75%
A55: 45 | B55: Others | C55: CHENNPETRO | D55: 216.40 | E55: 217.72 | F55: 211.98 | G55: 207.57 | H55: 201.83 | I55: 222.13 | J55: 227.87 | K55: 232.28 | L55: 223.45 | M55: 213.3 | N55: 1378800 | O55: -4.49%
A56: 46 | B56: Others | C56: CHOLAFIN | D56: 1209.10 | E56: 1213.62 | F56: 1194.98 | G56: 1180.87 | H56: 1162.23 | I56: 1227.73 | J56: 1246.37 | K56: 1260.48 | L56: 1232.25 | M56: 1199.5 | N56: 831000 | O56: -5.89%
A57: 47 | B57: Pharma | C57: CIPLA | D57: 543.30 | E57: 541.38 | F57: 536.87 | G57: 530.43 | H57: 525.92 | I57: 547.82 | J57: 552.33 | K57: 558.77 | L57: 545.9 | M57: 534.95 | N57: 9983000 | O57: 4.09%
A58: 48 | B58: Others | C58: COALINDIA | D58: 217.55 | E58: 216.23 | F58: 213.47 | G58: 209.38 | H58: 206.62 | I58: 220.32 | J58: 223.08 | K58: 227.17 | L58: 219 | M58: 212.15 | N58: 20682200 | O58: -1.10%
A59: 49 | B59: FMCG | C59: COLPAL | D59: 1290.05 | E59: 1288.02 | F59: 1276.03 | G59: 1262.02 | H59: 1250.03 | I59: 1302.03 | J59: 1314.02 | K59: 1328.03 | L59: 1300 | M59: 1274 | N59: 1628200 | O59: 0.43%
A60: 50 | B60: Others | C60: CONCOR | D60: 523.30 | E60: 518.83 | F60: 512.92 | G60: 502.53 | H60: 496.62 | I60: 529.22 | J60: 535.13 | K60: 545.52 | L60: 524.75 | M60: 508.45 | N60: 2224149 | O60: -12.81%
A61: 51 | B61: Capital_Goods | C61: CUMMINSIND | D61: 721.10 | E61: 725.22 | F61: 708.43 | G61: 695.77 | H61: 678.98 | I61: 737.88 | J61: 754.67 | K61: 767.33 | L61: 742 | M61: 712.55 | N61: 1727600 | O61: 6.01%
A62: 52 | B62: FMCG | C62: DABUR | D62: 451.30 | E62: 449.67 | F62: 445.33 | G62: 439.37 | H62: 435.03 | I62: 455.63 | J62: 459.97 | K62: 465.93 | L62: 454 | M62: 443.7 | N62: 12717500 | O62: -1.86%
A63: 53 | B63: Banking | C63: DCBBANK | D63: 177.20 | E63: 177.08 | F63: 175.62 | G63: 174.03 | H63: 172.57 | I63: 178.67 | J63: 180.13 | K63: 181.72 | L63: 178.55 | M63: 175.5 | N63: 2934000 | O63: -0.31%
A64: 54 | B64: Finance | C64: DHFL | D64: 103.20 | E64: 103.97 | F64: 99.68 | G64: 96.17 | H64: 91.88 | I64: 107.48 | J64: 111.77 | K64: 115.28 | L64: 108.25 | M64: 100.45 | N64: 19563000 | O64: -2.75%
A65: 55 | B65: Media | C65: DISHTV | D65: 29.65 | E65: 29.72 | F65: 29.03 | G65: 28.42 | H65: 27.73 | I65: 30.33 | J65: 31.02 | K65: 31.63 | L65: 30.4 | M65: 29.1 | N65: 58072000 | O65: -1.40%
A66: 56 | B66: Pharma | C66: DIVISLAB | D66: 1643.20 | E66: 1653.45 | F66: 1623.75 | G66: 1604.30 | H66: 1574.60 | I66: 1672.90 | J66: 1702.60 | K66: 1722.05 | L66: 1683.15 | M66: 1634 | N66: 3413200 | O66: -1.53%
A67: 57 | B67: Realty | C67: DLF | D67: 164.40 | E67: 164.08 | F67: 161.82 | G67: 159.23 | H67: 156.97 | I67: 166.67 | J67: 168.93 | K67: 171.52 | L67: 166.35 | M67: 161.5 | N67: 23810800 | O67: -5.24%
A68: 58 | B68: Pharma | C68: DRREDDY | D68: 2626.15 | E68: 2636.65 | F68: 2555.30 | G68: 2484.45 | H68: 2403.10 | I68: 2707.50 | J68: 2788.85 | K68: 2859.70 | L68: 2718 | M68: 2565.8 | N68: 4189750 | O68: 2.52%
A69: 59 | B69: Automobile | C69: EICHERMOT | D69: 20671.20 | E69: 20772.40 | F69: 20119.80 | G69: 19568.40 | H69: 18915.80 | I69: 21323.80 | J69: 21976.40 | K69: 22527.80 | L69: 21425 | M69: 20221 | N69: 361000 | O69: 5.73%
A70: 60 | B70: Infrastructure | C70: ENGINERSIN | D70: 106.10 | E70: 105.73 | F70: 103.27 | G70: 100.43 | H70: 97.97 | I70: 108.57 | J70: 111.03 | K70: 113.87 | L70: 108.2 | M70: 102.9 | N70: 7539900 | O70: -0.76%
A71: 61 | B71: Finance | C71: EQUITAS | D71: 112.70 | E71: 111.93 | F71: 110.27 | G71: 107.83 | H71: 106.17 | I71: 114.37 | J71: 116.03 | K71: 118.47 | L71: 113.6 | M71: 109.5 | N71: 12776000 | O71: 0.76%
A72: 62 | B72: Automobile | C72: ESCORTS | D72: 637.50 | E72: 640.03 | F72: 625.52 | G72: 613.53 | H72: 599.02 | I72: 652.02 | J72: 666.53 | K72: 678.52 | L72: 654.55 | M72: 628.05 | N72: 4303200 | O72: 3.06%
A73: 63 | B73: Automobile | C73: EXIDEIND | D73: 210.10 | E73: 209.53 | F73: 206.52 | G73: 202.93 | H73: 199.92 | I73: 213.12 | J73: 216.13 | K73: 219.72 | L73: 212.55 | M73: 205.95 | N73: 9904000 | O73: 3.06%
A74: 64 | B74: Banking | C74: FEDERALBNK | D74: 83.90 | E74: 83.42 | F74: 82.38 | G74: 80.87 | H74: 79.83 | I74: 84.93 | J74: 85.97 | K74: 87.48 | L74: 84.45 | M74: 81.9 | N74: 45563000 | O74: -0.88%
A75: 65 | B75: Oil_Gas | C75: GAIL | D75: 322.15 | E75: 323.53 | F75: 316.92 | G75: 311.68 | H75: 305.07 | I75: 328.77 | J75: 335.38 | K75: 340.62 | L75: 330.15 | M75: 318.3 | N75: 11065383 | O75: 4.59%
A76: 66 | B76: Pharma | C76: GLENMARK | D76: 605.80 | E76: 611.13 | F76: 596.27 | G76: 586.73 | H76: 571.87 | I76: 620.67 | J76: 635.53 | K76: 645.07 | L76: 626 | M76: 601.6 | N76: 4229000 | O76: 3.45%
A77: 67 | B77: Infrastructure | C77: GMRINFRA | D77: 14.75 | E77: 14.60 | F77: 14.25 | G77: 13.75 | H77: 13.40 | I77: 15.10 | J77: 15.45 | K77: 15.95 | L77: 14.95 | M77: 14.1 | N77: 166905000 | O77: 3.55%
A78: 68 | B78: Others | C78: GODFRYPHLP | D78: 914.95 | E78: 917.93 | F78: 905.02 | G78: 895.08 | H78: 882.17 | I78: 927.87 | J78: 940.78 | K78: 950.72 | L78: 930.85 | M78: 908 | N78: 507500 | O78: 4.47%
A79: 69 | B79: FMCG | C79: GODREJCP | D79: 700.45 | E79: 694.52 | F79: 684.23 | G79: 668.02 | H79: 657.73 | I79: 710.73 | J79: 721.02 | K79: 737.23 | L79: 704.8 | M79: 678.3 | N79: 5785800 | O79: -1.29%
A80: 70 | B80: FMCG | C80: GODREJIND | D80: 492.25 | E80: 490.83 | F80: 483.42 | G80: 474.58 | H80: 467.17 | I80: 499.67 | J80: 507.08 | K80: 515.92 | L80: 498.25 | M80: 482 | N80: 1518000 | O80: -1.65%
A81: 71 | B81: Cement | C81: GRASIM | D81: 718.10 | E81: 716.32 | F81: 707.78 | G81: 697.47 | H81: 688.93 | I81: 726.63 | J81: 735.17 | K81: 745.48 | L81: 724.85 | M81: 706 | N81: 11258250 | O81: -0.66%
A82: 72 | B82: Others | C82: GSFC | D82: 90.40 | E82: 90.43 | F82: 89.22 | G82: 88.03 | H82: 86.82 | I82: 91.62 | J82: 92.83 | K82: 94.02 | L82: 91.65 | M82: 89.25 | N82: 12158900 | O82: -3.36%
A83: 73 | B83: Others | C83: HAVELLS | D83: 727.55 | E83: 735.10 | F83: 713.45 | G83: 699.35 | H83: 677.70 | I83: 749.20 | J83: 770.85 | K83: 784.95 | L83: 756.75 | M83: 721 | N83: 5076000 | O83: -2.74%
A84: 74 | B84: Technology | C84: HCLTECH | D84: 1081.60 | E84: 1077.28 | F84: 1068.92 | G84: 1056.23 | H84: 1047.87 | I84: 1089.97 | J84: 1098.33 | K84: 1111.02 | L84: 1085.65 | M84: 1064.6 | N84: 9567600 | O84: 1.35%
A85: 75 | B85: Finance | C85: HDFC | D85: 1958.45 | E85: 1956.98 | F85: 1946.97 | G85: 1935.48 | H85: 1925.47 | I85: 1968.47 | J85: 1978.48 | K85: 1989.97 | L85: 1967 | M85: 1945.5 | N85: 28892500 | O85: 2.12%
A86: 76 | B86: Banking | C86: HDFCBANK | D86: 2145.55 | E86: 2137.77 | F86: 2127.58 | G86: 2109.62 | H86: 2099.43 | I86: 2155.73 | J86: 2165.92 | K86: 2183.88 | L86: 2147.95 | M86: 2119.8 | N86: 11908750 | O86: -0.93%
A87: 77 | B87: Automobile | C87: HEROMOTOCO | D87: 2893.80 | E87: 2874.48 | F87: 2830.32 | G87: 2766.83 | H87: 2722.67 | I87: 2937.97 | J87: 2982.13 | K87: 3045.62 | L87: 2918.65 | M87: 2811 | N87: 1813600 | O87: -3.55%
A88: 78 | B88: Technology | C88: HEXAWARE | D88: 356.20 | E88: 355.50 | F88: 351.50 | G88: 346.80 | H88: 342.80 | I88: 360.20 | J88: 364.20 | K88: 368.90 | L88: 359.5 | M88: 350.8 | N88: 3472500 | O88: -1.87%
A89: 79 | B89: Metals | C89: HINDALCO | D89: 199.85 | E89: 200.40 | F89: 195.25 | G89: 190.65 | H89: 185.50 | I89: 205.00 | J89: 210.15 | K89: 214.75 | L89: 205.55 | M89: 195.8 | N89: 35213500 | O89: 2.21%
A90: 80 | B90: Oil_Gas | C90: HINDPETRO | D90: 225.70 | E90: 223.98 | F90: 220.72 | G90: 215.73 | H90: 212.47 | I90: 228.97 | J90: 232.23 | K90: 237.22 | L90: 227.25 | M90: 219 | N90: 13958700 | O90: -2.75%
A91: 81 | B91: FMCG | C91: HINDUNILVR | D91: 1815.20 | E91: 1814.52 | F91: 1805.73 | G91: 1796.27 | H91: 1787.48 | I91: 1823.98 | J91: 1832.77 | K91: 1842.23 | L91: 1823.3 | M91: 1805.05 | N91: 10747200 | O91: 1.43%
A92: 82 | B92: Metals | C92: HINDZINC | D92: 249.60 | E92: 249.65 | F92: 247.05 | G92: 244.50 | H92: 241.90 | I92: 252.20 | J92: 254.80 | K92: 257.35 | L92: 252.25 | M92: 247.1 | N92: 4841600 | O92: -2.07%
A93: 83 | B93: Finance | C93: IBULHSGFIN | D93: 600.55 | E93: 595.35 | F93: 581.75 | G93: 562.95 | H93: 549.35 | I93: 614.15 | J93: 627.75 | K93: 646.55 | L93: 608.95 | M93: 576.55 | N93: 15969000 | O93: 1.76%
A94: 84 | B94: Banking | C94: ICICIBANK | D94: 351.15 | E94: 352.05 | F94: 349.10 | G94: 347.05 | H94: 344.10 | I94: 354.10 | J94: 357.05 | K94: 359.10 | L94: 355 | M94: 350 | N94: 92576000 | O94: 0.45%
A95: 85 | B95: Others | C95: ICICIPRULI | D95: 298.30 | E95: 302.43 | F95: 291.87 | G95: 285.43 | H95: 274.87 | I95: 308.87 | J95: 319.43 | K95: 325.87 | L95: 313 | M95: 296 | N95: 5472000 | O95: 0.86%
A96: 86 | B96: Banking | C96: IDBI | D96: 42.80 | E96: 42.75 | F96: 41.50 | G96: 40.20 | H96: 38.95 | I96: 44.05 | J96: 45.30 | K96: 46.60 | L96: 44 | M96: 41.45 | N96: 26820000 | O96: -3.70%
A97: 87 | B97: Telecom | C97: IDEA | D97: 29.50 | E97: 29.45 | F97: 28.55 | G97: 27.60 | H97: 26.70 | I97: 30.40 | J97: 31.30 | K97: 32.25 | L97: 30.35 | M97: 28.5 | N97: 180444000 | O97: 9.51%
A98: 88 | B98: Finance | C98: IDFC | D98: 37.40 | E98: 37.55 | F98: 36.75 | G98: 36.10 | H98: 35.30 | I98: 38.20 | J98: 39.00 | K98: 39.65 | L98: 38.35 | M98: 36.9 | N98: 104346000 | O98: -0.57%
A99: 89 | B99: Banking | C99: IDFCFIRSTB | D99: 45.05 | E99: 44.58 | F99: 43.87 | G99: 42.68 | H99: 41.97 | I99: 45.77 | J99: 46.48 | K99: 47.67 | L99: 45.3 | M99: 43.4 | N99: 137676000 | O99: 0.03%
A100: 90 | B100: Finance | C100: IFCI | D100: 12.50 | E100: 12.48 | F100: 12.27 | G100: 12.03 | H100: 11.82 | I100: 12.72 | J100: 12.93 | K100: 13.17 | L100: 12.7 | M100: 12.25 | N100: 49525000 | O100: 0.00%
A101: 91 | B101: Oil_Gas | C101: IGL | D101: 273.65 | E101: 278.27 | F101: 265.38 | G101: 257.12 | H101: 244.23 | I101: 286.53 | J101: 299.42 | K101: 307.68 | L101: 291.15 | M101: 270 | N101: 4430250 | O101: 13.61%
A102: 92 | B102: Cement | C102: INDIACEM | D102: 77.40 | E102: 78.10 | F102: 75.60 | G102: 73.80 | H102: 71.30 | I102: 79.90 | J102: 82.40 | K102: 84.20 | L102: 80.6 | M102: 76.3 | N102: 22144500 | O102: 3.86%
A103: 93 | B103: Banking | C103: INDIANB | D103: 201.50 | E103: 202.75 | F103: 197.00 | G103: 192.50 | H103: 186.75 | I103: 207.25 | J103: 213.00 | K103: 217.50 | L103: 208.5 | M103: 198.25 | N103: 4158000 | O103: 6.94%
A104: 94 | B104: Others | C104: INDIGO | D104: 1189.75 | E104: 1186.57 | F104: 1168.63 | G104: 1147.52 | H104: 1129.58 | I104: 1207.68 | J104: 1225.62 | K104: 1246.73 | L104: 1204.5 | M104: 1165.45 | N104: 2316600 | O104: -0.08%
A105: 95 | B105: Banking | C105: INDUSINDBK | D105: 1508.20 | E105: 1503.02 | F105: 1492.33 | G105: 1476.47 | H105: 1465.78 | I105: 1518.88 | J105: 1529.57 | K105: 1545.43 | L105: 1513.7 | M105: 1487.15 | N105: 8123400 | O105: 3.60%
A106: 96 | B106: Technology | C106: INFIBEAM | D106: 31.20 | E106: 31.37 | F106: 30.63 | G106: 30.07 | H106: 29.33 | I106: 31.93 | J106: 32.67 | K106: 33.23 | L106: 32.1 | M106: 30.8 | N106: 17120000 | O106: 3.91%
A107: 97 | B107: Telecom | C107: INFRATEL | D107: 325.10 | E107: 324.92 | F107: 321.28 | G107: 317.47 | H107: 313.83 | I107: 328.73 | J107: 332.37 | K107: 336.18 | L107: 328.55 | M107: 321.1 | N107: 8520000 | O107: -0.16%
A108: 98 | B108: Technology | C108: INFY | D108: 765.10 | E108: 765.78 | F108: 759.77 | G108: 754.43 | H108: 748.42 | I108: 771.12 | J108: 777.13 | K108: 782.47 | L108: 771.8 | M108: 760.45 | N108: 41367600 | O108: 1.23%
A109: 99 | B109: Oil_Gas | C109: IOC | D109: 134.80 | E109: 133.25 | F109: 130.90 | G109: 127.00 | H109: 124.65 | I109: 137.15 | J109: 139.50 | K109: 143.40 | L109: 135.6 | M109: 129.35 | N109: 29410500 | O109: -1.70%
A110: 100 | B110: Infrastructure | C110: IRB | D110: 125.80 | E110: 124.85 | F110: 121.85 | G110: 117.90 | H110: 114.90 | I110: 128.80 | J110: 131.80 | K110: 135.75 | L110: 127.85 | M110: 120.9 | N110: 6566400 | O110: -0.53%
A111: 101 | B111: FMCG | C111: ITC | D111: 277.75 | E111: 274.98 | F111: 271.42 | G111: 265.08 | H111: 261.52 | I111: 281.32 | J111: 284.88 | K111: 291.22 | L111: 278.55 | M111: 268.65 | N111: 75110400 | O111: 2.00%
A112: 102 | B112: Others | C112: JETAIRWAYS | D112: 203.25 | E112: 207.40 | F112: 194.85 | G112: 186.45 | H112: 173.90 | I112: 215.80 | J112: 228.35 | K112: 236.75 | L112: 219.95 | M112: 199 | N112: 7352400 | O112: -1.76%
A113: 103 | B113: Metals | C113: JINDALSTEL | D113: 129.25 | E113: 128.62 | F113: 125.43 | G113: 121.62 | H113: 118.43 | I113: 132.43 | J113: 135.62 | K113: 139.43 | L113: 131.8 | M113: 124.8 | N113: 27348750 | O113: 2.40%
A114: 104 | B114: Others | C114: JISLJALEQS | D114: 54.30 | E114: 53.72 | F114: 52.68 | G114: 51.07 | H114: 50.03 | I114: 55.33 | J114: 56.37 | K114: 57.98 | L114: 54.75 | M114: 52.1 | N114: 38007000 | O114: -1.81%
A115: 105 | B115: Realty | C115: JPASSOCIAT | D115: 5.20 | E115: 5.12 | F115: 4.98 | G115: 4.77 | H115: 4.63 | I115: 5.33 | J115: 5.47 | K115: 5.68 | L115: 5.25 | M115: 4.9 | N115: 96415000 | O115: -0.17%
A116: 106 | B116: Metals | C116: JSWSTEEL | D116: 262.70 | E116: 262.22 | F116: 257.83 | G116: 252.97 | H116: 248.58 | I116: 267.08 | J116: 271.47 | K116: 276.33 | L116: 266.6 | M116: 257.35 | N116: 55521000 | O116: 0.89%
A117: 107 | B117: Others | C117: JUBLFOOD | D117: 1325.80 | E117: 1325.38 | F117: 1301.52 | G117: 1277.23 | H117: 1253.37 | I117: 1349.67 | J117: 1373.53 | K117: 1397.82 | L117: 1349.25 | M117: 1301.1 | N117: 3006000 | O117: 2.23%
A118: 108 | B118: Others | C118: JUSTDIAL | D118: 468.45 | E118: 471.18 | F118: 459.32 | G118: 450.18 | H118: 438.32 | I118: 480.32 | J118: 492.18 | K118: 501.32 | L118: 483.05 | M118: 462.05 | N118: 2270800 | O118: 0.12%
A119: 109 | B119: Others | C119: KAJARIACER | D119: 507.30 | E119: 515.57 | F119: 494.73 | G119: 482.17 | H119: 461.33 | I119: 528.13 | J119: 548.97 | K119: 561.53 | L119: 536.4 | M119: 503 | N119: 2285400 | O119: 15.89%
A120: 110 | B120: Banking | C120: KOTAKBANK | D120: 1305.40 | E120: 1306.07 | F120: 1296.53 | G120: 1287.67 | H120: 1278.13 | I120: 1314.93 | J120: 1324.47 | K120: 1333.33 | L120: 1315.6 | M120: 1297.2 | N120: 9592800 | O120: -1.25%
A121: 111 | B121: Technology | C121: KPIT | D121: 112.95 | E121: 113.18 | F121: 111.07 | G121: 109.18 | H121: 107.07 | I121: 115.07 | J121: 117.18 | K121: 119.07 | L121: 115.3 | M121: 111.3 | N121: 2751750 | O121: -0.16%
A122: 112 | B122: Others | C122: KSCL | D122: 529.00 | E122: 527.13 | F122: 515.57 | G122: 502.13 | H122: 490.57 | I122: 540.57 | J122: 552.13 | K122: 565.57 | L122: 538.7 | M122: 513.7 | N122: 1063500 | O122: 0.00%
A123: 113 | B123: Banking | C123: KTKBANK | D123: 114.20 | E123: 115.02 | F123: 113.03 | G123: 111.87 | H123: 109.88 | I123: 116.18 | J123: 118.17 | K123: 119.33 | L123: 117 | M123: 113.85 | N123: 13113000 | O123: -0.11%
A124: 114 | B124: Finance | C124: L&TFH | D124: 125.90 | E124: 126.25 | F124: 123.45 | G124: 121.00 | H124: 118.20 | I124: 128.70 | J124: 131.50 | K124: 133.95 | L124: 129.05 | M124: 123.8 | N124: 24597000 | O124: -1.28%
A125: 115 | B125: Finance | C125: LICHSGFIN | D125: 447.25 | E125: 451.85 | F125: 440.55 | G125: 433.85 | H125: 422.55 | I125: 458.55 | J125: 469.85 | K125: 476.55 | L125: 463.15 | M125: 445.15 | N125: 9849400 | O125: -1.86%
A126: 116 | B126: Capital_Goods | C126: LT | D126: 1236.30 | E126: 1232.35 | F126: 1214.50 | G126: 1192.70 | H126: 1174.85 | I126: 1254.15 | J126: 1272.00 | K126: 1293.80 | L126: 1250.2 | M126: 1210.55 | N126: 9954750 | O126: 11.53%
A127: 117 | B127: Pharma | C127: LUPIN | D127: 821.55 | E127: 822.28 | F127: 809.77 | G127: 797.98 | H127: 785.47 | I127: 834.07 | J127: 846.58 | K127: 858.37 | L127: 834.8 | M127: 810.5 | N127: 8834000 | O127: -0.20%
A128: 118 | B128: Automobile | C128: M&M | D128: 650.30 | E128: 657.93 | F128: 640.37 | G128: 630.43 | H128: 612.87 | I128: 667.87 | J128: 685.43 | K128: 695.37 | L128: 675.5 | M128: 648 | N128: 21273000 | O128: 6.23%
A129: 119 | B129: Finance | C129: M&MFIN | D129: 389.65 | E129: 390.78 | F129: 384.67 | G129: 379.68 | H129: 373.57 | I129: 395.77 | J129: 401.88 | K129: 406.87 | L129: 396.9 | M129: 385.8 | N129: 12665000 | O129: 0.53%
A130: 120 | B130: Others | C130: MANAPPURAM | D130: 101.70 | E130: 102.13 | F130: 100.22 | G130: 98.73 | H130: 96.82 | I130: 103.62 | J130: 105.53 | K130: 107.02 | L130: 104.05 | M130: 100.65 | N130: 10950000 | O130: 1.96%
A131: 121 | B131: FMCG | C131: MARICO | D131: 360.95 | E131: 360.32 | F131: 357.63 | G131: 354.32 | H131: 351.63 | I131: 363.63 | J131: 366.32 | K131: 369.63 | L131: 363 | M131: 357 | N131: 6461000 | O131: -2.59%
A132: 122 | B132: Automobile | C132: MARUTI | D132: 7203.55 | E132: 7166.38 | F132: 7097.27 | G132: 6990.98 | H132: 6921.87 | I132: 7272.67 | J132: 7341.78 | K132: 7448.07 | L132: 7235.5 | M132: 7060.1 | N132: 2477100 | O132: -0.37%
A133: 123 | B133: FMCG | C133: MCDOWELL-N | D133: 530.50 | E133: 533.27 | F133: 521.43 | G133: 512.37 | H133: 500.53 | I133: 542.33 | J133: 554.17 | K133: 563.23 | L133: 545.1 | M133: 524.2 | N133: 11972500 | O133: -2.36%
A134: 124 | B134: Others | C134: MCX | D134: 688.35 | E134: 690.35 | F134: 680.70 | G134: 673.05 | H134: 663.40 | I134: 698.00 | J134: 707.65 | K134: 715.30 | L134: 700 | M134: 682.7 | N134: 2207800 | O134: -1.07%
A135: 125 | B135: Finance | C135: MFSL | D135: 378.10 | E135: 382.88 | F135: 366.77 | G135: 355.43 | H135: 339.32 | I135: 394.22 | J135: 410.33 | K135: 421.67 | L135: 399 | M135: 371.55 | N135: 2172000 | O135: 1.00%
A136: 126 | B136: Others | C136: MGL | D136: 917.20 | E136: 921.38 | F136: 904.82 | G136: 892.43 | H136: 875.87 | I136: 933.77 | J136: 950.33 | K136: 962.72 | L136: 937.95 | M136: 909 | N136: 810600 | O136: -6.25%
A137: 127 | B137: Technology | C137: MINDTREE | D137: 921.85 | E137: 913.78 | F137: 903.07 | G137: 884.28 | H137: 873.57 | I137: 932.57 | J137: 943.28 | K137: 962.07 | L137: 924.5 | M137: 895 | N137: 2615400 | O137: -0.95%
A138: 128 | B138: Automobile | C138: MOTHERSUMI | D138: 132.70 | E138: 134.78 | F138: 128.37 | G138: 124.03 | H138: 117.62 | I138: 139.12 | J138: 145.53 | K138: 149.87 | L138: 141.2 | M138: 130.45 | N138: 30577650 | O138: 2.19%
A139: 129 | B139: Automobile | C139: MRF | D139: 55500.70 | E139: 55800.22 | F139: 54600.48 | G139: 53700.27 | H139: 52500.53 | I139: 56700.43 | J139: 57900.17 | K139: 58800.38 | L139: 56999.95 | M139: 54900 | N139: 40620 | O139: 3.81%
A140: 130 | B140: Others | C140: MRPL | D140: 64.20 | E140: 64.08 | F140: 63.42 | G140: 62.63 | H140: 61.97 | I140: 64.87 | J140: 65.53 | K140: 66.32 | L140: 64.75 | M140: 63.3 | N140: 4774000 | O140: -0.44%
A141: 131 | B141: Finance | C141: MUTHOOTFIN | D141: 502.90 | E141: 507.20 | F141: 496.90 | G141: 490.90 | H141: 480.60 | I141: 513.20 | J141: 523.50 | K141: 529.50 | L141: 517.5 | M141: 501.2 | N141: 1996500 | O141: -3.48%
A142: 132 | B142: Others | C142: NATIONALUM | D142: 52.25 | E142: 53.68 | F142: 50.02 | G142: 47.78 | H142: 44.12 | I142: 55.92 | J142: 59.58 | K142: 61.82 | L142: 57.35 | M142: 51.45 | N142: 29384000 | O142: 23.75%
A143: 133 | B143: Others | C143: NBCC | D143: 53.25 | E143: 53.70 | F143: 52.20 | G143: 51.15 | H143: 49.65 | I143: 54.75 | J143: 56.25 | K143: 57.30 | L143: 55.2 | M143: 52.65 | N143: 30216000 | O143: 3.00%
A144: 134 | B144: Infrastructure | C144: NCC | D144: 79.20 | E144: 78.73 | F144: 77.57 | G144: 75.93 | H144: 74.77 | I144: 80.37 | J144: 81.53 | K144: 83.17 | L144: 79.9 | M144: 77.1 | N144: 49072000 | O144: 0.26%
A145: 135 | B145: Others | C145: NESTLEIND | D145: 10854.45 | E145: 10966.95 | F145: 10675.55 | G145: 10496.65 | H145: 10205.25 | I145: 11145.85 | J145: 11437.25 | K145: 11616.15 | L145: 11258.35 | M145: 10788.05 | N145: 373800 | O145: 5.85%
A146: 136 | B146: Power | C146: NHPC | D146: 22.60 | E146: 22.28 | F146: 21.77 | G146: 20.93 | H146: 20.42 | I146: 23.12 | J146: 23.63 | K146: 24.47 | L146: 22.8 | M146: 21.45 | N146: 22329000 | O146: 14.07%
A147: 137 | B147: Technology | C147: NIITTECH | D147: 1330.65 | E147: 1324.38 | F147: 1311.77 | G147: 1292.88 | H147: 1280.27 | I147: 1343.27 | J147: 1355.88 | K147: 1374.77 | L147: 1337 | M147: 1305.5 | N147: 1791000 | O147: 1.44%
A148: 138 | B148: Metals | C148: NMDC | D148: 94.65 | E148: 94.35 | F148: 93.20 | G148: 91.75 | H148: 90.60 | I148: 95.80 | J148: 96.95 | K148: 98.40 | L148: 95.5 | M148: 92.9 | N148: 23382000 | O148: 4.56%
A149: 139 | B149: Power | C149: NTPC | D149: 130.10 | E149: 129.43 | F149: 127.67 | G149: 125.23 | H149: 123.47 | I149: 131.87 | J149: 133.63 | K149: 136.07 | L149: 131.2 | M149: 127 | N149: 32184000 | O149: 10.60%
A150: 140 | B150: Technology | C150: OFSS | D150: 3804.45 | E150: 3800.85 | F150: 3738.00 | G150: 3671.55 | H150: 3608.70 | I150: 3867.30 | J150: 3930.15 | K150: 3996.60 | L150: 3863.7 | M150: 3734.4 | N150: 148350 | O150: 3.13%
A151: 141 | B151: Oil_Gas | C151: OIL | D151: 166.65 | E151: 166.83 | F151: 164.22 | G151: 161.78 | H151: 159.17 | I151: 169.27 | J151: 171.88 | K151: 174.32 | L151: 169.45 | M151: 164.4 | N151: 6002634 | O151: -0.62%
A152: 142 | B152: Oil_Gas | C152: ONGC | D152: 135.35 | E152: 135.98 | F152: 132.52 | G152: 129.68 | H152: 126.22 | I152: 138.82 | J152: 142.28 | K152: 145.12 | L152: 139.45 | M152: 133.15 | N152: 35463750 | O152: 7.81%
A153: 143 | B153: Banking | C153: ORIENTBANK | D153: 85.75 | E153: 85.57 | F153: 84.23 | G153: 82.72 | H153: 81.38 | I153: 87.08 | J153: 88.42 | K153: 89.93 | L153: 86.9 | M153: 84.05 | N153: 12376000 | O153: -2.91%
A154: 144 | B154: Textile | C154: PAGEIND | D154: 23718.10 | E154: 23632.72 | F154: 23465.43 | G154: 23212.77 | H154: 23045.48 | I154: 23885.38 | J154: 24052.67 | K154: 24305.33 | L154: 23800 | M154: 23380.05 | N154: 183225 | O154: 3.05%
A155: 145 | B155: Others | C155: PCJEWELLER | D155: 66.20 | E155: 68.80 | F155: 62.60 | G155: 59.00 | H155: 52.80 | I155: 72.40 | J155: 78.60 | K155: 82.20 | L155: 75 | M155: 65.2 | N155: 12103000 | O155: 8.70%
A156: 146 | B156: Pharma | C156: PEL | D156: 2115.65 | E156: 2129.05 | F156: 2066.65 | G156: 2017.65 | H156: 1955.25 | I156: 2178.05 | J156: 2240.45 | K156: 2289.45 | L156: 2191.45 | M156: 2080.05 | N156: 3833890 | O156: 5.84%
A157: 147 | B157: Oil_Gas | C157: PETRONET | D157: 225.45 | E157: 225.30 | F157: 223.65 | G157: 221.85 | H157: 220.20 | I157: 227.10 | J157: 228.75 | K157: 230.55 | L157: 226.95 | M157: 223.5 | N157: 12390000 | O157: 1.05%
A158: 148 | B158: Finance | C158: PFC | D158: 99.25 | E158: 99.47 | F158: 96.88 | G158: 94.52 | H158: 91.93 | I158: 101.83 | J158: 104.42 | K158: 106.78 | L158: 102.05 | M158: 97.1 | N158: 28352600 | O158: 2.90%
A159: 149 | B159: FMCG | C159: PIDILITIND | D159: 1131.10 | E159: 1138.82 | F159: 1115.63 | G159: 1100.17 | H159: 1076.98 | I159: 1154.28 | J159: 1177.47 | K159: 1192.93 | L159: 1162 | M159: 1123.35 | N159: 2443000 | O159: 1.43%
A160: 150 | B160: Banking | C160: PNB | D160: 71.25 | E160: 71.20 | F160: 70.75 | G160: 70.25 | H160: 69.80 | I160: 71.70 | J160: 72.15 | K160: 72.65 | L160: 71.65 | M160: 70.7 | N160: 111608000 | O160: -0.69%
A161: 151 | B161: Power | C161: POWERGRID | D161: 179.45 | E161: 178.12 | F161: 175.83 | G161: 172.22 | H161: 169.93 | I161: 181.73 | J161: 184.02 | K161: 187.63 | L161: 180.4 | M161: 174.5 | N161: 14700000 | O161: 15.71%
A162: 152 | B162: Others | C162: PVR | D162: 1502.15 | E162: 1496.57 | F162: 1464.33 | G162: 1426.52 | H162: 1394.28 | I162: 1534.38 | J162: 1566.62 | K162: 1604.43 | L162: 1528.8 | M162: 1458.75 | N162: 1768800 | O162: 3.05%
A163: 153 | B163: Cement | C163: RAMCOCEM | D163: 602.20 | E163: 601.92 | F163: 592.98 | G163: 583.77 | H163: 574.83 | I163: 611.13 | J163: 620.07 | K163: 629.28 | L163: 610.85 | M163: 592.7 | N163: 679200 | O163: 1.92%
A164: 154 | B164: Others | C164: RAYMOND | D164: 690.00 | E164: 687.10 | F164: 675.95 | G164: 661.90 | H164: 650.75 | I164: 701.15 | J164: 712.30 | K164: 726.35 | L164: 698.25 | M164: 673.05 | N164: 4042400 | O164: -3.11%
A165: 155 | B165: Banking | C165: RBLBANK | D165: 567.40 | E165: 569.73 | F165: 559.47 | G165: 551.53 | H165: 541.27 | I165: 577.67 | J165: 587.93 | K165: 595.87 | L165: 580 | M165: 561.8 | N165: 5515200 | O165: -4.31%
A166: 156 | B166: Telecom | C166: RCOM | D166: 5.35 | E166: 5.42 | F166: 5.13 | G166: 4.92 | H166: 4.63 | I166: 5.63 | J166: 5.92 | K166: 6.13 | L166: 5.7 | M166: 5.2 | N166: 83980000 | O166: -4.78%
A167: 157 | B167: Power | C167: RECLTD | D167: 119.10 | E167: 118.50 | F167: 116.75 | G167: 114.40 | H167: 112.65 | I167: 120.85 | J167: 122.60 | K167: 124.95 | L167: 120.25 | M167: 116.15 | N167: 32760000 | O167: -1.69%
A168: 158 | B168: Finance | C168: RELCAPITAL | D168: 135.55 | E168: 134.63 | F168: 130.62 | G168: 125.68 | H168: 121.67 | I168: 139.57 | J168: 143.58 | K168: 148.52 | L168: 138.65 | M168: 129.7 | N168: 9691500 | O168: -10.86%
A169: 159 | B169: Oil_Gas | C169: RELIANCE | D169: 1259.80 | E169: 1265.35 | F169: 1251.10 | G169: 1242.40 | H169: 1228.15 | I169: 1274.05 | J169: 1288.30 | K169: 1297.00 | L169: 1279.6 | M169: 1256.65 | N169: 52120000 | O169: 3.05%
A170: 160 | B170: Power | C170: RELINFRA | D170: 116.00 | E170: 119.02 | F170: 111.23 | G170: 106.47 | H170: 98.68 | I170: 123.78 | J170: 131.57 | K170: 136.33 | L170: 126.8 | M170: 114.25 | N170: 9349600 | O170: -3.44%
A171: 161 | B171: Others | C171: REPCOHOME | D171: 363.40 | E171: 366.00 | F171: 354.20 | G171: 345.00 | H171: 333.20 | I171: 375.20 | J171: 387.00 | K171: 396.20 | L171: 377.8 | M171: 356.8 | N171: 947100 | O171: -2.93%
A172: 162 | B172: Power | C172: RPOWER | D172: 11.10 | E172: 11.23 | F172: 10.67 | G172: 10.23 | H172: 9.67 | I172: 11.67 | J172: 12.23 | K172: 12.67 | L172: 11.8 | M172: 10.8 | N172: 92048000 | O172: -3.76%
A173: 163 | B173: Metals | C173: SAIL | D173: 45.00 | E173: 44.85 | F173: 44.20 | G173: 43.40 | H173: 42.75 | I173: 45.65 | J173: 46.30 | K173: 47.10 | L173: 45.5 | M173: 44.05 | N173: 91284000 | O173: 1.90%
A174: 164 | B174: Banking | C174: SBIN | D174: 280.45 | E174: 282.10 | F174: 278.35 | G174: 276.25 | H174: 272.50 | I174: 284.20 | J174: 287.95 | K174: 290.05 | L174: 285.85 | M174: 280 | N174: 83325000 | O174: 1.92%
A175: 165 | B175: Cement | C175: SHREECEM | D175: 15972.00 | E175: 15990.48 | F175: 15812.27 | G175: 15652.53 | H175: 15474.32 | I175: 16150.22 | J175: 16328.43 | K175: 16488.17 | L175: 16168.7 | M175: 15830.75 | N175: 87600 | O175: 1.10%
A176: 166 | B176: Capital_Goods | C176: SIEMENS | D176: 1032.65 | E176: 1021.62 | F176: 1004.23 | G176: 975.82 | H176: 958.43 | I176: 1050.03 | J176: 1067.42 | K176: 1095.83 | L176: 1039 | M176: 993.2 | N176: 1920050 | O176: -1.77%
A177: 167 | B177: Banking | C177: SOUTHBANK | D177: 13.55 | E177: 13.45 | F177: 13.25 | G177: 12.95 | H177: 12.75 | I177: 13.75 | J177: 13.95 | K177: 14.25 | L177: 13.65 | M177: 13.15 | N177: 157254045 | O177: 0.19%
A178: 168 | B178: Others | C178: SREINFRA | D178: 23.70 | E178: 23.52 | F178: 22.68 | G178: 21.67 | H178: 20.83 | I178: 24.53 | J178: 25.37 | K178: 26.38 | L178: 24.35 | M178: 22.5 | N178: 10032000 | O178: -4.02%
A179: 169 | B179: Textile | C179: SRF | D179: 2220.50 | E179: 2207.07 | F179: 2180.63 | G179: 2140.77 | H179: 2114.33 | I179: 2246.93 | J179: 2273.37 | K179: 2313.23 | L179: 2233.5 | M179: 2167.2 | N179: 992000 | O179: 0.66%
A180: 170 | B180: Finance | C180: SRTRANSFIN | D180: 1058.70 | E180: 1062.70 | F180: 1047.00 | G180: 1035.30 | H180: 1019.60 | I180: 1074.40 | J180: 1090.10 | K180: 1101.80 | L180: 1078.4 | M180: 1051 | N180: 4650000 | O180: -1.92%
A181: 171 | B181: Pharma | C181: STAR | D181: 403.80 | E181: 407.87 | F181: 394.33 | G181: 384.87 | H181: 371.33 | I181: 417.33 | J181: 430.87 | K181: 440.33 | L181: 421.4 | M181: 398.4 | N181: 4801500 | O181: 1.91%
A182: 172 | B182: Pharma | C182: SUNPHARMA | D182: 429.45 | E182: 428.50 | F182: 422.25 | G182: 415.05 | H182: 408.80 | I182: 435.70 | J182: 441.95 | K182: 449.15 | L182: 434.75 | M182: 421.3 | N182: 53334600 | O182: 0.13%
A183: 173 | B183: Media | C183: SUNTV | D183: 573.55 | E183: 561.52 | F183: 546.03 | G183: 518.52 | H183: 503.03 | I183: 589.03 | J183: 604.52 | K183: 632.03 | L183: 577 | M183: 534 | N183: 8131000 | O183: 10.67%
A184: 174 | B184: Power | C184: SUZLON | D184: 3.45 | E184: 3.47 | F184: 3.23 | G184: 3.02 | H184: 2.78 | I184: 3.68 | J184: 3.92 | K184: 4.13 | L184: 3.7 | M184: 3.25 | N184: 249204000 | O184: -0.27%
A185: 175 | B185: Banking | C185: SYNDIBANK | D185: 32.65 | E185: 32.60 | F185: 32.15 | G185: 31.65 | H185: 31.20 | I185: 33.10 | J185: 33.55 | K185: 34.05 | L185: 33.05 | M185: 32.1 | N185: 25485000 | O185: 1.13%
A186: 176 | B186: Fertilisers | C186: TATACHEM | D186: 584.05 | E186: 587.63 | F186: 578.32 | G186: 572.58 | H186: 563.27 | I186: 593.37 | J186: 602.68 | K186: 608.42 | L186: 596.95 | M186: 581.9 | N186: 2662500 | O186: 1.28%
A187: 177 | B187: Telecom | C187: TATACOMM | D187: 484.70 | E187: 482.93 | F187: 478.77 | G187: 472.83 | H187: 468.67 | I187: 488.87 | J187: 493.03 | K187: 498.97 | L187: 487.1 | M187: 477 | N187: 2912000 | O187: -1.36%
A188: 178 | B188: Technology | C188: TATAELXSI | D188: 905.95 | E188: 902.12 | F188: 893.98 | G188: 882.02 | H188: 873.88 | I188: 914.08 | J188: 922.22 | K188: 934.18 | L188: 910.25 | M188: 890.15 | N188: 1484000 | O188: 0.54%
A189: 179 | B189: FMCG | C189: TATAGLOBAL | D189: 180.70 | E189: 181.13 | F189: 177.47 | G189: 174.23 | H189: 170.57 | I189: 184.37 | J189: 188.03 | K189: 191.27 | L189: 184.8 | M189: 177.9 | N189: 10737000 | O189: 3.13%
A190: 180 | B190: Automobile | C190: TATAMOTORS | D190: 152.90 | E190: 150.92 | F190: 148.18 | G190: 143.47 | H190: 140.73 | I190: 155.63 | J190: 158.37 | K190: 163.08 | L190: 153.65 | M190: 146.2 | N190: 61650000 | O190: 0.07%
A191: 181 | B191: Automobile | C191: TATAMTRDVR | D191: 81.75 | E191: 80.87 | F191: 79.58 | G191: 77.42 | H191: 76.13 | I191: 83.03 | J191: 84.32 | K191: 86.48 | L191: 82.15 | M191: 78.7 | N191: 28743200 | O191: 0.40%
A192: 182 | B192: Power | C192: TATAPOWER | D192: 66.00 | E192: 66.73 | F192: 64.82 | G192: 63.63 | H192: 61.72 | I192: 67.92 | J192: 69.83 | K192: 71.02 | L192: 68.65 | M192: 65.55 | N192: 42939000 | O192: 1.79%
A193: 183 | B193: Metals | C193: TATASTEEL | D193: 482.20 | E193: 477.05 | F193: 465.95 | G193: 449.70 | H193: 438.60 | I193: 493.30 | J193: 504.40 | K193: 520.65 | L193: 488.15 | M193: 460.8 | N193: 37376908 | O193: -0.23%
A194: 184 | B194: Technology | C194: TCS | D194: 2075.45 | E194: 2079.20 | F194: 2055.45 | G194: 2035.45 | H194: 2011.70 | I194: 2099.20 | J194: 2122.95 | K194: 2142.95 | L194: 2102.95 | M194: 2059.2 | N194: 13469250 | O194: 1.59%
A195: 185 | B195: Technology | C195: TECHM | D195: 813.35 | E195: 812.03 | F195: 807.92 | G195: 802.48 | H195: 798.37 | I195: 817.47 | J195: 821.58 | K195: 827.02 | L195: 816.15 | M195: 806.6 | N195: 16546800 | O195: 1.25%
A196: 186 | B196: FMCG | C196: TITAN | D196: 1061.30 | E196: 1058.50 | F196: 1052.35 | G196: 1043.40 | H196: 1037.25 | I196: 1067.45 | J196: 1073.60 | K196: 1082.55 | L196: 1064.65 | M196: 1049.55 | N196: 14421750 | O196: 0.33%
A197: 187 | B197: Pharma | C197: TORNTPHARM | D197: 1809.05 | E197: 1802.77 | F197: 1786.53 | G197: 1764.02 | H197: 1747.78 | I197: 1825.28 | J197: 1841.52 | K197: 1864.03 | L197: 1819 | M197: 1780.25 | N197: 414500 | O197: -3.27%
A198: 188 | B198: Power | C198: TORNTPOWER | D198: 235.75 | E198: 237.85 | F198: 232.70 | G198: 229.65 | H198: 224.50 | I198: 240.90 | J198: 246.05 | K198: 249.10 | L198: 243 | M198: 234.8 | N198: 2019000 | O198: 9.43%
A199: 189 | B199: Media | C199: TV18BRDCST | D199: 32.55 | E199: 32.33 | F199: 31.92 | G199: 31.28 | H199: 30.87 | I199: 32.97 | J199: 33.38 | K199: 34.02 | L199: 32.75 | M199: 31.7 | N199: 59163000 | O199: -1.02%
A200: 190 | B200: Automobile | C200: TVSMOTOR | D200: 487.45 | E200: 485.93 | F200: 480.02 | G200: 472.58 | H200: 466.67 | I200: 493.37 | J200: 499.28 | K200: 506.72 | L200: 491.85 | M200: 478.5 | N200: 4769000 | O200: -1.75%
A201: 191 | B201: FMCG | C201: UBL | D201: 1382.45 | E201: 1382.63 | F201: 1361.47 | G201: 1340.48 | H201: 1319.32 | I201: 1403.62 | J201: 1424.78 | K201: 1445.77 | L201: 1403.8 | M201: 1361.65 | N201: 2867900 | O201: 16.72%
A202: 192 | B202: Finance | C202: UJJIVAN | D202: 256.95 | E202: 258.75 | F202: 250.50 | G202: 244.05 | H202: 235.80 | I202: 265.20 | J202: 273.45 | K202: 279.90 | L202: 267 | M202: 252.3 | N202: 4640000 | O202: 9.93%
A203: 193 | B203: Cement | C203: ULTRACEMCO | D203: 3467.45 | E203: 3495.03 | F203: 3432.47 | G203: 3397.48 | H203: 3334.92 | I203: 3530.02 | J203: 3592.58 | K203: 3627.57 | L203: 3557.6 | M203: 3460.05 | N203: 2190400 | O203: 2.86%
A204: 194 | B204: Banking | C204: UNIONBANK | D204: 72.55 | E204: 72.50 | F204: 71.65 | G204: 70.75 | H204: 69.90 | I204: 73.40 | J204: 74.25 | K204: 75.15 | L204: 73.35 | M204: 71.6 | N204: 32648000 | O204: -3.16%
A205: 195 | B205: Fertilisers | C205: UPL | D205: 808.60 | E205: 809.22 | F205: 801.93 | G205: 795.27 | H205: 787.98 | I205: 815.88 | J205: 823.17 | K205: 829.83 | L205: 816.5 | M205: 802.55 | N205: 16720800 | O205: 0.17%
A206: 196 | B206: Metals | C206: VEDL | D206: 152.95 | E206: 152.17 | F206: 148.48 | G206: 144.02 | H206: 140.33 | I206: 156.63 | J206: 160.32 | K206: 164.78 | L206: 155.85 | M206: 147.7 | N206: 51207200 | O206: 1.69%
... 21 more rows

Sheet Cash Intra
M5: Back to Main Page
A6: FOR INTRA DAY TRADING | K6: =Main!B10 -> 2019-02-12
A8: Sr.no | B8: Scrip | C8: CLOSE RATE | D8: Pivot Point | E8: Supports | H8: Resistances
C9: Point | E9: S1 | F9: S2 | G9: S3 | H9: R1 | I9: R2 | J9: R3 | K9: HIGH | L9: LOW | M9: Total Trade Quanity in Lakhs
A10: 1 | B10: Nifty 50 | C10: 10888.8 | D10: 10892.27 | E10: 10853.63 | F10: 10818.47 | G10: 10779.83 | H10: 10927.43 | I10: 10966.07 | J10: 11001.23 | K10: 10930.9 | L10: 10857.1
A11: 2 | B11: Nifty Bank | C11: 27227.8 | D11: 27228.42 | E11: 27150.93 | F11: 27074.07 | G11: 26996.58 | H11: 27305.28 | I11: 27382.77 | J11: 27459.63 | K11: 27305.9 | L11: 27151.55
A12: 3 | B12: Nifty CPSE | C12: 1910.8 | D12: 1911.42 | E12: 1892.38 | F12: 1873.97 | G12: 1854.93 | H12: 1929.83 | I12: 1948.87 | J12: 1967.28 | K12: 1930.45 | L12: 1893
A13: 4 | B13: Nifty Infra | C13: 2861.2 | D13: 2855.72 | E13: 2828.73 | F13: 2796.27 | G13: 2769.28 | H13: 2888.18 | I13: 2915.17 | J13: 2947.63 | K13: 2882.7 | L13: 2823.25
A14: 5 | B14: Nifty IT | C14: 16099.05 | D14: 16086.87 | E14: 16014.68 | F14: 15930.32 | G14: 15858.13 | H14: 16171.23 | I14: 16243.42 | J14: 16327.78 | K14: 16159.05 | L14: 16002.5
A15: 6 | B15: Nifty PSE | C15: 3103.4 | D15: 3099.43 | E15: 3076.12 | F15: 3048.83 | G15: 3025.52 | H15: 3126.72 | I15: 3150.03 | J15: 3177.32 | K15: 3122.75 | L15: 3072.15
A16: 7 | B16: Nifty Midcap 50 | C16: 4492.1 | D16: 4512.68 | E16: 4460.82 | F16: 4429.53 | G16: 4377.67 | H16: 4543.97 | I16: 4595.83 | J16: 4627.12 | K16: 4564.55 | L16: 4481.4
A17: 8 | B17: ABB | C17: 1233.8 | D17: 1238.93 | E17: 1215.87 | F17: 1197.93 | G17: 1174.87 | H17: 1256.87 | I17: 1279.93 | J17: 1297.87 | K17: 1262 | L17: 1221 | M17: 0.50593
A18: 9 | B18: ACC | C18: 1368.3 | D18: 1377.38 | E18: 1355.32 | F18: 1342.33 | G18: 1320.27 | H18: 1390.37 | I18: 1412.43 | J18: 1425.42 | K18: 1399.45 | L18: 1364.4 | M18: 11.33028
A19: 10 | B19: AIAENG | C19: 1667.95 | D19: 1663.83 | E19: 1643.12 | F19: 1618.28 | G19: 1597.57 | H19: 1688.67 | I19: 1709.38 | J19: 1734.22 | K19: 1684.55 | L19: 1639 | M19: 0.63615
A20: 11 | B20: AUBANK | C20: 588.95 | D20: 586.43 | E20: 579.07 | F20: 569.18 | G20: 561.82 | H20: 596.32 | I20: 603.68 | J20: 613.57 | K20: 593.8 | L20: 576.55 | M20: 1.10178
A21: 12 | B21: ADANIENT | C21: 118.2 | D21: 119.08 | E21: 114.92 | F21: 111.63 | G21: 107.47 | H21: 122.37 | I21: 126.53 | J21: 129.82 | K21: 123.25 | L21: 115.8 | M21: 70.48335
A22: 13 | B22: ADANIPORTS | C22: 328.8 | D22: 327.05 | E22: 320.15 | F22: 311.50 | G22: 304.60 | H22: 335.70 | I22: 342.60 | J22: 351.25 | K22: 333.95 | L22: 318.4 | M22: 37.83848
A23: 14 | B23: ADANIPOWER | C23: 34.7 | D23: 34.73 | E23: 33.32 | F23: 31.93 | G23: 30.52 | H23: 36.12 | I23: 37.53 | J23: 38.92 | K23: 36.15 | L23: 33.35 | M23: 117.90819
A24: 15 | B24: ABFRL | C24: 211.1 | D24: 210.85 | E24: 209.70 | F24: 208.30 | G24: 207.15 | H24: 212.25 | I24: 213.40 | J24: 214.80 | K24: 212 | L24: 209.45 | M24: 5.86752
A25: 16 | B25: AJANTPHARM | C25: 1002.85 | D25: 980.73 | E25: 946.47 | F25: 890.08 | G25: 855.82 | H25: 1037.12 | I25: 1071.38 | J25: 1127.77 | K25: 1015 | L25: 924.35 | M25: 12.69473
A26: 17 | B26: ALKEM | C26: 1891.7 | D26: 1888.78 | E26: 1862.87 | F26: 1834.03 | G26: 1808.12 | H26: 1917.62 | I26: 1943.53 | J26: 1972.37 | K26: 1914.7 | L26: 1859.95 | M26: 0.29265
A27: 18 | B27: AMARAJABAT | C27: 740.45 | D27: 744.40 | E27: 733.80 | F27: 727.15 | G27: 716.55 | H27: 751.05 | I27: 761.65 | J27: 768.30 | K27: 755 | L27: 737.75 | M27: 5.45367
A28: 19 | B28: AMBUJACEM | C28: 207.6 | D28: 209.37 | E28: 205.03 | F28: 202.47 | G28: 198.13 | H28: 211.93 | I28: 216.27 | J28: 218.83 | K28: 213.7 | L28: 206.8 | M28: 11.68695
A29: 20 | B29: APOLLOHOSP | C29: 1121.9 | D29: 1170.63 | E29: 1041.27 | F29: 960.63 | G29: 831.27 | H29: 1251.27 | I29: 1380.63 | J29: 1461.27 | K29: 1300 | L29: 1090 | M29: 54.24327
A30: 21 | B30: APOLLOTYRE | C30: 201.7 | D30: 202.25 | E30: 199.65 | F30: 197.60 | G30: 195.00 | H30: 204.30 | I30: 206.90 | J30: 208.95 | K30: 204.85 | L30: 200.2 | M30: 17.41712
A31: 22 | B31: ARVIND | C31: 79.45 | D31: 80.17 | E31: 78.03 | F31: 76.62 | G31: 74.48 | H31: 81.58 | I31: 83.72 | J31: 85.13 | K31: 82.3 | L31: 78.75 | M31: 22.9508
A32: 23 | B32: ASHOKLEY | C32: 83.1 | D32: 84.17 | E32: 81.53 | F32: 79.97 | G32: 77.33 | H32: 85.73 | I32: 88.37 | J32: 89.93 | K32: 86.8 | L32: 82.6 | M32: 181.89713
A33: 24 | B33: ASIANPAINT | C33: 1437.1 | D33: 1440.47 | E33: 1423.63 | F33: 1410.17 | G33: 1393.33 | H33: 1453.93 | I33: 1470.77 | J33: 1484.23 | K33: 1457.3 | L33: 1427 | M33: 7.28051
A34: 25 | B34: AUROPHARMA | C34: 763.15 | D34: 760.78 | E34: 751.57 | F34: 739.98 | G34: 730.77 | H34: 772.37 | I34: 781.58 | J34: 793.17 | K34: 770 | L34: 749.2 | M34: 19.76232
A35: 26 | B35: DMART | C35: 1451.3 | D35: 1454.63 | E35: 1437.77 | F35: 1424.23 | G35: 1407.37 | H35: 1468.17 | I35: 1485.03 | J35: 1498.57 | K35: 1471.5 | L35: 1441.1 | M35: 1.65263
A36: 27 | B36: AXISBANK | C36: 710.85 | D36: 712.02 | E36: 704.13 | F36: 697.42 | G36: 689.53 | H36: 718.73 | I36: 726.62 | J36: 733.33 | K36: 719.9 | L36: 705.3 | M36: 72.34953
A37: 28 | B37: BAJAJ-AUTO | C37: 2853.6 | D37: 2847.55 | E37: 2825.10 | F37: 2796.60 | G37: 2774.15 | H37: 2876.05 | I37: 2898.50 | J37: 2927.00 | K37: 2870 | L37: 2819.05 | M37: 7.12787
A38: 29 | B38: BAJFINANCE | C38: 2657.2 | D38: 2672.30 | E38: 2619.90 | F38: 2582.60 | G38: 2530.20 | H38: 2709.60 | I38: 2762.00 | J38: 2799.30 | K38: 2724.7 | L38: 2635 | M38: 11.94702
A39: 30 | B39: BAJAJFINSV | C39: 6096.25 | D39: 6132.28 | E39: 6041.07 | F39: 5985.88 | G39: 5894.67 | H39: 6187.47 | I39: 6278.68 | J39: 6333.87 | K39: 6223.5 | L39: 6077.1 | M39: 1.13518
A40: 31 | B40: BALKRISIND | C40: 807.15 | D40: 788.05 | E40: 763.10 | F40: 719.05 | G40: 694.10 | H40: 832.10 | I40: 857.05 | J40: 901.10 | K40: 813 | L40: 744 | M40: 23.37557
A41: 32 | B41: BANKBARODA | C41: 103.9 | D41: 103.88 | E41: 102.92 | F41: 101.93 | G41: 100.97 | H41: 104.87 | I41: 105.83 | J41: 106.82 | K41: 104.85 | L41: 102.9 | M41: 75.82047
A42: 33 | B42: BANKINDIA | C42: 84.7 | D42: 85.25 | E42: 83.50 | F42: 82.30 | G42: 80.55 | H42: 86.45 | I42: 88.20 | J42: 89.40 | K42: 87 | L42: 84.05 | M42: 55.96055
A43: 34 | B43: BATAINDIA | C43: 1188.4 | D43: 1191.45 | E43: 1173.90 | F43: 1159.40 | G43: 1141.85 | H43: 1205.95 | I43: 1223.50 | J43: 1238.00 | K43: 1209 | L43: 1176.95 | M43: 10.12637
A44: 35 | B44: BERGEPAINT | C44: 299.95 | D44: 303.65 | E44: 294.90 | F44: 289.85 | G44: 281.10 | H44: 308.70 | I44: 317.45 | J44: 322.50 | K44: 312.4 | L44: 298.6 | M44: 14.44102
A45: 36 | B45: BEL | C45: 76.75 | D45: 77.52 | E45: 75.13 | F45: 73.52 | G45: 71.13 | H45: 79.13 | I45: 81.52 | J45: 83.13 | K45: 79.9 | L45: 75.9 | M45: 80.90201
A46: 37 | B46: BHARATFIN | C46: 941.15 | D46: 937.90 | E46: 930.80 | F46: 920.45 | G46: 913.35 | H46: 948.25 | I46: 955.35 | J46: 965.70 | K46: 945 | L46: 927.55 | M46: 5.11568
A47: 38 | B47: BHARATFORG | C47: 479.1 | D47: 478.72 | E47: 472.88 | F47: 466.67 | G47: 460.83 | H47: 484.93 | I47: 490.77 | J47: 496.98 | K47: 484.55 | L47: 472.5 | M47: 5.27381
A48: 39 | B48: BHEL | C48: 62.75 | D48: 62.33 | E48: 61.42 | F48: 60.08 | G48: 59.17 | H48: 63.67 | I48: 64.58 | J48: 65.92 | K48: 63.25 | L48: 61 | M48: 95.11824
A49: 40 | B49: BPCL | C49: 333.6 | D49: 333.03 | E49: 328.57 | F49: 323.53 | G49: 319.07 | H49: 338.07 | I49: 342.53 | J49: 347.57 | K49: 337.5 | L49: 328 | M49: 33.14948
A50: 41 | B50: BHARTIARTL | C50: 312.2 | D50: 312.88 | E50: 310.32 | F50: 308.43 | G50: 305.87 | H50: 314.77 | I50: 317.33 | J50: 319.22 | K50: 315.45 | L50: 311 | M50: 29.77404
A51: 42 | B51: INFRATEL | C51: 323.5 | D51: 324.17 | E51: 319.33 | F51: 315.17 | G51: 310.33 | H51: 328.33 | I51: 333.17 | J51: 337.33 | K51: 329 | L51: 320 | M51: 30.81552
A52: 43 | B52: BIOCON | C52: 644.2 | D52: 646.78 | E52: 638.57 | F52: 632.93 | G52: 624.72 | H52: 652.42 | I52: 660.63 | J52: 666.27 | K52: 655 | L52: 641.15 | M52: 7.30783
A53: 44 | B53: BOSCHLTD | C53: 18798.7 | D53: 18795.90 | E53: 18616.80 | F53: 18434.90 | G53: 18255.80 | H53: 18977.80 | I53: 19156.90 | J53: 19338.80 | K53: 18975 | L53: 18614 | M53: 0.16064
A54: 45 | B54: BRITANNIA | C54: 3107.55 | D54: 3098.38 | E54: 3064.47 | F54: 3021.38 | G54: 2987.47 | H54: 3141.47 | I54: 3175.38 | J54: 3218.47 | K54: 3132.3 | L54: 3055.3 | M54: 2.65355
A55: 46 | B55: CRISIL | C55: 1556.65 | D55: 1585.53 | E55: 1521.12 | F55: 1485.58 | G55: 1421.17 | H55: 1621.07 | I55: 1685.48 | J55: 1721.02 | K55: 1649.95 | L55: 1550 | M55: 0.1037
A56: 47 | B56: CADILAHC | C56: 324.4 | D56: 323.55 | E56: 320.85 | F56: 317.30 | G56: 314.60 | H56: 327.10 | I56: 329.80 | J56: 333.35 | K56: 326.25 | L56: 320 | M56: 8.75355
A57: 48 | B57: CANBK | C57: 225 | D57: 226.10 | E57: 222.70 | F57: 220.40 | G57: 217.00 | H57: 228.40 | I57: 231.80 | J57: 234.10 | K57: 229.5 | L57: 223.8 | M57: 31.50448
A58: 49 | B58: CASTROLIND | C58: 146.05 | D58: 146.85 | E58: 144.25 | F58: 142.45 | G58: 139.85 | H58: 148.65 | I58: 151.25 | J58: 153.05 | K58: 149.45 | L58: 145.05 | M58: 7.7808
A59: 50 | B59: CENTRALBK | C59: 28.6 | D59: 28.65 | E59: 28.20 | F59: 27.80 | G59: 27.35 | H59: 29.05 | I59: 29.50 | J59: 29.90 | K59: 29.1 | L59: 28.25 | M59: 1.63137
A60: 51 | B60: CENTURYTEX | C60: 736.35 | D60: 740.85 | E60: 726.10 | F60: 715.85 | G60: 701.10 | H60: 751.10 | I60: 765.85 | J60: 776.10 | K60: 755.6 | L60: 730.6 | M60: 4.67639
A61: 52 | B61: CHOLAFIN | C61: 1208 | D61: 1212.23 | E61: 1192.72 | F61: 1177.43 | G61: 1157.92 | H61: 1227.52 | I61: 1247.03 | J61: 1262.32 | K61: 1231.75 | L61: 1196.95 | M61: 1.985
A62: 53 | B62: CIPLA | C62: 543.3 | D62: 541.68 | E62: 537.47 | F62: 531.63 | G62: 527.42 | H62: 547.52 | I62: 551.73 | J62: 557.57 | K62: 545.9 | L62: 535.85 | M62: 29.89919
A63: 54 | B63: COALINDIA | C63: 218.8 | D63: 217.77 | E63: 215.18 | F63: 211.57 | G63: 208.98 | H63: 221.38 | I63: 223.97 | J63: 227.58 | K63: 220.35 | L63: 214.15 | M63: 45.80373
A64: 55 | B64: COLPAL | C64: 1285.8 | D64: 1284.77 | E64: 1272.53 | F64: 1259.27 | G64: 1247.03 | H64: 1298.03 | I64: 1310.27 | J64: 1323.53 | K64: 1297 | L64: 1271.5 | M64: 4.00561
A65: 56 | B65: CONCOR | C65: 520.65 | D65: 517.05 | E65: 511.70 | F65: 502.75 | G65: 497.40 | H65: 526.00 | I65: 531.35 | J65: 540.30 | K65: 522.4 | L65: 508.1 | M65: 6.04859
A66: 57 | B66: COROMANDEL | C66: 458.7 | D66: 457.00 | E66: 455.00 | F66: 451.30 | G66: 449.30 | H66: 460.70 | I66: 462.70 | J66: 466.40 | K66: 459 | L66: 453.3 | M66: 0.5896
A67: 58 | B67: CROMPTON | C67: 212.1 | D67: 212.78 | E67: 209.87 | F67: 207.63 | G67: 204.72 | H67: 215.02 | I67: 217.93 | J67: 220.17 | K67: 215.7 | L67: 210.55 | M67: 2.74611
A68: 59 | B68: CUMMINSIND | C68: 726.25 | D68: 730.27 | E68: 713.53 | F68: 700.82 | G68: 684.08 | H68: 742.98 | I68: 759.72 | J68: 772.43 | K68: 747 | L68: 717.55 | M68: 19.41588
A69: 60 | B69: DLF | C69: 163.7 | D69: 163.58 | E69: 161.22 | F69: 158.73 | G69: 156.37 | H69: 166.07 | I69: 168.43 | J69: 170.92 | K69: 165.95 | L69: 161.1 | M69: 52.6934
A70: 61 | B70: DABUR | C70: 448.95 | D70: 447.75 | E70: 443.00 | F70: 437.05 | G70: 432.30 | H70: 453.70 | I70: 458.45 | J70: 464.40 | K70: 452.5 | L70: 441.8 | M70: 12.08431
A71: 62 | B71: DHFL | C71: 104.85 | D71: 105.87 | E71: 102.08 | F71: 99.32 | G71: 95.53 | H71: 108.63 | I71: 112.42 | J71: 115.18 | K71: 109.65 | L71: 103.1 | M71: 181.7758
A72: 63 | B72: DISHTV | C72: 29.8 | D72: 29.77 | E72: 29.08 | F72: 28.37 | G72: 27.68 | H72: 30.48 | I72: 31.17 | J72: 31.88 | K72: 30.45 | L72: 29.05 | M72: 216.83447
A73: 64 | B73: DIVISLAB | C73: 1635 | D73: 1647.00 | E73: 1614.00 | F73: 1593.00 | G73: 1560.00 | H73: 1668.00 | I73: 1701.00 | J73: 1722.00 | K73: 1680 | L73: 1626 | M73: 8.80642
A74: 65 | B74: LALPATHLAB | C74: 1030.55 | D74: 1049.22 | E74: 1002.43 | F74: 974.32 | G74: 927.53 | H74: 1077.33 | I74: 1124.12 | J74: 1152.23 | K74: 1096 | L74: 1021.1 | M74: 0.35116
A75: 66 | B75: DRREDDY | C75: 2615.35 | D75: 2627.55 | E75: 2547.15 | F75: 2478.95 | G75: 2398.55 | H75: 2695.75 | I75: 2776.15 | J75: 2844.35 | K75: 2707.95 | L75: 2559.35 | M75: 18.95462
A76: 67 | B76: EDELWEISS | C76: 134.85 | D76: 135.68 | E76: 132.57 | F76: 130.28 | G76: 127.17 | H76: 137.97 | I76: 141.08 | J76: 143.37 | K76: 138.8 | L76: 133.4 | M76: 23.10535
A77: 68 | B77: EICHERMOT | C77: 20753.15 | D77: 20847.90 | E77: 20236.25 | F77: 19719.35 | G77: 19107.70 | H77: 21364.80 | I77: 21976.45 | J77: 22493.35 | K77: 21459.55 | L77: 20331 | M77: 2.61982
A78: 69 | B78: EMAMILTD | C78: 369.2 | D78: 363.70 | E78: 341.70 | F78: 314.20 | G78: 292.20 | H78: 391.20 | I78: 413.20 | J78: 440.70 | K78: 385.7 | L78: 336.2 | M78: 18.13844
A79: 70 | B79: ENDURANCE | C79: 1272.55 | D79: 1273.33 | E79: 1252.27 | F79: 1231.98 | G79: 1210.92 | H79: 1293.62 | I79: 1314.68 | J79: 1334.97 | K79: 1294.4 | L79: 1253.05 | M79: 0.83247
A80: 71 | B80: ENGINERSIN | C80: 109 | D80: 109.03 | E80: 106.17 | F80: 103.33 | G80: 100.47 | H80: 111.87 | I80: 114.73 | J80: 117.57 | K80: 111.9 | L80: 106.2 | M80: 14.17984
A81: 72 | B81: EXIDEIND | C81: 208.65 | D81: 208.53 | E81: 205.12 | F81: 201.58 | G81: 198.17 | H81: 212.07 | I81: 215.48 | J81: 219.02 | K81: 211.95 | L81: 205 | M81: 25.71374
A82: 73 | B82: FEDERALBNK | C82: 83.45 | D82: 83.15 | E82: 82.00 | F82: 80.55 | G82: 79.40 | H82: 84.60 | I82: 85.75 | J82: 87.20 | K82: 84.3 | L82: 81.7 | M82: 83.81436
A83: 74 | B83: GAIL | C83: 328.4 | D83: 329.38 | E83: 323.37 | F83: 318.33 | G83: 312.32 | H83: 334.42 | I83: 340.43 | J83: 345.47 | K83: 335.4 | L83: 324.35 | M83: 32.72495
A84: 75 | B84: GMRINFRA | C84: 14.8 | D84: 14.60 | E84: 14.25 | F84: 13.70 | G84: 13.35 | H84: 15.15 | I84: 15.50 | J84: 16.05 | K84: 14.95 | L84: 14.05 | M84: 296.47326
A85: 76 | B85: GSKCONS | C85: 7559.7 | D85: 7557.78 | E85: 7495.67 | F85: 7431.63 | G85: 7369.52 | H85: 7621.82 | I85: 7683.93 | J85: 7747.97 | K85: 7619.9 | L85: 7493.75 | M85: 0.04603
A86: 77 | B86: GLAXO | C86: 1388.05 | D86: 1392.97 | E86: 1380.08 | F86: 1372.12 | G86: 1359.23 | H86: 1400.93 | I86: 1413.82 | J86: 1421.78 | K86: 1405.85 | L86: 1385 | M86: 0.07467
A87: 78 | B87: GLENMARK | C87: 602.65 | D87: 608.25 | E87: 592.40 | F87: 582.15 | G87: 566.30 | H87: 618.50 | I87: 634.35 | J87: 644.60 | K87: 624.1 | L87: 598 | M87: 6.28726
A88: 79 | B88: GODREJCP | C88: 698 | D88: 692.07 | E88: 681.13 | F88: 664.27 | G88: 653.33 | H88: 708.93 | I88: 719.87 | J88: 736.73 | K88: 703 | L88: 675.2 | M88: 21.20352
A89: 80 | B89: GODREJIND | C89: 490.45 | D89: 490.12 | E89: 482.33 | F89: 474.22 | G89: 466.43 | H89: 498.23 | I89: 506.02 | J89: 514.13 | K89: 497.9 | L89: 482 | M89: 2.93784
A90: 81 | B90: GRUH | C90: 245.3 | D90: 242.72 | E90: 239.18 | F90: 233.07 | G90: 229.53 | H90: 248.83 | I90: 252.37 | J90: 258.48 | K90: 246.25 | L90: 236.6 | M90: 5.52048
A91: 82 | B91: GPPL | C91: 81.15 | D91: 81.02 | E91: 80.13 | F91: 79.12 | G91: 78.23 | H91: 82.03 | I91: 82.92 | J91: 83.93 | K91: 81.9 | L91: 80 | M91: 5.47929
A92: 83 | B92: GSPL | C92: 166.15 | D92: 165.65 | E92: 163.55 | F92: 160.95 | G92: 158.85 | H92: 168.25 | I92: 170.35 | J92: 172.95 | K92: 167.75 | L92: 163.05 | M92: 4.16827
A93: 84 | B93: HCLTECH | C93: 1079.35 | D93: 1075.45 | E93: 1066.90 | F93: 1054.45 | G93: 1045.90 | H93: 1087.90 | I93: 1096.45 | J93: 1108.90 | K93: 1084 | L93: 1063 | M93: 15.78943
A94: 85 | B94: HDFCBANK | C94: 2139.65 | D94: 2131.95 | E94: 2121.00 | F94: 2102.35 | G94: 2091.40 | H94: 2150.60 | I94: 2161.55 | J94: 2180.20 | K94: 2142.9 | L94: 2113.3 | M94: 17.59091
A95: 86 | B95: HAVELLS | C95: 723.35 | D95: 728.23 | E95: 713.22 | F95: 703.08 | G95: 688.07 | H95: 738.37 | I95: 753.38 | J95: 763.52 | K95: 743.25 | L95: 718.1 | M95: 9.68286
A96: 87 | B96: HEROMOTOCO | C96: 2889.05 | D96: 2869.85 | E96: 2823.75 | F96: 2758.45 | G96: 2712.35 | H96: 2935.15 | I96: 2981.25 | J96: 3046.55 | K96: 2915.95 | L96: 2804.55 | M96: 4.78111
A97: 88 | B97: HEXAWARE | C97: 354.6 | D97: 354.30 | E97: 350.30 | F97: 346.00 | G97: 342.00 | H97: 358.60 | I97: 362.60 | J97: 366.90 | K97: 358.3 | L97: 350 | M97: 6.56642
A98: 89 | B98: HINDALCO | C98: 199.45 | D98: 200.00 | E98: 195.10 | F98: 190.75 | G98: 185.85 | H98: 204.35 | I98: 209.25 | J98: 213.60 | K98: 204.9 | L98: 195.65 | M98: 84.63393
A99: 90 | B99: HINDPETRO | C99: 231.6 | D99: 229.97 | E99: 226.43 | F99: 221.27 | G99: 217.73 | H99: 235.13 | I99: 238.67 | J99: 243.83 | K99: 233.5 | L99: 224.8 | M99: 36.03148
A100: 91 | B100: HINDUNILVR | C100: 1804.8 | D100: 1805.32 | E100: 1795.23 | F100: 1785.67 | G100: 1775.58 | H100: 1814.88 | I100: 1824.97 | J100: 1834.53 | K100: 1815.4 | L100: 1795.75 | M100: 7.97453
A101: 92 | B101: HINDZINC | C101: 249.45 | D101: 249.15 | E101: 246.05 | F101: 242.65 | G101: 239.55 | H101: 252.55 | I101: 255.65 | J101: 259.05 | K101: 252.25 | L101: 245.75 | M101: 7.08056
A102: 93 | B102: HUDCO | C102: 38.95 | D102: 39.13 | E102: 38.62 | F102: 38.28 | G102: 37.77 | H102: 39.47 | I102: 39.98 | J102: 40.32 | K102: 39.65 | L102: 38.8 | M102: 5.9894
A103: 94 | B103: HDFC | C103: 1948.2 | D103: 1947.60 | E103: 1936.20 | F103: 1924.20 | G103: 1912.80 | H103: 1959.60 | I103: 1971.00 | J103: 1983.00 | K103: 1959 | L103: 1935.6 | M103: 22.09258
A104: 95 | B104: ITC | C104: 277.1 | D104: 274.58 | E104: 270.97 | F104: 264.83 | G104: 261.22 | H104: 280.72 | I104: 284.33 | J104: 290.47 | K104: 278.2 | L104: 268.45 | M104: 99.52322
A105: 96 | B105: ICICIBANK | C105: 350.05 | D105: 351.27 | E105: 347.83 | F105: 345.62 | G105: 342.18 | H105: 353.48 | I105: 356.92 | J105: 359.13 | K105: 354.7 | L105: 349.05 | M105: 94.19635
A106: 97 | B106: ICICIPRULI | C106: 298.2 | D106: 302.75 | E106: 291.50 | F106: 284.80 | G106: 273.55 | H106: 309.45 | I106: 320.70 | J106: 327.40 | K106: 314 | L106: 296.05 | M106: 12.39764
A107: 98 | B107: IDBI | C107: 43.1 | D107: 43.05 | E107: 41.60 | F107: 40.10 | G107: 38.65 | H107: 44.55 | I107: 46.00 | J107: 47.50 | K107: 44.5 | L107: 41.55 | M107: 63.55587
A108: 99 | B108: IDFCFIRSTB | C108: 45 | D108: 44.58 | E108: 43.77 | F108: 42.53 | G108: 41.72 | H108: 45.82 | I108: 46.63 | J108: 47.87 | K108: 45.4 | L108: 43.35 | M108: 140.59474
A109: 100 | B109: IDFC | C109: 37.35 | D109: 37.58 | E109: 36.67 | F109: 35.98 | G109: 35.07 | H109: 38.27 | I109: 39.18 | J109: 39.87 | K109: 38.5 | L109: 36.9 | M109: 104.55201
A110: 101 | B110: IRB | C110: 125.25 | D110: 124.68 | E110: 121.72 | F110: 118.18 | G110: 115.22 | H110: 128.22 | I110: 131.18 | J110: 134.72 | K110: 127.65 | L110: 121.15 | M110: 21.29877
A111: 102 | B111: IDEA | C111: 31.15 | D111: 30.92 | E111: 29.83 | F111: 28.52 | G111: 27.43 | H111: 32.23 | I111: 33.32 | J111: 34.63 | K111: 32 | L111: 29.6 | M111: 219.53351
A112: 103 | B112: IBULHSGFIN | C112: 598.05 | D112: 593.10 | E112: 580.30 | F112: 562.55 | G112: 549.75 | H112: 610.85 | I112: 623.65 | J112: 641.40 | K112: 605.9 | L112: 575.35 | M112: 109.93491
A113: 104 | B113: INDIANB | C113: 206.35 | D113: 208.22 | E113: 202.63 | F113: 198.92 | G113: 193.33 | H113: 211.93 | I113: 217.52 | J113: 221.23 | K113: 213.8 | L113: 204.5 | M113: 12.52062
A114: 105 | B114: INDHOTEL | C114: 135.35 | D114: 136.32 | E114: 134.03 | F114: 132.72 | G114: 130.43 | H114: 137.63 | I114: 139.92 | J114: 141.23 | K114: 138.6 | L114: 135 | M114: 6.26022
A115: 106 | B115: IOC | C115: 135.85 | D115: 134.67 | E115: 131.78 | F115: 127.72 | G115: 124.83 | H115: 138.73 | I115: 141.62 | J115: 145.68 | K115: 137.55 | L115: 130.6 | M115: 113.00239
A116: 107 | B116: IGL | C116: 273.85 | D116: 278.67 | E116: 265.33 | F116: 256.82 | G116: 243.48 | H116: 287.18 | I116: 300.52 | J116: 309.03 | K116: 292 | L116: 270.15 | M116: 31.06822
A117: 108 | B117: INDUSINDBK | C117: 1511 | D117: 1503.67 | E117: 1489.33 | F117: 1467.67 | G117: 1453.33 | H117: 1525.33 | I117: 1539.67 | J117: 1561.33 | K117: 1518 | L117: 1482 | M117: 13.87113
A118: 109 | B118: NAUKRI | C118: 1708.65 | D118: 1728.12 | E118: 1663.23 | F118: 1617.82 | G118: 1552.93 | H118: 1773.53 | I118: 1838.42 | J118: 1883.83 | K118: 1793 | L118: 1682.7 | M118: 4.17511
A119: 110 | B119: INFY | C119: 762.8 | D119: 763.52 | E119: 758.28 | F119: 753.77 | G119: 748.53 | H119: 768.03 | I119: 773.27 | J119: 777.78 | K119: 768.75 | L119: 759 | M119: 55.00216
A120: 111 | B120: INDIGO | C120: 1187.05 | D120: 1183.38 | E120: 1167.67 | F120: 1148.28 | G120: 1132.57 | H120: 1202.77 | I120: 1218.48 | J120: 1237.87 | K120: 1199.1 | L120: 1164 | M120: 5.55853
A121: 112 | B121: IPCALAB | C121: 730.65 | D121: 733.83 | E121: 718.92 | F121: 707.18 | G121: 692.27 | H121: 745.57 | I121: 760.48 | J121: 772.22 | K121: 748.75 | L121: 722.1 | M121: 1.92668
A122: 113 | B122: JSWENERGY | C122: 66.85 | D122: 66.87 | E122: 66.13 | F122: 65.42 | G122: 64.68 | H122: 67.58 | I122: 68.32 | J122: 69.03 | K122: 67.6 | L122: 66.15 | M122: 5.26467
A123: 114 | B123: JSWSTEEL | C123: 261.6 | D123: 261.40 | E123: 256.80 | F123: 252.00 | G123: 247.40 | H123: 266.20 | I123: 270.80 | J123: 275.60 | K123: 266 | L123: 256.6 | M123: 52.2818
A124: 115 | B124: JINDALSTEL | C124: 128.7 | D124: 128.05 | E124: 124.90 | F124: 121.10 | G124: 117.95 | H124: 131.85 | I124: 135.00 | J124: 138.80 | K124: 131.2 | L124: 124.25 | M124: 101.48468
A125: 116 | B125: JUBLFOOD | C125: 1319.55 | D125: 1325.42 | E125: 1297.33 | F125: 1275.12 | G125: 1247.03 | H125: 1347.63 | I125: 1375.72 | J125: 1397.93 | K125: 1353.5 | L125: 1303.2 | M125: 15.10329
A126: 117 | B126: JUBILANT | C126: 750.5 | D126: 751.10 | E126: 740.40 | F126: 730.30 | G126: 719.60 | H126: 761.20 | I126: 771.90 | J126: 782.00 | K126: 761.8 | L126: 741 | M126: 2.30682
A127: 118 | B127: KARURVYSYA | C127: 85.45 | D127: 85.38 | E127: 84.77 | F127: 84.08 | G127: 83.47 | H127: 86.07 | I127: 86.68 | J127: 87.37 | K127: 86 | L127: 84.7 | M127: 6.90755
A128: 119 | B128: KOTAKBANK | C128: 1301.55 | D128: 1303.52 | E128: 1292.03 | F128: 1282.52 | G128: 1271.03 | H128: 1313.03 | I128: 1324.52 | J128: 1334.03 | K128: 1315 | L128: 1294 | M128: 31.44675
A129: 120 | B129: L&TFH | C129: 125.65 | D129: 126.15 | E129: 123.30 | F129: 120.95 | G129: 118.10 | H129: 128.50 | I129: 131.35 | J129: 133.70 | K129: 129 | L129: 123.8 | M129: 44.30011
A130: 121 | B130: LICHSGFIN | C130: 446.8 | D130: 451.48 | E130: 440.37 | F130: 433.93 | G130: 422.82 | H130: 457.92 | I130: 469.03 | J130: 475.47 | K130: 462.6 | L130: 445.05 | M130: 49.32521
A131: 122 | B131: LT | C131: 1246.5 | D131: 1242.17 | E131: 1225.33 | F131: 1204.17 | G131: 1187.33 | H131: 1263.33 | I131: 1280.17 | J131: 1301.33 | K131: 1259 | L131: 1221 | M131: 29.81408
A132: 123 | B132: LUPIN | C132: 820.5 | D132: 819.42 | E132: 809.08 | F132: 797.67 | G132: 787.33 | H132: 830.83 | I132: 841.17 | J132: 852.58 | K132: 829.75 | L132: 808 | M132: 16.8939
A133: 124 | B133: MRF | C133: 55345.6 | D133: 55656.87 | E133: 54413.73 | F133: 53481.87 | G133: 52238.73 | H133: 56588.73 | I133: 57831.87 | J133: 58763.73 | K133: 56900 | L133: 54725 | M133: 0.14323
A134: 125 | B134: MGL | C134: 916.4 | D134: 921.77 | E134: 904.63 | F134: 892.87 | G134: 875.73 | H134: 933.53 | I134: 950.67 | J134: 962.43 | K134: 938.9 | L134: 910 | M134: 5.32158
A135: 126 | B135: M&MFIN | C135: 388.7 | D135: 390.57 | E135: 383.13 | F135: 377.57 | G135: 370.13 | H135: 396.13 | I135: 403.57 | J135: 409.13 | K135: 398 | L135: 385 | M135: 15.06057
A136: 127 | B136: M&M | C136: 647.55 | D136: 655.38 | E136: 637.37 | F136: 627.18 | G136: 609.17 | H136: 665.57 | I136: 683.58 | J136: 693.77 | K136: 673.4 | L136: 645.2 | M136: 79.31599
A137: 128 | B137: MANAPPURAM | C137: 101.65 | D137: 102.18 | E137: 100.17 | F137: 98.68 | G137: 96.67 | H137: 103.67 | I137: 105.68 | J137: 107.17 | K137: 104.2 | L137: 100.7 | M137: 28.48995
A138: 129 | B138: MRPL | C138: 63.8 | D138: 63.90 | E138: 63.00 | F138: 62.20 | G138: 61.30 | H138: 64.70 | I138: 65.60 | J138: 66.40 | K138: 64.8 | L138: 63.1 | M138: 4.81107
A139: 130 | B139: MARICO | C139: 362.35 | D139: 362.68 | E139: 358.52 | F139: 354.68 | G139: 350.52 | H139: 366.52 | I139: 370.68 | J139: 374.52 | K139: 366.85 | L139: 358.85 | M139: 3.63715
A140: 131 | B140: MARUTI | C140: 7177.9 | D140: 7146.32 | E140: 7082.68 | F140: 6987.47 | G140: 6923.83 | H140: 7241.53 | I140: 7305.17 | J140: 7400.38 | K140: 7209.95 | L140: 7051.1 | M140: 5.02244
A141: 132 | B141: MFSL | C141: 377 | D141: 381.93 | E141: 365.82 | F141: 354.63 | G141: 338.52 | H141: 393.12 | I141: 409.23 | J141: 420.42 | K141: 398.05 | L141: 370.75 | M141: 9.12956
A142: 133 | B142: MINDTREE | C142: 918.05 | D142: 910.38 | E142: 898.77 | F142: 879.48 | G142: 867.87 | H142: 929.67 | I142: 941.28 | J142: 960.57 | K142: 922 | L142: 891.1 | M142: 22.45228
A143: 134 | B143: MOTHERSUMI | C143: 132.7 | D143: 134.70 | E143: 128.50 | F143: 124.30 | G143: 118.10 | H143: 138.90 | I143: 145.10 | J143: 149.30 | K143: 140.9 | L143: 130.5 | M143: 175.24164
A144: 135 | B144: MPHASIS | C144: 996.65 | D144: 1002.67 | E144: 981.33 | F144: 966.02 | G144: 944.68 | H144: 1017.98 | I144: 1039.32 | J144: 1054.63 | K144: 1024 | L144: 987.35 | M144: 2.40162
A145: 136 | B145: MUTHOOTFIN | C145: 505.1 | D145: 509.43 | E145: 498.12 | F145: 491.13 | G145: 479.82 | H145: 516.42 | I145: 527.73 | J145: 534.72 | K145: 520.75 | L145: 502.45 | M145: 9.10606
A146: 137 | B146: NATCOPHARM | C146: 672.85 | D146: 675.28 | E146: 667.57 | F146: 662.28 | G146: 654.57 | H146: 680.57 | I146: 688.28 | J146: 693.57 | K146: 683 | L146: 670 | M146: 0.89306
A147: 138 | B147: NBCC | C147: 53.35 | D147: 53.75 | E147: 52.40 | F147: 51.45 | G147: 50.10 | H147: 54.70 | I147: 56.05 | J147: 57.00 | K147: 55.1 | L147: 52.8 | M147: 45.33423
A148: 139 | B148: NHPC | C148: 23.45 | D148: 23.30 | E148: 22.65 | F148: 21.85 | G148: 21.20 | H148: 24.10 | I148: 24.75 | J148: 25.55 | K148: 23.95 | L148: 22.5 | M148: 75.33194
A149: 140 | B149: NMDC | C149: 94.15 | D149: 94.00 | E149: 92.90 | F149: 91.65 | G149: 90.55 | H149: 95.25 | I149: 96.35 | J149: 97.60 | K149: 95.1 | L149: 92.75 | M149: 45.7869
A150: 141 | B150: NTPC | C150: 130.35 | D150: 130.75 | E150: 128.20 | F150: 126.05 | G150: 123.50 | H150: 132.90 | I150: 135.45 | J150: 137.60 | K150: 133.3 | L150: 128.6 | M150: 109.39054
A151: 142 | B151: NATIONALUM | C151: 54.1 | D151: 55.22 | E151: 52.23 | F151: 50.37 | G151: 47.38 | H151: 57.08 | I151: 60.07 | J151: 61.93 | K151: 58.2 | L151: 53.35 | M151: 209.64801
A152: 143 | B152: OBEROIRLTY | C152: 441.8 | D152: 443.48 | E152: 438.27 | F152: 434.73 | G152: 429.52 | H152: 447.02 | I152: 452.23 | J152: 455.77 | K152: 448.7 | L152: 439.95 | M152: 0.62339
A153: 144 | B153: ONGC | C153: 138.2 | D153: 139.65 | E153: 135.65 | F153: 133.10 | G153: 129.10 | H153: 142.20 | I153: 146.20 | J153: 148.75 | K153: 143.65 | L153: 137.1 | M153: 64.24512
A154: 145 | B154: OIL | C154: 170.35 | D154: 170.18 | E154: 168.67 | F154: 166.98 | G154: 165.47 | H154: 171.87 | I154: 173.38 | J154: 175.07 | K154: 171.7 | L154: 168.5 | M154: 8.15309
A155: 146 | B155: OFSS | C155: 3788.4 | D155: 3785.67 | E155: 3722.33 | F155: 3656.27 | G155: 3592.93 | H155: 3851.73 | I155: 3915.07 | J155: 3981.13 | K155: 3849 | L155: 3719.6 | M155: 0.24154
A156: 147 | B156: PCJEWELLER | C156: 68.7 | D156: 70.12 | E156: 64.93 | F156: 61.17 | G156: 55.98 | H156: 73.88 | I156: 79.07 | J156: 82.83 | K156: 75.3 | L156: 66.35 | M156: 338.68613
A157: 148 | B157: PIIND | C157: 837.3 | D157: 836.40 | E157: 825.20 | F157: 813.10 | G157: 801.90 | H157: 848.50 | I157: 859.70 | J157: 871.80 | K157: 847.6 | L157: 824.3 | M157: 0.14519
A158: 149 | B158: PNBHOUSING | C158: 950.4 | D158: 943.83 | E158: 917.62 | F158: 884.83 | G158: 858.62 | H158: 976.62 | I158: 1002.83 | J158: 1035.62 | K158: 970.05 | L158: 911.05 | M158: 0.86999
A159: 150 | B159: PAGEIND | C159: 23609.65 | D159: 23571.48 | E159: 23349.17 | F159: 23088.68 | G159: 22866.37 | H159: 23831.97 | I159: 24054.28 | J159: 24314.77 | K159: 23793.8 | L159: 23311 | M159: 0.16211
A160: 151 | B160: PETRONET | C160: 224.8 | D160: 224.83 | E160: 222.97 | F160: 221.13 | G160: 219.27 | H160: 226.67 | I160: 228.53 | J160: 230.37 | K160: 226.7 | L160: 223 | M160: 23.20551
A161: 152 | B161: PIDILITIND | C161: 1125.55 | D161: 1134.90 | E161: 1107.90 | F161: 1090.25 | G161: 1063.25 | H161: 1152.55 | I161: 1179.55 | J161: 1197.20 | K161: 1161.9 | L161: 1117.25 | M161: 2.96657
A162: 153 | B162: PEL | C162: 2119.25 | D162: 2132.75 | E162: 2074.50 | F162: 2029.75 | G162: 1971.50 | H162: 2177.50 | I162: 2235.75 | J162: 2280.50 | K162: 2191 | L162: 2088 | M162: 5.38568
A163: 154 | B163: PFC | C163: 99.5 | D163: 99.92 | E163: 97.58 | F163: 95.67 | G163: 93.33 | H163: 101.83 | I163: 104.17 | J163: 106.08 | K163: 102.25 | L163: 98 | M163: 102.5137
A164: 155 | B164: POWERGRID | C164: 182.35 | D164: 181.13 | E164: 179.07 | F164: 175.78 | G164: 173.72 | H164: 184.42 | I164: 186.48 | J164: 189.77 | K164: 183.2 | L164: 177.85 | M164: 44.51317
A165: 156 | B165: PRESTIGE | C165: 200.35 | D165: 199.45 | E165: 197.40 | F165: 194.45 | G165: 192.40 | H165: 202.40 | I165: 204.45 | J165: 207.40 | K165: 201.5 | L165: 196.5 | M165: 1.68815
A166: 157 | B166: PGHH | C166: 10118.8 | D166: 10097.93 | E166: 9995.87 | F166: 9872.93 | G166: 9770.87 | H166: 10220.87 | I166: 10322.93 | J166: 10445.87 | K166: 10200 | L166: 9975 | M166: 0.0345
A167: 158 | B167: PNB | C167: 70.85 | D167: 70.87 | E167: 70.28 | F167: 69.72 | G167: 69.13 | H167: 71.43 | I167: 72.02 | J167: 72.58 | K167: 71.45 | L167: 70.3 | M167: 183.2273
A168: 159 | B168: RBLBANK | C168: 564.6 | D168: 566.77 | E168: 557.58 | F168: 550.57 | G168: 541.38 | H168: 573.78 | I168: 582.97 | J168: 589.98 | K168: 575.95 | L168: 559.75 | M168: 10.9083
A169: 160 | B169: RAJESHEXPO | C169: 569.5 | D169: 572.15 | E169: 565.60 | F169: 561.70 | G169: 555.15 | H169: 576.05 | I169: 582.60 | J169: 586.50 | K169: 578.7 | L169: 568.25 | M169: 7.02527
A170: 161 | B170: RELCAPITAL | C170: 135.05 | D170: 134.55 | E170: 130.50 | F170: 125.95 | G170: 121.90 | H170: 139.10 | I170: 143.15 | J170: 147.70 | K170: 138.6 | L170: 130 | M170: 240.51638
A171: 162 | B171: RCOM | C171: 5.35 | D171: 5.43 | E171: 5.12 | F171: 4.88 | G171: 4.57 | H171: 5.67 | I171: 5.98 | J171: 6.22 | K171: 5.75 | L171: 5.2 | M171: 625.23776
A172: 163 | B172: RELIANCE | C172: 1253.25 | D172: 1260.08 | E172: 1244.17 | F172: 1235.08 | G172: 1219.17 | H172: 1269.17 | I172: 1285.08 | J172: 1294.17 | K172: 1276 | L172: 1251 | M172: 75.23999
A173: 164 | B173: RELINFRA | C173: 115.5 | D173: 118.57 | E173: 110.43 | F173: 105.37 | G173: 97.23 | H173: 123.63 | I173: 131.77 | J173: 136.83 | K173: 126.7 | L173: 113.5 | M173: 300.15871
A174: 165 | B174: RPOWER | C174: 11.05 | D174: 11.20 | E174: 10.60 | F174: 10.15 | G174: 9.55 | H174: 11.65 | I174: 12.25 | J174: 12.70 | K174: 11.8 | L174: 10.75 | M174: 578.77825
A175: 166 | B175: RECLTD | C175: 119.2 | D175: 118.75 | E175: 117.00 | F175: 114.80 | G175: 113.05 | H175: 120.95 | I175: 122.70 | J175: 124.90 | K175: 120.5 | L175: 116.55 | M175: 51.33323
A176: 167 | B176: SRF | C176: 2209.05 | D176: 2198.25 | E176: 2167.50 | F176: 2125.95 | G176: 2095.20 | H176: 2239.80 | I176: 2270.55 | J176: 2312.10 | K176: 2229 | L176: 2156.7 | M176: 3.08214
A177: 168 | B177: SHREECEM | C177: 15963.35 | D177: 15992.82 | E177: 15795.63 | F177: 15627.92 | G177: 15430.73 | H177: 16160.53 | I177: 16357.72 | J177: 16525.43 | K177: 16190 | L177: 15825.1 | M177: 0.11517
A178: 169 | B178: SRTRANSFIN | C178: 1056.25 | D178: 1064.45 | E178: 1041.90 | F178: 1027.55 | G178: 1005.00 | H178: 1078.80 | I178: 1101.35 | J178: 1115.70 | K178: 1087 | L178: 1050.1 | M178: 4.55117
A179: 170 | B179: SIEMENS | C179: 1029.8 | D179: 1020.27 | E179: 1000.53 | F179: 971.27 | G179: 951.53 | H179: 1049.53 | I179: 1069.27 | J179: 1098.53 | K179: 1040 | L179: 991 | M179: 6.35815
A180: 171 | B180: SBIN | C180: 280.5 | D180: 282.15 | E180: 278.35 | F180: 276.20 | G180: 272.40 | H180: 284.30 | I180: 288.10 | J180: 290.25 | K180: 285.95 | L180: 280 | M180: 154.20017
A181: 172 | B181: SAIL | C181: 44.8 | D181: 44.73 | E181: 44.12 | F181: 43.43 | G181: 42.82 | H181: 45.42 | I181: 46.03 | J181: 46.72 | K181: 45.35 | L181: 44.05 | M181: 179.45762
A182: 173 | B182: SPARC | C182: 152.1 | D182: 150.30 | E182: 145.80 | F182: 139.50 | G182: 135.00 | H182: 156.60 | I182: 161.10 | J182: 167.40 | K182: 154.8 | L182: 144 | M182: 11.80587
A183: 174 | B183: SUNPHARMA | C183: 428.55 | D183: 427.67 | E183: 421.73 | F183: 414.92 | G183: 408.98 | H183: 434.48 | I183: 440.42 | J183: 447.23 | K183: 433.6 | L183: 420.85 | M183: 49.45054
A184: 175 | B184: SUNTV | C184: 574.05 | D184: 562.02 | E184: 547.33 | F184: 520.62 | G184: 505.93 | H184: 588.73 | I184: 603.42 | J184: 630.13 | K184: 576.7 | L184: 535.3 | M184: 123.31734
A185: 176 | B185: SUZLON | C185: 3.45 | D185: 3.48 | E185: 3.17 | F185: 2.88 | G185: 2.57 | H185: 3.77 | I185: 4.08 | J185: 4.37 | K185: 3.8 | L185: 3.2 | M185: 299.13592
A186: 177 | B186: SYNDIBANK | C186: 32.55 | D186: 32.70 | E186: 32.05 | F186: 31.55 | G186: 30.90 | H186: 33.20 | I186: 33.85 | J186: 34.35 | K186: 33.35 | L186: 32.2 | M186: 28.46894
A187: 178 | B187: SYNGENE | C187: 601.25 | D187: 604.45 | E187: 589.90 | F187: 578.55 | G187: 564.00 | H187: 615.80 | I187: 630.35 | J187: 641.70 | K187: 619 | L187: 593.1 | M187: 2.07
A188: 179 | B188: TV18BRDCST | C188: 32.45 | D188: 32.23 | E188: 31.82 | F188: 31.18 | G188: 30.77 | H188: 32.87 | I188: 33.28 | J188: 33.92 | K188: 32.65 | L188: 31.6 | M188: 28.47835
A189: 180 | B189: TVSMOTOR | C189: 487.95 | D189: 486.50 | E189: 481.05 | F189: 474.15 | G189: 468.70 | H189: 493.40 | I189: 498.85 | J189: 505.75 | K189: 491.95 | L189: 479.6 | M189: 7.00436
A190: 181 | B190: TATACHEM | C190: 585.05 | D190: 587.60 | E190: 577.45 | F190: 569.85 | G190: 559.70 | H190: 595.20 | I190: 605.35 | J190: 612.95 | K190: 597.75 | L190: 580 | M190: 11.06212
A191: 182 | B191: TATACOMM | C191: 482.3 | D191: 481.77 | E191: 475.58 | F191: 468.87 | G191: 462.68 | H191: 488.48 | I191: 494.67 | J191: 501.38 | K191: 487.95 | L191: 475.05 | M191: 2.45695
A192: 183 | B192: TCS | C192: 2065.9 | D192: 2070.27 | E192: 2044.53 | F192: 2023.17 | G192: 1997.43 | H192: 2091.63 | I192: 2117.37 | J192: 2138.73 | K192: 2096 | L192: 2048.9 | M192: 17.7873
A193: 184 | B193: TATAGLOBAL | C193: 179.75 | D193: 180.93 | E193: 175.87 | F193: 171.98 | G193: 166.92 | H193: 184.82 | I193: 189.88 | J193: 193.77 | K193: 186 | L193: 177.05 | M193: 34.60117
A194: 185 | B194: TATAMTRDVR | C194: 81.4 | D194: 80.62 | E194: 79.43 | F194: 77.47 | G194: 76.28 | H194: 82.58 | I194: 83.77 | J194: 85.73 | K194: 81.8 | L194: 78.65 | M194: 37.66708
A195: 186 | B195: TATAMOTORS | C195: 152.65 | D195: 150.58 | E195: 147.92 | F195: 143.18 | G195: 140.52 | H195: 155.32 | I195: 157.98 | J195: 162.72 | K195: 153.25 | L195: 145.85 | M195: 261.61867
A196: 187 | B196: TATAPOWER | C196: 65.55 | D196: 66.38 | E196: 64.32 | F196: 63.08 | G196: 61.02 | H196: 67.62 | I196: 69.68 | J196: 70.92 | K196: 68.45 | L196: 65.15 | M196: 70.41255
A197: 188 | B197: TATASTEEL | C197: 480.7 | D197: 476.00 | E197: 465.00 | F197: 449.30 | G197: 438.30 | H197: 491.70 | I197: 502.70 | J197: 518.40 | K197: 487 | L197: 460.3 | M197: 232.62314
A198: 189 | B198: TECHM | C198: 809.4 | D198: 809.10 | E198: 804.30 | F198: 799.20 | G198: 794.40 | H198: 814.20 | I198: 819.00 | J198: 824.10 | K198: 813.9 | L198: 804 | M198: 25.41742
A199: 190 | B199: RAMCOCEM | C199: 600.5 | D199: 601.83 | E199: 590.67 | F199: 580.83 | G199: 569.67 | H199: 611.67 | I199: 622.83 | J199: 632.67 | K199: 613 | L199: 592 | M199: 2.66526
A200: 191 | B200: TITAN | C200: 1056.4 | D200: 1055.03 | E200: 1046.57 | F200: 1036.73 | G200: 1028.27 | H200: 1064.87 | I200: 1073.33 | J200: 1083.17 | K200: 1063.5 | L200: 1045.2 | M200: 10.57548
A201: 192 | B201: TORNTPHARM | C201: 1798.9 | D201: 1795.98 | E201: 1777.47 | F201: 1756.03 | G201: 1737.52 | H201: 1817.42 | I201: 1835.93 | J201: 1857.37 | K201: 1814.5 | L201: 1774.55 | M201: 1.42796
A202: 193 | B202: TORNTPOWER | C202: 235.95 | D202: 238.22 | E202: 232.73 | F202: 229.52 | G202: 224.03 | H202: 241.43 | I202: 246.92 | J202: 250.13 | K202: 243.7 | L202: 235 | M202: 11.86958
A203: 194 | B203: UPL | C203: 805.85 | D203: 807.43 | E203: 799.87 | F203: 793.88 | G203: 786.32 | H203: 813.42 | I203: 820.98 | J203: 826.97 | K203: 815 | L203: 801.45 | M203: 11.5953
A204: 195 | B204: ULTRACEMCO | C204: 3449.4 | D204: 3485.03 | E204: 3404.47 | F204: 3359.53 | G204: 3278.97 | H204: 3529.97 | I204: 3610.53 | J204: 3655.47 | K204: 3565.6 | L204: 3440.1 | M204: 2.06491
A205: 196 | B205: UNIONBANK | C205: 72.15 | D205: 72.15 | E205: 71.25 | F205: 70.35 | G205: 69.45 | H205: 73.05 | I205: 73.95 | J205: 74.85 | K205: 73.05 | L205: 71.25 | M205: 81.49862
... 29 more rows

Sheet MidCap Intra
L5: Back To Main Page
A6: FOR INTRA DAY TRADING | K6: =Main!B10 -> 2019-02-12
A9: Sr.no | B9: Scrip | C9: CLOSE RATE | D9: Pivot Point | E9: Supports | H9: Resistances
C10: Point | E10: S1 | F10: S2 | G10: S3 | H10: R1 | I10: R2 | J10: R3 | K10: HIGH | L10: LOW | M10: Total Trade Quanity in Lakhs
A11: 1 | B11: 3MINDIA | C11: 21619.2 | D11: 21531.83 | E11: 21288.67 | F11: 20958.13 | G11: 20714.97 | H11: 21862.37 | I11: 22105.53 | J11: 22436.07 | K11: 21775 | L11: 21201.3 | M11: 0.01734
A12: 2 | B12: 8KMILES | C12: 111 | D12: 112.47 | E12: 106.93 | F12: 102.87 | G12: 97.33 | H12: 116.53 | I12: 122.07 | J12: 126.13 | K12: 118 | L12: 108.4 | M12: 1.50448
A13: 3 | B13: AARTIIND | C13: 1541.65 | D13: 1548.58 | E13: 1523.17 | F13: 1504.68 | G13: 1479.27 | H13: 1567.07 | I13: 1592.48 | J13: 1610.97 | K13: 1574 | L13: 1530.1 | M13: 0.60601
A14: 4 | B14: ABAN | C14: 49.3 | D14: 49.88 | E14: 47.92 | F14: 46.53 | G14: 44.57 | H14: 51.27 | I14: 53.23 | J14: 54.62 | K14: 51.85 | L14: 48.5 | M14: 4.52183
A15: 5 | B15: ABB | C15: 1233.8 | D15: 1238.93 | E15: 1215.87 | F15: 1197.93 | G15: 1174.87 | H15: 1256.87 | I15: 1279.93 | J15: 1297.87 | K15: 1262 | L15: 1221 | M15: 0.50593
A16: 6 | B16: ABCAPITAL | C16: 79.1 | D16: 80.13 | E16: 77.97 | F16: 76.83 | G16: 74.67 | H16: 81.27 | I16: 83.43 | J16: 84.57 | K16: 82.3 | L16: 79 | M16: 15.39262
A17: 7 | B17: ABFRL | C17: 211.1 | D17: 210.85 | E17: 209.70 | F17: 208.30 | G17: 207.15 | H17: 212.25 | I17: 213.40 | J17: 214.80 | K17: 212 | L17: 209.45 | M17: 5.86752
A18: 8 | B18: ACC | C18: 1368.3 | D18: 1377.38 | E18: 1355.32 | F18: 1342.33 | G18: 1320.27 | H18: 1390.37 | I18: 1412.43 | J18: 1425.42 | K18: 1399.45 | L18: 1364.4 | M18: 11.33028
A19: 9 | B19: ADANIPORTS | C19: 328.8 | D19: 327.05 | E19: 320.15 | F19: 311.50 | G19: 304.60 | H19: 335.70 | I19: 342.60 | J19: 351.25 | K19: 333.95 | L19: 318.4 | M19: 37.83848
A20: 10 | B20: ADANIPOWER | C20: 34.7 | D20: 34.73 | E20: 33.32 | F20: 31.93 | G20: 30.52 | H20: 36.12 | I20: 37.53 | J20: 38.92 | K20: 36.15 | L20: 33.35 | M20: 117.90819
A21: 11 | B21: ADANITRANS | C21: 215.3 | D21: 215.88 | E21: 213.97 | F21: 212.63 | G21: 210.72 | H21: 217.22 | I21: 219.13 | J21: 220.47 | K21: 217.8 | L21: 214.55 | M21: 1.94096
A22: 12 | B22: ADVENZYMES | C22: 154.15 | D22: 157.40 | E22: 149.65 | F22: 145.15 | G22: 137.40 | H22: 161.90 | I22: 169.65 | J22: 174.15 | K22: 165.15 | L22: 152.9 | M22: 0.84228
A23: 13 | B23: AEGISCHEM | C23: 191.75 | D23: 192.57 | E23: 187.33 | F23: 182.92 | G23: 177.68 | H23: 196.98 | I23: 202.22 | J23: 206.63 | K23: 197.8 | L23: 188.15 | M23: 1.14766
A24: 14 | B24: AIAENG | C24: 1667.95 | D24: 1663.83 | E24: 1643.12 | F24: 1618.28 | G24: 1597.57 | H24: 1688.67 | I24: 1709.38 | J24: 1734.22 | K24: 1684.55 | L24: 1639 | M24: 0.63615
A25: 15 | B25: AJANTPHARM | C25: 1002.85 | D25: 980.73 | E25: 946.47 | F25: 890.08 | G25: 855.82 | H25: 1037.12 | I25: 1071.38 | J25: 1127.77 | K25: 1015 | L25: 924.35 | M25: 12.69473
A26: 16 | B26: AKZOINDIA | C26: 1700.8 | D26: 1708.97 | E26: 1680.73 | F26: 1660.67 | G26: 1632.43 | H26: 1729.03 | I26: 1757.27 | J26: 1777.33 | K26: 1737.2 | L26: 1688.9 | M26: 0.03003
A27: 17 | B27: ALBK | C27: 39.85 | D27: 40.32 | E27: 38.68 | F27: 37.52 | G27: 35.88 | H27: 41.48 | I27: 43.12 | J27: 44.28 | K27: 41.95 | L27: 39.15 | M27: 48.31183
A28: 18 | B28: ALKEM | C28: 1891.7 | D28: 1888.78 | E28: 1862.87 | F28: 1834.03 | G28: 1808.12 | H28: 1917.62 | I28: 1943.53 | J28: 1972.37 | K28: 1914.7 | L28: 1859.95 | M28: 0.29265
A29: 19 | B29: ALLCARGO | C29: 102.6 | D29: 102.97 | E29: 100.93 | F29: 99.27 | G29: 97.23 | H29: 104.63 | I29: 106.67 | J29: 108.33 | K29: 105 | L29: 101.3 | M29: 1.0167
A30: 20 | B30: AMARAJABAT | C30: 740.45 | D30: 744.40 | E30: 733.80 | F30: 727.15 | G30: 716.55 | H30: 751.05 | I30: 761.65 | J30: 768.30 | K30: 755 | L30: 737.75 | M30: 5.45367
A31: 21 | B31: AMBUJACEM | C31: 207.6 | D31: 209.37 | E31: 205.03 | F31: 202.47 | G31: 198.13 | H31: 211.93 | I31: 216.27 | J31: 218.83 | K31: 213.7 | L31: 206.8 | M31: 11.68695
A32: 22 | B32: ANDHRABANK | C32: 23.8 | D32: 23.85 | E32: 23.50 | F32: 23.20 | G32: 22.85 | H32: 24.15 | I32: 24.50 | J32: 24.80 | K32: 24.2 | L32: 23.55 | M32: 7.39629
A33: 23 | B33: APLAPOLLO | C33: 1085.5 | D33: 1085.75 | E33: 1074.80 | F33: 1064.10 | G33: 1053.15 | H33: 1096.45 | I33: 1107.40 | J33: 1118.10 | K33: 1096.7 | L33: 1075.05 | M33: 0.32387
A34: 24 | B34: APLLTD | C34: 554.85 | D34: 564.30 | E34: 541.70 | F34: 528.55 | G34: 505.95 | H34: 577.45 | I34: 600.05 | J34: 613.20 | K34: 586.9 | L34: 551.15 | M34: 0.38678
A35: 25 | B35: APOLLOHOSP | C35: 1121.9 | D35: 1170.63 | E35: 1041.27 | F35: 960.63 | G35: 831.27 | H35: 1251.27 | I35: 1380.63 | J35: 1461.27 | K35: 1300 | L35: 1090 | M35: 54.24327
A36: 26 | B36: APOLLOTYRE | C36: 201.7 | D36: 202.25 | E36: 199.65 | F36: 197.60 | G36: 195.00 | H36: 204.30 | I36: 206.90 | J36: 208.95 | K36: 204.85 | L36: 200.2 | M36: 17.41712
A37: 27 | B37: ARVIND | C37: 79.45 | D37: 80.17 | E37: 78.03 | F37: 76.62 | G37: 74.48 | H37: 81.58 | I37: 83.72 | J37: 85.13 | K37: 82.3 | L37: 78.75 | M37: 22.9508
A38: 28 | B38: ASAHIINDIA | C38: 244.9 | D38: 247.40 | E38: 238.85 | F38: 232.80 | G38: 224.25 | H38: 253.45 | I38: 262.00 | J38: 268.05 | K38: 255.95 | L38: 241.35 | M38: 0.4613
A39: 29 | B39: ASHOKA | C39: 112.6 | D39: 113.17 | E39: 111.43 | F39: 110.27 | G39: 108.53 | H39: 114.33 | I39: 116.07 | J39: 117.23 | K39: 114.9 | L39: 112 | M39: 0.39652
A40: 30 | B40: ASHOKLEY | C40: 83.1 | D40: 84.17 | E40: 81.53 | F40: 79.97 | G40: 77.33 | H40: 85.73 | I40: 88.37 | J40: 89.93 | K40: 86.8 | L40: 82.6 | M40: 181.89713
A41: 31 | B41: ASIANPAINT | C41: 1437.1 | D41: 1440.47 | E41: 1423.63 | F41: 1410.17 | G41: 1393.33 | H41: 1453.93 | I41: 1470.77 | J41: 1484.23 | K41: 1457.3 | L41: 1427 | M41: 7.28051
A42: 32 | B42: ASTRAL | C42: 1142.45 | D42: 1135.63 | E42: 1101.27 | F42: 1060.08 | G42: 1025.72 | H42: 1176.82 | I42: 1211.18 | J42: 1252.37 | K42: 1170 | L42: 1094.45 | M42: 1.71485
A43: 33 | B43: ATUL | C43: 3413.5 | D43: 3425.55 | E43: 3362.95 | F43: 3312.40 | G43: 3249.80 | H43: 3476.10 | I43: 3538.70 | J43: 3589.25 | K43: 3488.15 | L43: 3375 | M43: 0.16695
A44: 34 | B44: AUBANK | C44: 588.95 | D44: 586.43 | E44: 579.07 | F44: 569.18 | G44: 561.82 | H44: 596.32 | I44: 603.68 | J44: 613.57 | K44: 593.8 | L44: 576.55 | M44: 1.10178
A45: 35 | B45: AUROPHARMA | C45: 763.15 | D45: 760.78 | E45: 751.57 | F45: 739.98 | G45: 730.77 | H45: 772.37 | I45: 781.58 | J45: 793.17 | K45: 770 | L45: 749.2 | M45: 19.76232
A46: 36 | B46: AVANTIFEED | C46: 336.2 | D46: 336.97 | E46: 330.23 | F46: 324.27 | G46: 317.53 | H46: 342.93 | I46: 349.67 | J46: 355.63 | K46: 343.7 | L46: 331 | M46: 4.40447
A47: 37 | B47: AXISBANK | C47: 710.85 | D47: 712.02 | E47: 704.13 | F47: 697.42 | G47: 689.53 | H47: 718.73 | I47: 726.62 | J47: 733.33 | K47: 719.9 | L47: 705.3 | M47: 72.34953
A48: 38 | B48: BAJAJ-AUTO | C48: 2853.6 | D48: 2847.55 | E48: 2825.10 | F48: 2796.60 | G48: 2774.15 | H48: 2876.05 | I48: 2898.50 | J48: 2927.00 | K48: 2870 | L48: 2819.05 | M48: 7.12787
A49: 39 | B49: BAJAJCON | C49: 352.65 | D49: 351.65 | E49: 347.20 | F49: 341.75 | G49: 337.30 | H49: 357.10 | I49: 361.55 | J49: 367.00 | K49: 356.1 | L49: 346.2 | M49: 1.30907
A50: 40 | B50: BAJAJELEC | C50: 479.85 | D50: 478.98 | E50: 471.97 | F50: 464.08 | G50: 457.07 | H50: 486.87 | I50: 493.88 | J50: 501.77 | K50: 486 | L50: 471.1 | M50: 3.01228
A51: 41 | B51: BAJAJFINSV | C51: 6096.25 | D51: 6132.28 | E51: 6041.07 | F51: 5985.88 | G51: 5894.67 | H51: 6187.47 | I51: 6278.68 | J51: 6333.87 | K51: 6223.5 | L51: 6077.1 | M51: 1.13518
A52: 42 | B52: BAJAJHIND | C52: 7.6 | D52: 7.65 | E52: 7.45 | F52: 7.30 | G52: 7.10 | H52: 7.80 | I52: 8.00 | J52: 8.15 | K52: 7.85 | L52: 7.5 | M52: 7.51742
A53: 43 | B53: BAJAJHLDNG | C53: 3117.25 | D53: 3123.83 | E53: 3089.22 | F53: 3061.18 | G53: 3026.57 | H53: 3151.87 | I53: 3186.48 | J53: 3214.52 | K53: 3158.45 | L53: 3095.8 | M53: 0.74757
A54: 44 | B54: BAJFINANCE | C54: 2657.2 | D54: 2672.30 | E54: 2619.90 | F54: 2582.60 | G54: 2530.20 | H54: 2709.60 | I54: 2762.00 | J54: 2799.30 | K54: 2724.7 | L54: 2635 | M54: 11.94702
A55: 45 | B55: BALKRISIND | C55: 807.15 | D55: 788.05 | E55: 763.10 | F55: 719.05 | G55: 694.10 | H55: 832.10 | I55: 857.05 | J55: 901.10 | K55: 813 | L55: 744 | M55: 23.37557
A56: 46 | B56: BALLARPUR | C56: 3.6 | D56: 3.80 | E56: 3.35 | F56: 3.10 | G56: 2.65 | H56: 4.05 | I56: 4.50 | J56: 4.75 | K56: 4.25 | L56: 3.55 | M56: 13.43577
A57: 47 | B57: BALMLAWRIE | C57: 174.2 | D57: 175.40 | E57: 172.80 | F57: 171.40 | G57: 168.80 | H57: 176.80 | I57: 179.40 | J57: 180.80 | K57: 178 | L57: 174 | M57: 0.87863
A58: 48 | B58: BALRAMCHIN | C58: 106.9 | D58: 107.18 | E58: 105.77 | F58: 104.63 | G58: 103.22 | H58: 108.32 | I58: 109.73 | J58: 110.87 | K58: 108.6 | L58: 106.05 | M58: 17.60608
A59: 49 | B59: BANKBARODA | C59: 103.9 | D59: 103.88 | E59: 102.92 | F59: 101.93 | G59: 100.97 | H59: 104.87 | I59: 105.83 | J59: 106.82 | K59: 104.85 | L59: 102.9 | M59: 75.82047
A60: 50 | B60: BANKINDIA | C60: 84.7 | D60: 85.25 | E60: 83.50 | F60: 82.30 | G60: 80.55 | H60: 86.45 | I60: 88.20 | J60: 89.40 | K60: 87 | L60: 84.05 | M60: 55.96055
A61: 51 | B61: BASF | C61: 1291.85 | D61: 1312.32 | E61: 1264.63 | F61: 1237.42 | G61: 1189.73 | H61: 1339.53 | I61: 1387.22 | J61: 1414.43 | K61: 1360 | L61: 1285.1 | M61: 0.04756
A62: 52 | B62: BATAINDIA | C62: 1188.4 | D62: 1191.45 | E62: 1173.90 | F62: 1159.40 | G62: 1141.85 | H62: 1205.95 | I62: 1223.50 | J62: 1238.00 | K62: 1209 | L62: 1176.95 | M62: 10.12637
A63: 53 | B63: BBTC | C63: 1183.45 | D63: 1186.23 | E63: 1174.47 | F63: 1165.48 | G63: 1153.72 | H63: 1195.22 | I63: 1206.98 | J63: 1215.97 | K63: 1198 | L63: 1177.25 | M63: 0.41966
A64: 54 | B64: BEL | C64: 76.75 | D64: 77.52 | E64: 75.13 | F64: 73.52 | G64: 71.13 | H64: 79.13 | I64: 81.52 | J64: 83.13 | K64: 79.9 | L64: 75.9 | M64: 80.90201
A65: 55 | B65: BEML | C65: 785.2 | D65: 779.75 | E65: 766.70 | F65: 748.20 | G65: 735.15 | H65: 798.25 | I65: 811.30 | J65: 829.80 | K65: 792.8 | L65: 761.25 | M65: 15.83102
A66: 56 | B66: BERGEPAINT | C66: 299.95 | D66: 303.65 | E66: 294.90 | F66: 289.85 | G66: 281.10 | H66: 308.70 | I66: 317.45 | J66: 322.50 | K66: 312.4 | L66: 298.6 | M66: 14.44102
A67: 57 | B67: BFUTILITIE | C67: 154.1 | D67: 159.33 | E67: 144.82 | F67: 135.53 | G67: 121.02 | H67: 168.62 | I67: 183.13 | J67: 192.42 | K67: 173.85 | L67: 150.05 | M67: 4.96386
A68: 58 | B68: BGRENERGY | C68: 46.65 | D68: 46.55 | E68: 45.80 | F68: 44.95 | G68: 44.20 | H68: 47.40 | I68: 48.15 | J68: 49.00 | K68: 47.3 | L68: 45.7 | M68: 0.32725
A69: 59 | B69: BHARATFIN | C69: 941.15 | D69: 937.90 | E69: 930.80 | F69: 920.45 | G69: 913.35 | H69: 948.25 | I69: 955.35 | J69: 965.70 | K69: 945 | L69: 927.55 | M69: 5.11568
A70: 60 | B70: BHARATFORG | C70: 479.1 | D70: 478.72 | E70: 472.88 | F70: 466.67 | G70: 460.83 | H70: 484.93 | I70: 490.77 | J70: 496.98 | K70: 484.55 | L70: 472.5 | M70: 5.27381
A71: 61 | B71: BHARTIARTL | C71: 312.2 | D71: 312.88 | E71: 310.32 | F71: 308.43 | G71: 305.87 | H71: 314.77 | I71: 317.33 | J71: 319.22 | K71: 315.45 | L71: 311 | M71: 29.77404
A72: 62 | B72: BHEL | C72: 62.75 | D72: 62.33 | E72: 61.42 | F72: 60.08 | G72: 59.17 | H72: 63.67 | I72: 64.58 | J72: 65.92 | K72: 63.25 | L72: 61 | M72: 95.11824
A73: 63 | B73: BIOCON | C73: 644.2 | D73: 646.78 | E73: 638.57 | F73: 632.93 | G73: 624.72 | H73: 652.42 | I73: 660.63 | J73: 666.27 | K73: 655 | L73: 641.15 | M73: 7.30783
A74: 64 | B74: BIRLACORPN | C74: 473.65 | D74: 469.92 | E74: 461.83 | F74: 450.02 | G74: 441.93 | H74: 481.73 | I74: 489.82 | J74: 501.63 | K74: 478 | L74: 458.1 | M74: 0.1846
A75: 65 | B75: BLISSGVS | C75: 146.45 | D75: 148.00 | E75: 142.50 | F75: 138.55 | G75: 133.05 | H75: 151.95 | I75: 157.45 | J75: 161.40 | K75: 153.5 | L75: 144.05 | M75: 93.53084
A76: 66 | B76: BLUEDART | C76: 3121.95 | D76: 3109.97 | E76: 3092.93 | F76: 3063.92 | G76: 3046.88 | H76: 3138.98 | I76: 3156.02 | J76: 3185.03 | K76: 3127 | L76: 3080.95 | M76: 0.00525
A77: 67 | B77: BLUESTARCO | C77: 589.75 | D77: 590.68 | E77: 583.27 | F77: 576.78 | G77: 569.37 | H77: 597.17 | I77: 604.58 | J77: 611.07 | K77: 598.1 | L77: 584.2 | M77: 1.53787
A78: 68 | B78: BOMDYEING | C78: 103 | D78: 104.80 | E78: 98.80 | F78: 94.60 | G78: 88.60 | H78: 109.00 | I78: 115.00 | J78: 119.20 | K78: 110.8 | L78: 100.6 | M78: 7.04289
A79: 69 | B79: BOSCHLTD | C79: 18798.7 | D79: 18795.90 | E79: 18616.80 | F79: 18434.90 | G79: 18255.80 | H79: 18977.80 | I79: 19156.90 | J79: 19338.80 | K79: 18975 | L79: 18614 | M79: 0.16064
A80: 70 | B80: BPCL | C80: 333.6 | D80: 333.03 | E80: 328.57 | F80: 323.53 | G80: 319.07 | H80: 338.07 | I80: 342.53 | J80: 347.57 | K80: 337.5 | L80: 328 | M80: 33.14948
A81: 71 | B81: BRFL | C81: 6.1 | D81: 6.22 | E81: 5.88 | F81: 5.67 | G81: 5.33 | H81: 6.43 | I81: 6.77 | J81: 6.98 | K81: 6.55 | L81: 6 | M81: 0.73707
A82: 72 | B82: BRIGADE | C82: 195.4 | D82: 197.37 | E82: 188.78 | F82: 182.17 | G82: 173.58 | H82: 203.98 | I82: 212.57 | J82: 219.18 | K82: 205.95 | L82: 190.75 | M82: 1.06581
A83: 73 | B83: BRITANNIA | C83: 3107.55 | D83: 3098.38 | E83: 3064.47 | F83: 3021.38 | G83: 2987.47 | H83: 3141.47 | I83: 3175.38 | J83: 3218.47 | K83: 3132.3 | L83: 3055.3 | M83: 2.65355
A84: 74 | B84: BSE | C84: 561.75 | D84: 569.07 | E84: 550.63 | F84: 539.52 | G84: 521.08 | H84: 580.18 | I84: 598.62 | J84: 609.73 | K84: 587.5 | L84: 557.95 | M84: 1.08462
A85: 75 | B85: CADILAHC | C85: 324.4 | D85: 323.55 | E85: 320.85 | F85: 317.30 | G85: 314.60 | H85: 327.10 | I85: 329.80 | J85: 333.35 | K85: 326.25 | L85: 320 | M85: 8.75355
A86: 77 | B86: CANBK | C86: 225 | D86: 226.10 | E86: 222.70 | F86: 220.40 | G86: 217.00 | H86: 228.40 | I86: 231.80 | J86: 234.10 | K86: 229.5 | L86: 223.8 | M86: 31.50448
A87: 78 | B87: CANFINHOME | C87: 239.6 | D87: 240.45 | E87: 234.70 | F87: 229.80 | G87: 224.05 | H87: 245.35 | I87: 251.10 | J87: 256.00 | K87: 246.2 | L87: 235.55 | M87: 10.94166
A88: 79 | B88: CAPLIPOINT | C88: 350.7 | D88: 349.82 | E88: 341.88 | F88: 333.07 | G88: 325.13 | H88: 358.63 | I88: 366.57 | J88: 375.38 | K88: 357.75 | L88: 341 | M88: 0.54299
A89: 80 | B89: CARBORUNIV | C89: 346.05 | D89: 346.55 | E89: 340.75 | F89: 335.45 | G89: 329.65 | H89: 351.85 | I89: 357.65 | J89: 362.95 | K89: 352.35 | L89: 341.25 | M89: 0.39149
A90: 81 | B90: CARERATING | C90: 970.5 | D90: 974.98 | E90: 963.97 | F90: 957.43 | G90: 946.42 | H90: 981.52 | I90: 992.53 | J90: 999.07 | K90: 986 | L90: 968.45 | M90: 0.24055
A91: 82 | B91: CASTROLIND | C91: 146.05 | D91: 146.85 | E91: 144.25 | F91: 142.45 | G91: 139.85 | H91: 148.65 | I91: 151.25 | J91: 153.05 | K91: 149.45 | L91: 145.05 | M91: 7.7808
A92: 83 | B92: CCL | C92: 276 | D92: 276.20 | E92: 272.55 | F92: 269.10 | G92: 265.45 | H92: 279.65 | I92: 283.30 | J92: 286.75 | K92: 279.85 | L92: 272.75 | M92: 1.82632
A93: 84 | B93: CDSL | C93: 210.3 | D93: 210.33 | E93: 207.47 | F93: 204.63 | G93: 201.77 | H93: 213.17 | I93: 216.03 | J93: 218.87 | K93: 213.2 | L93: 207.5 | M93: 0.56238
A94: 85 | B94: CEATLTD | C94: 1085.65 | D94: 1089.22 | E94: 1073.43 | F94: 1061.22 | G94: 1045.43 | H94: 1101.43 | I94: 1117.22 | J94: 1129.43 | K94: 1105 | L94: 1077 | M94: 5.5626
A95: 86 | B95: CENTRALBK | C95: 28.6 | D95: 28.65 | E95: 28.20 | F95: 27.80 | G95: 27.35 | H95: 29.05 | I95: 29.50 | J95: 29.90 | K95: 29.1 | L95: 28.25 | M95: 1.63137
A96: 87 | B96: CENTURYPLY | C96: 166.5 | D96: 167.83 | E96: 163.72 | F96: 160.93 | G96: 156.82 | H96: 170.62 | I96: 174.73 | J96: 177.52 | K96: 171.95 | L96: 165.05 | M96: 0.76178
A97: 88 | B97: CENTURYTEX | C97: 736.35 | D97: 740.85 | E97: 726.10 | F97: 715.85 | G97: 701.10 | H97: 751.10 | I97: 765.85 | J97: 776.10 | K97: 755.6 | L97: 730.6 | M97: 4.67639
A98: 89 | B98: CERA | C98: 2299 | D98: 2303.67 | E98: 2257.33 | F98: 2215.67 | G98: 2169.33 | H98: 2345.33 | I98: 2391.67 | J98: 2433.33 | K98: 2350 | L98: 2262 | M98: 0.04099
A99: 90 | B99: CGPOWER | C99: 34.3 | D99: 34.28 | E99: 33.32 | F99: 32.33 | G99: 31.37 | H99: 35.27 | I99: 36.23 | J99: 37.22 | K99: 35.25 | L99: 33.3 | M99: 37.4984
A100: 91 | B100: CHAMBLFERT | C100: 170.05 | D100: 170.82 | E100: 167.23 | F100: 164.42 | G100: 160.83 | H100: 173.63 | I100: 177.22 | J100: 180.03 | K100: 174.4 | L100: 168 | M100: 2.71216
A101: 92 | B101: CHENNPETRO | C101: 217.15 | D101: 217.38 | E101: 212.87 | F101: 208.58 | G101: 204.07 | H101: 221.67 | I101: 226.18 | J101: 230.47 | K101: 221.9 | L101: 213.1 | M101: 5.04283
A102: 93 | B102: CHOLAFIN | C102: 1208 | D102: 1212.23 | E102: 1192.72 | F102: 1177.43 | G102: 1157.92 | H102: 1227.52 | I102: 1247.03 | J102: 1262.32 | K102: 1231.75 | L102: 1196.95 | M102: 1.985
A103: 94 | B103: CIPLA | C103: 543.3 | D103: 541.68 | E103: 537.47 | F103: 531.63 | G103: 527.42 | H103: 547.52 | I103: 551.73 | J103: 557.57 | K103: 545.9 | L103: 535.85 | M103: 29.89919
A104: 95 | B104: COALINDIA | C104: 218.8 | D104: 217.77 | E104: 215.18 | F104: 211.57 | G104: 208.98 | H104: 221.38 | I104: 223.97 | J104: 227.58 | K104: 220.35 | L104: 214.15 | M104: 45.80373
A105: 96 | B105: COCHINSHIP | C105: 354 | D105: 354.90 | E105: 342.80 | F105: 331.60 | G105: 319.50 | H105: 366.10 | I105: 378.20 | J105: 389.40 | K105: 367 | L105: 343.7 | M105: 1.32306
A106: 97 | B106: COFFEEDAY | C106: 254.7 | D106: 255.40 | E106: 251.35 | F106: 248.00 | G106: 243.95 | H106: 258.75 | I106: 262.80 | J106: 266.15 | K106: 259.45 | L106: 252.05 | M106: 1.09351
A107: 98 | B107: COLPAL | C107: 1285.8 | D107: 1284.77 | E107: 1272.53 | F107: 1259.27 | G107: 1247.03 | H107: 1298.03 | I107: 1310.27 | J107: 1323.53 | K107: 1297 | L107: 1271.5 | M107: 4.00561
A108: 99 | B108: CONCOR | C108: 520.65 | D108: 517.05 | E108: 511.70 | F108: 502.75 | G108: 497.40 | H108: 526.00 | I108: 531.35 | J108: 540.30 | K108: 522.4 | L108: 508.1 | M108: 6.04859
A109: 100 | B109: COROMANDEL | C109: 458.7 | D109: 457.00 | E109: 455.00 | F109: 451.30 | G109: 449.30 | H109: 460.70 | I109: 462.70 | J109: 466.40 | K109: 459 | L109: 453.3 | M109: 0.5896
A110: 101 | B110: COX&KINGS | C110: 155.85 | D110: 155.88 | E110: 154.42 | F110: 152.98 | G110: 151.52 | H110: 157.32 | I110: 158.78 | J110: 160.22 | K110: 157.35 | L110: 154.45 | M110: 0.17883
A111: 102 | B111: CRISIL | C111: 1556.65 | D111: 1585.53 | E111: 1521.12 | F111: 1485.58 | G111: 1421.17 | H111: 1621.07 | I111: 1685.48 | J111: 1721.02 | K111: 1649.95 | L111: 1550 | M111: 0.1037
A112: 103 | B112: CROMPTON | C112: 212.1 | D112: 212.78 | E112: 209.87 | F112: 207.63 | G112: 204.72 | H112: 215.02 | I112: 217.93 | J112: 220.17 | K112: 215.7 | L112: 210.55 | M112: 2.74611
A113: 104 | B113: CUB | C113: 187.25 | D113: 187.42 | E113: 185.93 | F113: 184.62 | G113: 183.13 | H113: 188.73 | I113: 190.22 | J113: 191.53 | K113: 188.9 | L113: 186.1 | M113: 1.51501
A114: 105 | B114: CUMMINSIND | C114: 726.25 | D114: 730.27 | E114: 713.53 | F114: 700.82 | G114: 684.08 | H114: 742.98 | I114: 759.72 | J114: 772.43 | K114: 747 | L114: 717.55 | M114: 19.41588
A115: 106 | B115: CYIENT | C115: 581.75 | D115: 587.15 | E115: 570.65 | F115: 559.55 | G115: 543.05 | H115: 598.25 | I115: 614.75 | J115: 625.85 | K115: 603.65 | L115: 576.05 | M115: 3.96912
A116: 107 | B116: DABUR | C116: 448.95 | D116: 447.75 | E116: 443.00 | F116: 437.05 | G116: 432.30 | H116: 453.70 | I116: 458.45 | J116: 464.40 | K116: 452.5 | L116: 441.8 | M116: 12.08431
A117: 108 | B117: DBCORP | C117: 178.65 | D117: 178.00 | E117: 174.30 | F117: 169.95 | G117: 166.25 | H117: 182.35 | I117: 186.05 | J117: 190.40 | K117: 181.7 | L117: 173.65 | M117: 0.86644
A118: 109 | B118: DBL | C118: 355.45 | D118: 348.65 | E118: 338.80 | F118: 322.15 | G118: 312.30 | H118: 365.30 | I118: 375.15 | J118: 391.80 | K118: 358.5 | L118: 332 | M118: 8.23347
A119: 110 | B119: DBREALTY | C119: 22.15 | D119: 22.45 | E119: 21.60 | F119: 21.05 | G119: 20.20 | H119: 23.00 | I119: 23.85 | J119: 24.40 | K119: 23.3 | L119: 21.9 | M119: 0.93853
A120: 111 | B120: DCAL | C120: 194.3 | D120: 196.07 | E120: 192.23 | F120: 190.17 | G120: 186.33 | H120: 198.13 | I120: 201.97 | J120: 204.03 | K120: 199.9 | L120: 194 | M120: 0.25699
A121: 112 | B121: DCBBANK | C121: 177.3 | D121: 177.20 | E121: 175.90 | F121: 174.50 | G121: 173.20 | H121: 178.60 | I121: 179.90 | J121: 181.30 | K121: 178.5 | L121: 175.8 | M121: 8.42364
A122: 113 | B122: DCMSHRIRAM | C122: 339.25 | D122: 341.92 | E122: 333.58 | F122: 327.92 | G122: 319.58 | H122: 347.58 | I122: 355.92 | J122: 361.58 | K122: 350.25 | L122: 336.25 | M122: 0.47441
A123: 114 | B123: DEEPAKFERT | C123: 117.2 | D123: 116.10 | E123: 114.20 | F123: 111.20 | G123: 109.30 | H123: 119.10 | I123: 121.00 | J123: 124.00 | K123: 118 | L123: 113.1 | M123: 1.54784
A124: 115 | B124: DELTACORP | C124: 224.25 | D124: 222.67 | E124: 219.83 | F124: 215.42 | G124: 212.58 | H124: 227.08 | I124: 229.92 | J124: 234.33 | K124: 225.5 | L124: 218.25 | M124: 7.26505
A125: 116 | B125: DEN | C125: 71.75 | D125: 71.77 | E125: 71.68 | F125: 71.62 | G125: 71.53 | H125: 71.83 | I125: 71.92 | J125: 71.98 | K125: 71.85 | L125: 71.7 | M125: 2.15897
A126: 117 | B126: DENABANK | C126: 11.2 | D126: 11.17 | E126: 10.98 | F126: 10.77 | G126: 10.58 | H126: 11.38 | I126: 11.57 | J126: 11.78 | K126: 11.35 | L126: 10.95 | M126: 7.6701
A127: 118 | B127: DHFL | C127: 104.85 | D127: 105.87 | E127: 102.08 | F127: 99.32 | G127: 95.53 | H127: 108.63 | I127: 112.42 | J127: 115.18 | K127: 109.65 | L127: 103.1 | M127: 181.7758
A128: 119 | B128: DISHTV | C128: 29.8 | D128: 29.77 | E128: 29.08 | F128: 28.37 | G128: 27.68 | H128: 30.48 | I128: 31.17 | J128: 31.88 | K128: 30.45 | L128: 29.05 | M128: 216.83447
A129: 120 | B129: DIVISLAB | C129: 1635 | D129: 1647.00 | E129: 1614.00 | F129: 1593.00 | G129: 1560.00 | H129: 1668.00 | I129: 1701.00 | J129: 1722.00 | K129: 1680 | L129: 1626 | M129: 8.80642
A130: 121 | B130: DIXON | C130: 2198 | D130: 2187.67 | E130: 2160.33 | F130: 2122.67 | G130: 2095.33 | H130: 2225.33 | I130: 2252.67 | J130: 2290.33 | K130: 2215 | L130: 2150 | M130: 0.02837
A131: 122 | B131: DLF | C131: 163.7 | D131: 163.58 | E131: 161.22 | F131: 158.73 | G131: 156.37 | H131: 166.07 | I131: 168.43 | J131: 170.92 | K131: 165.95 | L131: 161.1 | M131: 52.6934
A132: 123 | B132: DMART | C132: 1451.3 | D132: 1454.63 | E132: 1437.77 | F132: 1424.23 | G132: 1407.37 | H132: 1468.17 | I132: 1485.03 | J132: 1498.57 | K132: 1471.5 | L132: 1441.1 | M132: 1.65263
A133: 124 | B133: DREDGECORP | C133: 371.2 | D133: 373.12 | E133: 366.23 | F133: 361.27 | G133: 354.38 | H133: 378.08 | I133: 384.97 | J133: 389.93 | K133: 380 | L133: 368.15 | M133: 1.17123
A134: 125 | B134: DRREDDY | C134: 2615.35 | D134: 2627.55 | E134: 2547.15 | F134: 2478.95 | G134: 2398.55 | H134: 2695.75 | I134: 2776.15 | J134: 2844.35 | K134: 2707.95 | L134: 2559.35 | M134: 18.95462
A135: 126 | B135: ECLERX | C135: 1004.4 | D135: 1011.47 | E135: 977.93 | F135: 951.47 | G135: 917.93 | H135: 1037.93 | I135: 1071.47 | J135: 1097.93 | K135: 1045 | L135: 985 | M135: 0.06753
A136: 127 | B136: EDELWEISS | C136: 134.85 | D136: 135.68 | E136: 132.57 | F136: 130.28 | G136: 127.17 | H136: 137.97 | I136: 141.08 | J136: 143.37 | K136: 138.8 | L136: 133.4 | M136: 23.10535
A137: 128 | B137: EICHERMOT | C137: 20753.15 | D137: 20847.90 | E137: 20236.25 | F137: 19719.35 | G137: 19107.70 | H137: 21364.80 | I137: 21976.45 | J137: 22493.35 | K137: 21459.55 | L137: 20331 | M137: 2.61982
A138: 129 | B138: EIDPARRY | C138: 188.2 | D138: 189.77 | E138: 185.53 | F138: 182.87 | G138: 178.63 | H138: 192.43 | I138: 196.67 | J138: 199.33 | K138: 194 | L138: 187.1 | M138: 1.02542
A139: 130 | B139: EIHOTEL | C139: 187.9 | D139: 189.13 | E139: 184.87 | F139: 181.83 | G139: 177.57 | H139: 192.17 | I139: 196.43 | J139: 199.47 | K139: 193.4 | L139: 186.1 | M139: 1.37566
A140: 131 | B140: EMAMILTD | C140: 369.2 | D140: 363.70 | E140: 341.70 | F140: 314.20 | G140: 292.20 | H140: 391.20 | I140: 413.20 | J140: 440.70 | K140: 385.7 | L140: 336.2 | M140: 18.13844
A141: 132 | B141: ENDURANCE | C141: 1272.55 | D141: 1273.33 | E141: 1252.27 | F141: 1231.98 | G141: 1210.92 | H141: 1293.62 | I141: 1314.68 | J141: 1334.97 | K141: 1294.4 | L141: 1253.05 | M141: 0.83247
A142: 133 | B142: ENGINERSIN | C142: 109 | D142: 109.03 | E142: 106.17 | F142: 103.33 | G142: 100.47 | H142: 111.87 | I142: 114.73 | J142: 117.57 | K142: 111.9 | L142: 106.2 | M142: 14.17984
A143: 134 | B143: EQUITAS | C143: 112.25 | D143: 111.43 | E143: 109.92 | F143: 107.58 | G143: 106.07 | H143: 113.77 | I143: 115.28 | J143: 117.62 | K143: 112.95 | L143: 109.1 | M143: 14.36779
A144: 135 | B144: ERIS | C144: 644.35 | D144: 651.55 | E144: 633.10 | F144: 621.85 | G144: 603.40 | H144: 662.80 | I144: 681.25 | J144: 692.50 | K144: 670 | L144: 640.3 | M144: 0.04205
A145: 136 | B145: EROSMEDIA | C145: 70.95 | D145: 70.80 | E145: 69.05 | F145: 67.15 | G145: 65.40 | H145: 72.70 | I145: 74.45 | J145: 76.35 | K145: 72.55 | L145: 68.9 | M145: 9.2433
A146: 137 | B146: ESCORTS | C146: 636.5 | D146: 638.87 | E146: 624.73 | F146: 612.97 | G146: 598.83 | H146: 650.63 | I146: 664.77 | J146: 676.53 | K146: 653 | L146: 627.1 | M146: 16.20409
A147: 138 | B147: EVEREADY | C147: 208.4 | D147: 206.78 | E147: 201.62 | F147: 194.83 | G147: 189.67 | H147: 213.57 | I147: 218.73 | J147: 225.52 | K147: 211.95 | L147: 200 | M147: 19.22238
A148: 139 | B148: EXIDEIND | C148: 208.65 | D148: 208.53 | E148: 205.12 | F148: 201.58 | G148: 198.17 | H148: 212.07 | I148: 215.48 | J148: 219.02 | K148: 211.95 | L148: 205 | M148: 25.71374
A149: 140 | B149: FCONSUMER | C149: 43.25 | D149: 42.92 | E149: 42.23 | F149: 41.22 | G149: 40.53 | H149: 43.93 | I149: 44.62 | J149: 45.63 | K149: 43.6 | L149: 41.9 | M149: 13.04985
A150: 141 | B150: FEDERALBNK | C150: 83.45 | D150: 83.15 | E150: 82.00 | F150: 80.55 | G150: 79.40 | H150: 84.60 | I150: 85.75 | J150: 87.20 | K150: 84.3 | L150: 81.7 | M150: 83.81436
A151: 142 | B151: FINCABLES | C151: 389.8 | D151: 390.12 | E151: 385.23 | F151: 380.67 | G151: 375.78 | H151: 394.68 | I151: 399.57 | J151: 404.13 | K151: 395 | L151: 385.55 | M151: 0.15632
A152: 143 | B152: FINPIPE | C152: 501.4 | D152: 501.47 | E152: 497.98 | F152: 494.57 | G152: 491.08 | H152: 504.88 | I152: 508.37 | J152: 511.78 | K152: 504.95 | L152: 498.05 | M152: 0.14821
A153: 144 | B153: FLFL | C153: 431.15 | D153: 431.95 | E153: 425.20 | F153: 419.25 | G153: 412.50 | H153: 437.90 | I153: 444.65 | J153: 450.60 | K153: 438.7 | L153: 426 | M153: 1.75729
A154: 145 | B154: FSL | C154: 43.2 | D154: 43.98 | E154: 42.12 | F154: 41.03 | G154: 39.17 | H154: 45.07 | I154: 46.93 | J154: 48.02 | K154: 45.85 | L154: 42.9 | M154: 14.39876
A155: 146 | B155: GAIL | C155: 328.4 | D155: 329.38 | E155: 323.37 | F155: 318.33 | G155: 312.32 | H155: 334.42 | I155: 340.43 | J155: 345.47 | K155: 335.4 | L155: 324.35 | M155: 32.72495
A156: 147 | B156: GATI | C156: 68.05 | D156: 68.45 | E156: 67.40 | F156: 66.75 | G156: 65.70 | H156: 69.10 | I156: 70.15 | J156: 70.80 | K156: 69.5 | L156: 67.8 | M156: 2.87697
A157: 148 | B157: GDL | C157: 102.8 | D157: 103.15 | E157: 100.30 | F157: 97.80 | G157: 94.95 | H157: 105.65 | I157: 108.50 | J157: 111.00 | K157: 106 | L157: 100.65 | M157: 0.64749
A158: 149 | B158: GEPIL | C158: 736.15 | D158: 735.03 | E158: 728.22 | F158: 720.28 | G158: 713.47 | H158: 742.97 | I158: 749.78 | J158: 757.72 | K158: 741.85 | L158: 727.1 | M158: 0.04971
A159: 150 | B159: GESHIP | C159: 283.95 | D159: 288.35 | E159: 275.70 | F159: 267.45 | G159: 254.80 | H159: 296.60 | I159: 309.25 | J159: 317.50 | K159: 301 | L159: 280.1 | M159: 0.80123
A160: 151 | B160: GET&D | C160: 290.9 | D160: 292.43 | E160: 287.72 | F160: 284.53 | G160: 279.82 | H160: 295.62 | I160: 300.33 | J160: 303.52 | K160: 297.15 | L160: 289.25 | M160: 0.05999
A161: 152 | B161: GHCL | C161: 231 | D161: 234.95 | E161: 225.00 | F161: 219.00 | G161: 209.05 | H161: 240.95 | I161: 250.90 | J161: 256.90 | K161: 244.9 | L161: 228.95 | M161: 1.0525
A162: 153 | B162: GICRE | C162: 215.9 | D162: 220.35 | E162: 209.15 | F162: 202.40 | G162: 191.20 | H162: 227.10 | I162: 238.30 | J162: 245.05 | K162: 231.55 | L162: 213.6 | M162: 1.42908
A163: 154 | B163: GILLETTE | C163: 6492.45 | D163: 6490.98 | E163: 6477.47 | F163: 6462.48 | G163: 6448.97 | H163: 6505.97 | I163: 6519.48 | J163: 6534.47 | K163: 6504.5 | L163: 6476 | M163: 0.05421
A164: 155 | B164: GLAXO | C164: 1388.05 | D164: 1392.97 | E164: 1380.08 | F164: 1372.12 | G164: 1359.23 | H164: 1400.93 | I164: 1413.82 | J164: 1421.78 | K164: 1405.85 | L164: 1385 | M164: 0.07467
A165: 156 | B165: GLENMARK | C165: 602.65 | D165: 608.25 | E165: 592.40 | F165: 582.15 | G165: 566.30 | H165: 618.50 | I165: 634.35 | J165: 644.60 | K165: 624.1 | L165: 598 | M165: 6.28726
A166: 157 | B166: GMDCLTD | C166: 77.05 | D166: 77.45 | E166: 76.40 | F166: 75.75 | G166: 74.70 | H166: 78.10 | I166: 79.15 | J166: 79.80 | K166: 78.5 | L166: 76.8 | M166: 1.2142
A167: 158 | B167: GMRINFRA | C167: 14.8 | D167: 14.60 | E167: 14.25 | F167: 13.70 | G167: 13.35 | H167: 15.15 | I167: 15.50 | J167: 16.05 | K167: 14.95 | L167: 14.05 | M167: 296.47326
A168: 159 | B168: GNFC | C168: 307.65 | D168: 311.13 | E168: 301.52 | F168: 295.38 | G168: 285.77 | H168: 317.27 | I168: 326.88 | J168: 333.02 | K168: 320.75 | L168: 305 | M168: 4.03064
A169: 160 | B169: GODFRYPHLP | C169: 910.6 | D169: 916.58 | E169: 900.02 | F169: 889.43 | G169: 872.87 | H169: 927.17 | I169: 943.73 | J169: 954.32 | K169: 933.15 | L169: 906 | M169: 1.24525
A170: 161 | B170: GODREJAGRO | C170: 483.8 | D170: 485.57 | E170: 481.23 | F170: 478.67 | G170: 474.33 | H170: 488.13 | I170: 492.47 | J170: 495.03 | K170: 489.9 | L170: 483 | M170: 0.27161
A171: 162 | B171: GODREJCP | C171: 698 | D171: 692.07 | E171: 681.13 | F171: 664.27 | G171: 653.33 | H171: 708.93 | I171: 719.87 | J171: 736.73 | K171: 703 | L171: 675.2 | M171: 21.20352
A172: 163 | B172: GODREJIND | C172: 490.45 | D172: 490.12 | E172: 482.33 | F172: 474.22 | G172: 466.43 | H172: 498.23 | I172: 506.02 | J172: 514.13 | K172: 497.9 | L172: 482 | M172: 2.93784
A173: 164 | B173: GODREJPROP | C173: 735.65 | D173: 741.12 | E173: 722.53 | F173: 709.42 | G173: 690.83 | H173: 754.23 | I173: 772.82 | J173: 785.93 | K173: 759.7 | L173: 728 | M173: 0.61046
A174: 165 | B174: GPPL | C174: 81.15 | D174: 81.02 | E174: 80.13 | F174: 79.12 | G174: 78.23 | H174: 82.03 | I174: 82.92 | J174: 83.93 | K174: 81.9 | L174: 80 | M174: 5.47929
A175: 166 | B175: GRANULES | C175: 87.2 | D175: 86.37 | E175: 85.13 | F175: 83.07 | G175: 81.83 | H175: 88.43 | I175: 89.67 | J175: 91.73 | K175: 87.6 | L175: 84.3 | M175: 6.391
A176: 167 | B176: GRAPHITE | C176: 435.05 | D176: 451.13 | E176: 418.97 | F176: 402.88 | G176: 370.72 | H176: 467.22 | I176: 499.38 | J176: 515.47 | K176: 483.3 | L176: 435.05 | M176: 19.03107
A177: 168 | B177: GRASIM | C177: 716.65 | D177: 715.00 | E177: 706.00 | F177: 695.35 | G177: 686.35 | H177: 725.65 | I177: 734.65 | J177: 745.30 | K177: 724 | L177: 704.35 | M177: 11.81227
A178: 169 | B178: GREAVESCOT | C178: 122.55 | D178: 121.85 | E178: 120.70 | F178: 118.85 | G178: 117.70 | H178: 123.70 | I178: 124.85 | J178: 126.70 | K178: 123 | L178: 120 | M178: 13.38118
A179: 170 | B179: GREENPLY | C179: 129.1 | D179: 130.00 | E179: 127.90 | F179: 126.70 | G179: 124.60 | H179: 131.20 | I179: 133.30 | J179: 134.50 | K179: 132.1 | L179: 128.8 | M179: 0.40981
A180: 171 | B180: GRUH | C180: 245.3 | D180: 242.72 | E180: 239.18 | F180: 233.07 | G180: 229.53 | H180: 248.83 | I180: 252.37 | J180: 258.48 | K180: 246.25 | L180: 236.6 | M180: 5.52048
A181: 172 | B181: GSFC | C181: 90.35 | D181: 90.57 | E181: 89.18 | F181: 88.02 | G181: 86.63 | H181: 91.73 | I181: 93.12 | J181: 94.28 | K181: 91.95 | L181: 89.4 | M181: 11.13468
A182: 173 | B182: GSKCONS | C182: 7559.7 | D182: 7557.78 | E182: 7495.67 | F182: 7431.63 | G182: 7369.52 | H182: 7621.82 | I182: 7683.93 | J182: 7747.97 | K182: 7619.9 | L182: 7493.75 | M182: 0.04603
A183: 174 | B183: GSPL | C183: 166.15 | D183: 165.65 | E183: 163.55 | F183: 160.95 | G183: 158.85 | H183: 168.25 | I183: 170.35 | J183: 172.95 | K183: 167.75 | L183: 163.05 | M183: 4.16827
A184: 175 | B184: GUJALKALI | C184: 481.45 | D184: 484.18 | E184: 475.37 | F184: 469.28 | G184: 460.47 | H184: 490.27 | I184: 499.08 | J184: 505.17 | K184: 493 | L184: 478.1 | M184: 0.25886
A185: 176 | B185: GUJFLUORO | C185: 860.1 | D185: 861.78 | E185: 848.32 | F185: 836.53 | G185: 823.07 | H185: 873.57 | I185: 887.03 | J185: 898.82 | K185: 875.25 | L185: 850 | M185: 1.77931
A186: 177 | B186: GUJGASLTD | C186: 125 | D186: 125.12 | E186: 122.28 | F186: 119.57 | G186: 116.73 | H186: 127.83 | I186: 130.67 | J186: 133.38 | K186: 127.95 | L186: 122.4 | M186: 8.51785
A187: 178 | B187: GULFOILLUB | C187: 881.5 | D187: 878.65 | E187: 871.35 | F187: 861.20 | G187: 853.90 | H187: 888.80 | I187: 896.10 | J187: 906.25 | K187: 885.95 | L187: 868.5 | M187: 0.11472
A188: 179 | B188: GVKPIL | C188: 5.5 | D188: 5.45 | E188: 5.30 | F188: 5.10 | G188: 4.95 | H188: 5.65 | I188: 5.80 | J188: 6.00 | K188: 5.6 | L188: 5.25 | M188: 11.05984
A189: 180 | B189: HATHWAY | C189: 31.95 | D189: 31.92 | E189: 31.73 | F189: 31.52 | G189: 31.33 | H189: 32.13 | I189: 32.32 | J189: 32.53 | K189: 32.1 | L189: 31.7 | M189: 91.56855
A190: 181 | B190: HATSUN | C190: 681.2 | D190: 683.50 | E190: 677.65 | F190: 674.10 | G190: 668.25 | H190: 687.05 | I190: 692.90 | J190: 696.45 | K190: 689.35 | L190: 679.95 | M190: 0.03481
A191: 182 | B191: HAVELLS | C191: 723.35 | D191: 728.23 | E191: 713.22 | F191: 703.08 | G191: 688.07 | H191: 738.37 | I191: 753.38 | J191: 763.52 | K191: 743.25 | L191: 718.1 | M191: 9.68286
A192: 183 | B192: HCC | C192: 11.3 | D192: 11.30 | E192: 11.10 | F192: 10.90 | G192: 10.70 | H192: 11.50 | I192: 11.70 | J192: 11.90 | K192: 11.5 | L192: 11.1 | M192: 24.81022
A193: 184 | B193: HCL-INSYS | C193: 16.6 | D193: 16.52 | E193: 15.63 | F193: 14.67 | G193: 13.78 | H193: 17.48 | I193: 18.37 | J193: 19.33 | K193: 17.4 | L193: 15.55 | M193: 7.28354
A194: 185 | B194: HCLTECH | C194: 1079.35 | D194: 1075.45 | E194: 1066.90 | F194: 1054.45 | G194: 1045.90 | H194: 1087.90 | I194: 1096.45 | J194: 1108.90 | K194: 1084 | L194: 1063 | M194: 15.78943
A195: 186 | B195: HDFC | C195: 1948.2 | D195: 1947.60 | E195: 1936.20 | F195: 1924.20 | G195: 1912.80 | H195: 1959.60 | I195: 1971.00 | J195: 1983.00 | K195: 1959 | L195: 1935.6 | M195: 22.09258
A196: 187 | B196: HDFCBANK | C196: 2139.65 | D196: 2131.95 | E196: 2121.00 | F196: 2102.35 | G196: 2091.40 | H196: 2150.60 | I196: 2161.55 | J196: 2180.20 | K196: 2142.9 | L196: 2113.3 | M196: 17.59091
A197: 188 | B197: HDIL | C197: 22.6 | D197: 22.63 | E197: 22.12 | F197: 21.63 | G197: 21.12 | H197: 23.12 | I197: 23.63 | J197: 24.12 | K197: 23.15 | L197: 22.15 | M197: 24.32694
A198: 189 | B198: HEG | C198: 2218.05 | D198: 2262.68 | E198: 2155.37 | F198: 2092.68 | G198: 1985.37 | H198: 2325.37 | I198: 2432.68 | J198: 2495.37 | K198: 2370 | L198: 2200 | M198: 2.68881
A199: 190 | B199: HEIDELBERG | C199: 142.4 | D199: 143.18 | E199: 139.52 | F199: 136.63 | G199: 132.97 | H199: 146.07 | I199: 149.73 | J199: 152.62 | K199: 146.85 | L199: 140.3 | M199: 1.6291
A200: 191 | B200: HERITGFOOD | C200: 466.75 | D200: 471.53 | E200: 459.57 | F200: 452.38 | G200: 440.42 | H200: 478.72 | I200: 490.68 | J200: 497.87 | K200: 483.5 | L200: 464.35 | M200: 0.21104
A201: 192 | B201: HEROMOTOCO | C201: 2889.05 | D201: 2869.85 | E201: 2823.75 | F201: 2758.45 | G201: 2712.35 | H201: 2935.15 | I201: 2981.25 | J201: 3046.55 | K201: 2915.95 | L201: 2804.55 | M201: 4.78111
A202: 193 | B202: HEXAWARE | C202: 354.6 | D202: 354.30 | E202: 350.30 | F202: 346.00 | G202: 342.00 | H202: 358.60 | I202: 362.60 | J202: 366.90 | K202: 358.3 | L202: 350 | M202: 6.56642
A203: 194 | B203: HFCL | C203: 21.6 | D203: 21.75 | E203: 21.10 | F203: 20.60 | G203: 19.95 | H203: 22.25 | I203: 22.90 | J203: 23.40 | K203: 22.4 | L203: 21.25 | M203: 19.3689
A204: 195 | B204: HIMATSEIDE | C204: 176.45 | D204: 177.83 | E204: 168.82 | F204: 161.18 | G204: 152.17 | H204: 185.47 | I204: 194.48 | J204: 202.12 | K204: 186.85 | L204: 170.2 | M204: 0.68302
A205: 196 | B205: HINDALCO | C205: 199.45 | D205: 200.00 | E205: 195.10 | F205: 190.75 | G205: 185.85 | H205: 204.35 | I205: 209.25 | J205: 213.60 | K205: 204.9 | L205: 195.65 | M205: 84.63393
A206: 197 | B206: HINDCOPPER | C206: 43.5 | D206: 43.67 | E206: 42.83 | F206: 42.17 | G206: 41.33 | H206: 44.33 | I206: 45.17 | J206: 45.83 | K206: 44.5 | L206: 43 | M206: 3.19106
... 304 more rows

Sheet Bulk Deals
E6: Back To Main Page
A7: Subject : | B7: BULK DEAL | D7: =Main!B10 -> 2019-02-12
A9: Date | B9: Scrip code | C9: Scrip Name | D9: Client Name | E9: Buy / Sell | F9: Quantity Traded | G9: Trade Price / Wt.Avg.trade price | H9: Exchange
A10: 2019-02-11 | B10: 540024 | C10: ASHARI | D10: NIKHIL GULABCHAND SHAH | E10: BUY | F10: 64,402 | G10: 5.73 | H10: BSE
A11: 2019-02-11 | B11: 530187 | C11: ATHARVENT | D11: TRUSHA PRANAY MEHTA | E11: BUY | F11: 3,814 | G11: 2.83 | H11: BSE
A12: 2019-02-11 | B12: 530187 | C12: ATHARVENT | D12: TRUSHA PRANAY MEHTA | E12: SELL | F12: 151046 | G12: 2.81 | H12: BSE
A13: 2019-02-11 | B13: 530187 | C13: ATHARVENT | D13: NISHA KIRTIKUMAR GANDHI | E13: BUY | F13: 89000 | G13: 2.81 | H13: BSE
A14: 2019-02-11 | B14: 532674 | C14: BASML | D14: SHANKAR RESOURCES PVT LTD | E14: SELL | F14: 355697 | G14: 165 | H14: BSE
A15: 2019-02-11 | B15: 532674 | C15: BASML | D15: JEWELS ADVISORY SERVICES LLP | E15: BUY | F15: 235000 | G15: 165 | H15: BSE
A16: 2019-02-11 | B16: 537766 | C16: BCP | D16: ACHINTYA SECURITIES PVT. LTD. | E16: BUY | F16: 421196 | G16: 40.87 | H16: BSE
A17: 2019-02-11 | B17: 537766 | C17: BCP | D17: ACHINTYA SECURITIES PVT. LTD. | E17: SELL | F17: 413275 | G17: 39.83 | H17: BSE
A18: 2019-02-11 | B18: 530871 | C18: CHEMBOND | D18: ASHWIN RATILAL NAGARWADIA | E18: SELL | F18: 83760 | G18: 311.83 | H18: BSE
A19: 2019-02-11 | B19: 505576 | C19: GOLDCORP | D19: ANUPA TANNA SHAH | E19: BUY | F19: 454545 | G19: 53.4 | H19: BSE
A20: 2019-02-11 | B20: 505576 | C20: GOLDCORP | D20: NAMRATA TUSHAR TANNA | E20: BUY | F20: 741568 | G20: 53.4 | H20: BSE
A21: 2019-02-11 | B21: 505576 | C21: GOLDCORP | D21: NITA TUSHAR TANNA | E21: BUY | F21: 1020000 | G21: 53.4 | H21: BSE
A22: 2019-02-11 | B22: 505576 | C22: GOLDCORP | D22: GOLDCREST GLOBAL TRADING PRIVATE LIMITED | E22: SELL | F22: 2216113 | G22: 53.4 | H22: BSE
A23: 2019-02-11 | B23: 539853 | C23: GOLDENCAP | D23: PRITI DINESH DESAI | E23: BUY | F23: 16,600 | G23: 28.1 | H23: BSE
A24: 2019-02-11 | B24: 506640 | C24: GUJCMDS | D24: SWAPNIL RAMESHBHAI DATHIA HUF | E24: SELL | F24: 3,034 | G24: 101 | H24: BSE
A25: 2019-02-11 | B25: 506640 | C25: GUJCMDS | D25: SAMIR HARSHAD MEHTA | E25: BUY | F25: 2,984 | G25: 101 | H25: BSE
A26: 2019-02-11 | B26: 531337 | C26: IRISMEDIA | D26: PURAN CHAND CHOUDHARY | E26: BUY | F26: 607,103 | G26: 29.6 | H26: BSE
A27: 2019-02-11 | B27: 531337 | C27: IRISMEDIA | D27: PURAN CHAND CHOUDHARY | E27: SELL | F27: 712,418 | G27: 28.79 | H27: BSE
A28: 2019-02-11 | B28: 532937 | C28: KUANTUM | D28: DEMAKIN ENTERPRISES PRIVATE LIMITED | E28: BUY | F28: 50,000 | G28: 419 | H28: BSE
A29: 2019-02-11 | B29: 532937 | C29: KUANTUM | D29: RAJ KUMAR BASHAMBOO | E29: SELL | F29: 50,000 | G29: 419 | H29: BSE
A30: 2019-02-11 | B30: 540952 | C30: LAL | D30: NIKUNJ STOCK BROKERS LIMITED | E30: SELL | F30: 200,000 | G30: 5.2 | H30: BSE
A31: 2019-02-11 | B31: 540952 | C31: LAL | D31: R S SERVICES PRIVATE LIMITED | E31: BUY | F31: 200,000 | G31: 5.2 | H31: BSE
A32: 2019-02-11 | B32: 519439 | C32: PIONAGR | D32: JAGAT MOHAN AGGARWAL | E32: BUY | F32: 25,000 | G32: 9 | H32: BSE
A33: 2019-02-11 | B33: 519439 | C33: PIONAGR | D33: RESHMA OVERSEAS LTD | E33: SELL | F33: 25,000 | G33: 9 | H33: BSE
A34: 2019-02-11 | B34: 532693 | C34: PUNJLLOYD | D34: IFCI LTD. | E34: SELL | F34: 3,500,000 | G34: 1.81 | H34: BSE
A35: 2019-02-11 | B35: 506906 | C35: SCBL | D35: BHARATI ARVIND SHAH | E35: BUY | F35: 100,000 | G35: 7.29 | H35: BSE
A36: 2019-02-11 | B36: 539520 | C36: SHAILJA | D36: AMARATLAL SHAH | E36: BUY | F36: 26,000 | G36: 16.38 | H36: BSE
A37: 2019-02-11 | B37: 539520 | C37: SHAILJA | D37: PRAVINA VINOD SHAH | E37: BUY | F37: 26000 | G37: 16.52 | H37: BSE
A38: 2019-02-11 | B38: 539520 | C38: SHAILJA | D38: AJAYBASUDEOMODIHUF | E38: SELL | F38: 30000 | G38: 16.25 | H38: BSE
A39: 2019-02-11 | B39: 539520 | C39: SHAILJA | D39: SATISH KUMAR DALMIYA | E39: BUY | F39: 30000 | G39: 16.25 | H39: BSE
A40: 2019-02-11 | B40: 538943 | C40: SONAL | D40: SHRI RAVINDRA MEDIA VENTURES PRIVATE LIMITED | E40: SELL | F40: 135000 | G40: 8.17 | H40: BSE
A41: 2019-02-11 | B41: BLISSGVS | C41: Bliss GVS Pharma Ltd | D41: ACHINTYA SECURITIES PRIVATE LIMITED | E41: BUY | F41: 1413140 | G41: 145.37 | H41: NSE
A42: 2019-02-11 | B42: BLISSGVS | C42: Bliss GVS Pharma Ltd | D42: MINESH JORMALBHAI MEHTA | E42: BUY | F42: 665000 | G42: 145.04 | H42: NSE
A43: 2019-02-11 | B43: JAKHARIA | C43: JAKHARIA FABRIC LIMITED | D43: ARYAMAN CAPITAL MARKETS LIMITED | E43: BUY | F43: 24800 | G43: 181 | H43: NSE
A44: 2019-02-11 | B44: OCCL | C44: Oriental Carbn & Chem Ltd | D44: ORIENTAL CARBON AND CHEMICALS LIMITED | E44: BUY | F44: 123000 | G44: 1149 | H44: NSE
A45: 2019-02-11 | B45: PCJEWELLER | C45: PC Jeweller Ltd | D45: CROSSLAND TRADING CO | E45: BUY | F45: 2449553 | G45: 69.38 | H45: NSE
A46: 2019-02-11 | B46: PCJEWELLER | C46: PC Jeweller Ltd | D46: DIVYA PORTFOLIO PRIVATE LIMITED | E46: BUY | F46: 2323916 | G46: 68.71 | H46: NSE
A47: 2019-02-11 | B47: RELCAPITAL | C47: Reliance Capital Limited | D47: ALPHAGREP SECURITIES PRIVATE LIMITED | E47: BUY | F47: 1820628 | G47: 133.89 | H47: NSE
A48: 2019-02-11 | B48: RELINFRA | C48: Reliance Infrastructu Ltd | D48: ALPHAGREP SECURITIES PRIVATE LIMITED | E48: BUY | F48: 1730946 | G48: 118.63 | H48: NSE
A49: 2019-02-11 | B49: ROLTA | C49: Rolta India Ltd. | D49: SWAPNIL MEHTA | E49: BUY | F49: 1340215 | G49: 3.99 | H49: NSE
A50: 2019-02-11 | B50: BASML | C50: Bannari Amman Spinning Mi | D50: SHANKAR RESOURCES PRIVATE LIMITED | E50: SELL | F50: 137462 | G50: 165.03 | H50: NSE
A51: 2019-02-11 | B51: BLISSGVS | C51: Bliss GVS Pharma Ltd | D51: ACHINTYA SECURITIES PRIVATE LIMITED | E51: SELL | F51: 1523363 | G51: 145.43 | H51: NSE
A52: 2019-02-11 | B52: BLISSGVS | C52: Bliss GVS Pharma Ltd | D52: POLUS GLOBAL FUND | E52: SELL | F52: 4200000 | G52: 145.01 | H52: NSE
A53: 2019-02-11 | B53: JAKHARIA | C53: JAKHARIA FABRIC LIMITED | D53: OVERSKUD MULTI ASSET MANAGEMENT PRIVATE LIMITED | E53: SELL | F53: 24800 | G53: 181 | H53: NSE
A54: 2019-02-11 | B54: ORTINLABSS | C54: Ortin Laboratories Ltd | D54: SRINIDHI INFIN LIMITED | E54: SELL | F54: 156107 | G54: 14.27 | H54: NSE
A55: 2019-02-11 | B55: PCJEWELLER | C55: PC Jeweller Ltd | D55: CROSSLAND TRADING CO | E55: SELL | F55: 2449553 | G55: 69.37 | H55: NSE
A56: 2019-02-11 | B56: PCJEWELLER | C56: PC Jeweller Ltd | D56: DIVYA PORTFOLIO PRIVATE LIMITED | E56: SELL | F56: 2398573 | G56: 68.94 | H56: NSE
A57: 2019-02-11 | B57: RELCAPITAL | C57: Reliance Capital Limited | D57: ALPHAGREP SECURITIES PRIVATE LIMITED | E57: SELL | F57: 1820628 | G57: 133.88 | H57: NSE
A58: 2019-02-11 | B58: RELINFRA | C58: Reliance Infrastructu Ltd | D58: ALPHAGREP SECURITIES PRIVATE LIMITED | E58: SELL | F58: 1730946 | G58: 118.62 | H58: NSE
A59: 2019-02-11 | B59: RELINFRA | C59: Reliance Infrastructu Ltd | D59: REGIME DE RETRAITE D HYDRO-QUEBEC | E59: SELL | F59: 1343158 | G59: 118.34 | H59: NSE
A60: 2019-02-11 | B60: ROLTA | C60: Rolta India Ltd. | D60: SWAPNIL MEHTA | E60: SELL | F60: 290215 | G60: 3.97 | H60: NSE
A61: 2019-02-11 | B61: ROLTA | C61: Rolta India Ltd. | D61: UNION BANK OF INDIA | E61: SELL | F61: 1000000 | G61: 4.1 | H61: NSE

Sheet Call Tracker (Equity & F&O)
M5: Back To Main Page
A6: Retail Research Technical Calls & Fundamental Performance Report for the month of February -2019
M7: =Main!B10 -> 2019-02-12
B8: Positional Call
A9: Sr.no | B9: Date | D9: Company | E9: Rec | F9: Rec Price | G9: Stop Loss*** | H9: Call Closed At | I9: Target | J9: Remark | K9: Profit / Loss per Share | L9: Gain / Loss % | M9: Status | N9: Closed Date | O9: NSE Closed Price
A10: 1 | B10: 2019-01-24 | D10: ITC | E10: Buy | F10: 279-281 | G10: 268 | I10: 305 | J10: Open | O10: =VLOOKUP(D10,Sheet2!A10:M1505,6,0) -> 277.1 | R10: R
A11: 2 | B11: 2019-01-25 | D11: UBL | E11: Sell | F11: 1435 | G11: 1510 | H11: 1392.5 | I11: 1300-1280 | J11: Profit of Rs.42.50/- | K11: 42.5 | L11: =K11/F11 -> 2.96% | M11: Successful | N11: 2019-01-28 | R11: H
A12: 3 | B12: 2019-01-29 | D12: MARUTI | E12: Buy | F12: 6575 | G12: 6290 | H12: 6910 | I12: 7000-7100 | J12: Profit of Rs.335/- | K12: =H12-F12 -> 335 | L12: 5.10% | M12: Successful | N12: 2019-02-01 | R12: R
A13: 4 | B13: 2019-01-30 | D13: ULTRACEMCO | E13: Buy | F13: 3400 | G13: 3230 | H13: 3592.5 | I13: 3750-3800 | J13: Profit of Rs.192.5/- | K13: 192.5 | L13: =K13/F13 -> 5.66% | M13: Successful | N13: 2019-02-07 | R13: H
A14: 5 | B14: 2019-02-05 | D14: MCDOWELL-N | E14: Buy | F14: 552.5 | G14: 526.7 | H14: 571 | I14: 600-610 | J14: Profit of Rs.18.5/- | K14: 18.5 | L14: 3.35% | M14: Successful | N14: 2019-02-07 | R14: R
A15: 6 | B15: 2019-02-07 | D15: APOLLOTYRE | E15: Buy | F15: 200 | G15: 189.5 | H15: 207.5 | I15: 215-220 | J15: Profit of Rs.7.5/- | K15: =H15-F15 -> 7.5 | L15: =K15/F15 -> 3.75% | M15: Successful | N15: 2019-02-08 | R15: H
A16: 7 | B16: 2019-02-07 | D16: CENTURYTEX | E16: Buy | F16: 766-772 | G16: 728 | I16: 820-840 | J16: Open | O16: =VLOOKUP(D16,Sheet2!A16:M1511,6,0) -> 736.35 | R16: H
A17: 8 | B17: 2019-02-11 | D17: APOLLOTYRE | E17: Buy | F17: 200-201 | G17: 189.5 | I17: 215-220 | J17: Open | O17: =VLOOKUP(D17,Sheet2!A17:M1512,6,0) -> 201.7 | R17: H
A23: CLBS = Closing Basis *** | F23: Reinitiated $
A24: Dividend adjusted <> | F24: Revised stoploss #
A25: Part book {}
A26: Master Trade High Risk
A27: Sr.no | B27: Date | D27: Company | E27: Rec | F27: Rec Price | G27: Stop Loss | H27: Call Closed At | I27: Target | J27: Remark | K27: Profit / Loss per share | L27: Gain / Loss per Lot | M27: Lot | N27: Status | O27: Closed Date
A28: 1 | B28: 2019-02-01 | D28: NIFTY FEB FUT | E28: Sell | F28: 10955 | G28: 10860 | H28: 10885 | I28: 10800 | J28: Profit of Rs.70/- | K28: =F28-H28 -> 70 | L28: =M28*K28 -> 5250 | M28: 75 | N28: Successful | O28: 2019-02-02 | R28: R
A29: 2 | B29: 2019-02-06 | D29: NIFTY FEB FUT | E29: Sell | F29: 11005 | G29: 11120 | H29: 11120 | I29: 10800 | J29: Loss of Rs.115/- | K29: =F29-H29 -> -115 | L29: =M29*K29 -> -8625 | M29: 75 | N29: UnSuccessful | O29: 2019-02-07 | R29: R
A30: 3 | B30: 2019-02-06 | D30: BANKNIFTY FEB FUT | E30: Sell | F30: 27420 | G30: 27720 | H30: 27230 | I30: 27000-26900 | J30: Profit of Rs.190/- | K30: =F30-H30 -> 190 | L30: 3800 | M30: 20 | N30: Successful | O30: 2019-02-11 | R30: R
A40: Master Trade Medium Risk
A41: Sr.no | B41: Date | D41: Company | E41: Rec | F41: Rec Price | G41: Stop Loss | H41: Call Closed At | I41: Target | J41: Remark | K41: Profit/ Loss per lot | L41: Gain / Loss per Lot | M41: Lot | N41: Status | O41: Closed Date
A42: 1 | B42: 2019-02-01 | D42: JSWSTEEL FEB 280 CE | E42: Buy | F42: 8.25 | H42: 12.5 | J42: Profit of Rs.2/- | K42: =H42-F42 -> 4.25 | L42: 3000 | M42: 1500 | N42: Successful | O42: 2019-02-06 | R42: H
D43: JSWSTEEL FEB 290 CE | E43: Sell | F43: 5.25 | H43: 7.5 | K43: =F43-H43 -> -2.25 | R43: H
A44: 2 | B44: 2019-02-04 | D44: NIFTY 10900 CE FEB | E44: Buy | F44: 127.5 | G44: 84 | H44: 143 | I44: 200 | J44: Profit of Rs.15.50/- | K44: =H44-F44 -> 15.5 | L44: =M44*K44 -> 1162.5 | M44: 75 | N44: Successful | O44: 2019-02-04 | R44: R
A45: 3 | B45: 2019-02-05 | D45: RELIANCE 1280 PE FEB | E45: Buy | F45: 30 | H45: 36.5 | J45: Profit of Rs.6/- | K45: =H45-F45 -> 6.5 | L45: =M45*6 -> 3000 | M45: 500 | N45: Successful | O45: 2019-02-11 | R45: H
D46: RELIANCE at Rs.1240 PE | E46: Sell | F46: 18 | H46: 18.5 | K46: =F46-H46 -> -0.5 | R46: H
A47: 4 | B47: 2019-02-06 | D47: NIFTY 10900 PE FEB | E47: Buy | F47: 107.5 | G47: 70 | H47: 71 | I47: 180 | J47: Loss of Rs.36.5/- | K47: =H47-F47 -> -36.5 | L47: =M47*K47 -> -2737.5 | M47: 75 | N47: UnSuccessful | O47: 2019-02-07 | R47: H
A48: 5 | B48: 2019-02-06 | D48: BAJAJ-AUTO FEB 2650 PE | E48: Buy | F48: 25-27 | G48: 7 | I48: 60-70 | J48: Open | R48: H
A49: 6 | B49: 2019-02-11 | D49: RELIANCE 1280 CE | E49: Buy | F49: 26-27 | G49: 18 | I49: 40 | J49: Open | R49: H
B56: Smart Delivery Trade
A57: Sr.no | B57: Date | D57: Company | E57: Rec | F57: Rec Price | G57: Stop Loss*** | H57: Call Closed At | I57: Target | J57: Remark | K57: Profit / Loss per Share | L57: Gain / Loss % | M57: Status | N57: Closed Date | O57: NSE Closed Price
A58: 1 | B58: 2019-01-29 | D58: UNIONBANK | E58: Buy | F58: 80.5 | G58: 77 | H58: 83.5 | I58: 87-88 | J58: Profit of Rs.3/- | K58: =H58-F58 -> 3 | L58: =K58/F58 -> 3.73% | M58: Successful | N58: 2019-02-01 | R58: H
A59: 2 | B59: 2019-02-01 | D59: INFY | E59: Sell | F59: 750-756 | G59: 772 | I59: 720-710 | J59: Open | O59: =VLOOKUP(D59,Sheet2!A59:M1554,6,0) -> 762.8 | R59: H
A60: 3 | B60: 2019-02-04 | D60: BRITANNIA | E60: Buy | F60: 3275 | G60: 3175 | H60: 3165 | I60: 3450-3480 | J60: Loss of Rs 110/- | K60: =H60-F60 -> -110 | L60: =K60/F60 -> -3.36% | M60: UnSuccessful | N60: 2019-02-05 | R60: R
A61: 4 | B61: 2019-02-05 | D61: TITAN | E61: Sell | F61: 1040-1050 | G61: 1082.7 | I61: 990-980 | J61: Open | O61: =VLOOKUP(D61,Sheet2!A61:M1556,6,0) -> 1056.4 | R61: R
A62: 5 | B62: 2019-02-05 | D62: UJJIVAN | E62: Buy | F62: 286.5 | G62: 277 | H62: 294.5 | I62: 300-310 | J62: Profit of Rs.8/- | K62: =H62-F62 -> 8 | L62: =K62/F62 -> 2.79% | M62: Successful | N62: 2019-02-01 | R62: H
A63: 6 | B63: 2019-02-07 | D63: IGL | E63: Buy | F63: 298.5 | G63: 288 | H63: 308.5 | I63: 315-320 | J63: Profit of Rs.10/- | K63: =H63-F63 -> 10 | L63: =K63/F63 -> 3.35% | M63: Successful | N63: 2019-02-07 | R63: H
A64: 7 | B64: 2019-02-07 | D64: CHENNPETRO | E64: Buy | F64: 232 | G64: 223.3 | H64: 222 | I64: 245-250 | J64: Loss of Rs 10/- | K64: -10 | L64: -4.31% | M64: UnSuccessful | N64: 2019-02-08 | R64: R
A65: 8 | B65: 2019-02-08 | D65: GUJGASLTD | E65: Buy | F65: 125-128 | G65: 119 | I65: 140 | J65: Open | O65: =VLOOKUP(D65,Sheet2!A65:M1560,6,0) -> 125 | R65: H
A66: 9 | B66: 2019-02-11 | D66: APOLLOHOSP | E66: Buy | F66: 1189.9 | G66: 1146.6 | H66: 1145 | I66: 1270-1280 | J66: Loss of Rs 44.9/- | K66: =H66-F66 -> -44.9 | L66: =K66/F66 -> -3.77% | M66: UnSuccessful | N66: 2019-02-11 | R66: R
A74: CLBS = Closing Basis *** | F74: Reinitiated $
A75: Dividend adjusted <> | F75: Revised stoploss #
B78: Momentum Call
A79: Sr.no | B79: Date | D79: Company | E79: Rec | F79: Rec Price | G79: Stop Loss | H79: Call Closed At | I79: Target | J79: Remark | K79: Profit / Loss per Share/Lot | L79: Gain / Loss % | M79: Gain / Loss per Lot | N79: Lot | O79: Status | P79: Closed Date
A80: 1 | B80: 2019-01-30 | D80: AMARAJABAT FEB FUT | E80: Buy | F80: 751.5 | G80: 735 | H80: 759.5 | I80: 780 | J80: Profit of Rs.8/- | K80: =H80-F80 -> 8 | M80: =N80*K80 -> 5600 | N80: 700 | O80: Successful | P80: 2019-02-01 | R80: H
A81: 2 | B81: 2019-01-30 | D81: RAYMOND FEB FUT | E81: Buy | F81: 760 | G81: 745 | H81: 745 | I81: 790 | J81: Loss of Rs 15/- | K81: -15 | M81: =N81*K81 -> -12000 | N81: 800 | O81: UnSuccessful | P81: 2019-02-01 | R81: N
A82: 3 | B82: 2019-01-31 | D82: RELIANCE | E82: Buy | F82: 1215 | G82: 1179 | H82: 1243 | I82: 1260-1280 | J82: Profit of Rs.28/- | K82: =H82-F82 -> 28 | L82: =K82/F82 -> 2.30% | O82: Successful | P82: 2019-02-01 | R82: H
A83: 4 | B83: 2019-02-01 | D83: BHARTIARTL | E83: Buy | F83: 315 | G83: 308 | H83: 306.5 | I83: 330 | J83: Loss of Rs 8.5/- | K83: -8.5 | L83: -2.70% | O83: UnSuccessful | P83: 2019-02-04 | R83: H
A84: 5 | B84: 2019-02-01 | D84: MINDTREE FEB FUT | E84: Buy | F84: 902 | G84: 882 | H84: 912 | I84: 940 | J84: Profit of Rs.10/- | K84: 10 | M84: =N84*K84 -> 6000 | N84: 600 | O84: Successful | P84: 2019-02-06 | R84: N
A85: 6 | B85: 2019-02-04 | D85: COLPAL FEB FUT | E85: Buy | F85: 1300 | G85: 1283 | H85: 1313 | I85: 1340 | J85: Profit of Rs.13/- | K85: =H85-F85 -> 13 | M85: =N85*K85 -> 9100 | N85: 700 | O85: Successful | P85: 2019-02-04 | R85: N
A86: 7 | B86: 2019-02-04 | D86: ASIANPAINT | E86: Buy | F86: 1438 | G86: 1400 | H86: 1467 | I86: 1510 | J86: Profit of Rs.29/- | K86: 29 | L86: =K86/F86 -> 2.02% | O86: Successful | P86: 2019-02-06 | R86: H
A87: 8 | B87: 2019-02-04 | D87: AJANTPHARM FEB FUT | E87: Buy | F87: 987.5 | G87: 964 | H87: 964 | I87: 1020-1030 | J87: Loss of Rs 23.5/- | K87: =H87-F87 -> -23.5 | M87: =N87*K87 -> -11750 | N87: 500 | O87: UnSuccessful | P87: 2019-02-04 | R87: H
A88: 9 | B88: 2019-02-04 | D88: TATAELXSI FEB FUT | E88: Buy | F88: 899.5 | G88: 874 | H88: 914.5 | I88: 950 | J88: Profit of Rs.15/- | K88: 15 | M88: =N88*K88 -> 6000 | N88: 400 | O88: Successful | P88: 2019-02-06 | R88: R
A89: 10 | B89: 2019-02-04 | D89: BIOCON FEB FUT | E89: Buy | F89: 654.5 | G89: 642 | H89: 663 | I89: 675 | J89: Profit of Rs.8.5/- | K89: =H89-F89 -> 8.5 | M89: =N89*K89 -> 7650 | N89: 900 | O89: Successful | P89: 2019-02-05 | R89: N
A90: 11 | B90: 2019-02-05 | D90: GODREJIND FEB FUT | E90: Buy | F90: 498 | G90: 490 | H90: 491 | I90: 515 | J90: Loss of Rs 7/- | K90: =H90-F90 -> -7 | M90: =N90*K90 -> -10500 | N90: 1500 | O90: UnSuccessful | P90: 2019-02-05 | R90: N
A91: 12 | B91: 2019-02-06 | D91: LT FEB FUT | E91: Buy | F91: 1301.5 | G91: 1274 | H91: 1274 | I91: 1350 | J91: Loss of Rs 27.5/- | K91: -27.5 | M91: =N91*K91 -> -10312.5 | N91: 375 | O91: UnSuccessful | P91: 2019-02-08 | R91: H
A92: 13 | B92: 2019-02-06 | D92: COLPAL FEB FUT | E92: Buy | F92: 1300 | G92: 1283 | H92: 1314.5 | I92: 1340 | J92: Profit of Rs.14.5/- | K92: =H92-F92 -> 14.5 | M92: =N92*K92 -> 10150 | N92: 700 | O92: Successful | P92: 2019-02-07 | R92: N
A93: 14 | B93: 2019-02-07 | D93: BIOCON FEB FUT | E93: Buy | F93: 643 | G93: 630 | H93: 651.5 | I93: 660 | J93: Profit of Rs.8.5/- | K93: =H93-F93 -> 8.5 | M93: =N93*K93 -> 7650 | N93: 900 | O93: Successful | P93: 2019-02-07 | R93: N
A94: 15 | B94: 2019-02-07 | D94: RBLBANK FEB FUT | E94: Buy | F94: 588 | G94: 578 | H94: 578 | I94: 610 | J94: Loss of Rs 10/- | K94: -10 | M94: =N94*K94 -> -12000 | N94: 1200 | O94: UnSuccessful | P94: 2019-02-08 | R94: N
A95: 16 | B95: 2019-02-08 | D95: PIDILITIND | E95: Buy | F95: 1155 | G95: 1134 | H95: 1130 | I95: 1200 | J95: Loss of Rs 25/- | K95: -25 | L95: =K95/F95 -> -2.16% | O95: UnSuccessful | P95: 2019-02-11 | R95: H
A96: 17 | B96: 2019-02-08 | D96: INFRATEL FEB FUT | E96: Sell | F96: 314.5 | G96: 321.2 | H96: 321.2 | I96: 305 | J96: Loss of Rs 6.7/- | K96: =F96-H96 -> -6.7 | M96: =N96*K96 -> -13400 | N96: 2000 | O96: UnSuccessful | P96: 2019-02-07 | R96: R
A97: 18 | B97: 2019-02-11 | D97: TATAELXSI FEB FUT | E97: Buy | F97: 898-902 | G97: 875 | I97: 950 | J97: Open | R97: N
A98: 19 | B98: 2019-02-11 | D98: BAJAJAUTO FEB FUT | E98: Sell | F98: 2860-2870 | G98: 2910 | I98: 2800-2780 | J98: Open | R98: H
A99: 20 | B99: 2019-02-11 | D99: COLPAL FEB FUT | E99: Buy | F99: 1279 | G99: 1263 | H99: 1290 | I99: 1310 | J99: Profit of Rs.11/- | K99: =H99-F99 -> 11 | M99: =N99*K99 -> 7700 | N99: 700 | O99: Successful | P99: 2019-02-11 | R99: N
A100: 21 | B100: 2019-02-11 | D100: TATACHEM FEB FUT | E100: Buy | F100: 594-596 | G100: 581 | I100: 620 | J100: Open | R100: R
A101: 22 | B101: 2019-02-11 | D101: UBL FEB FUT | E101: Buy | F101: 1396 | G101: 1378 | H101: 1379 | I101: 1430 | J101: Loss of Rs 17/- | K101: =F101-H101 -> 17 | M101: =N101*K101 -> 11900 | N101: 700 | O101: UnSuccessful | P101: 2019-02-11 | R101: N
A105: CLBS = Closing Basis ***
A106: Dividend adjusted <> | F106: Reinitiated $
F107: Revised stoploss #
B108: Quick Pick Intraday
A109: Sr.no | B109: Date | D109: Company | E109: Rec | F109: Rec Price | G109: Stop Loss*** | H109: Call Closed At | I109: Target | J109: Remark | K109: Profit / Loss per Share | L109: Status | M109: Closed Date
A123: Techno -Funda (positional)
A124: Sr.no | B124: Date | D124: Company | E124: Rec | F124: Rec Price | G124: Stop Loss*** | H124: Call Closed At | I124: Target | J124: Remark | K124: Profit / Loss per Share | L124: Gain / Loss % | M124: Status | N124: Closed Date | O124: NSE Closed Price
A127: CLBS = Closing Basis *** | F127: Reinitiated $
A128: Dividend adjusted <> | F128: Revised stoploss #
B133: Investment Idea
A134: Sr.no | B134: Date | D134: Company | E134: Rec | F134: Rec Price | G134: Point of Review | H134: Close Rate | I134: Target | J134: Remark | K134: Profit / Loss per Share | L134: Gain / Loss % | M134: Status | N134: Closed Date
A135: 1 | B135: 2013-11-01 | D135: L&T Finance Holding | E135: Accu | F135: 82.00 | G135: - | H135: 100 | I135: 100.00 | J135: Target Achieved | K135: =H135-F135 -> 18.00 | L135: =K135/F135 -> 21.95% | M135: Successful | N135: 2016-10-14
A136: 2 | B136: 2014-06-04 | D136: Finolex Inds | E136: Buy | F136: 257.00 | G136: - | H136: 300 | I136: 300.00 | J136: Target Achieved | K136: =H136-F136 -> 43.00 | L136: 16.73% | M136: Successful | N136: 2014-07-02
A137: =1+A136 -> 3 | B137: 2014-07-08 | D137: JK Cement | E137: Buy | F137: 393.00 | G137: - | H137: 468 | I137: 468.00 | J137: Target Achieved | K137: =H137-F137 -> 75.00 | L137: 19.08% | M137: Successful | N137: 2014-08-12
A138: 4 | B138: 2014-08-06 | D138: Finolex Cables | E138: Buy | F138: 205.00 | G138: - | H138: 275 | I138: 250.00 | J138: Target Achieved | K138: 70.00 | L138: 34.15% | M138: Successful | N138: 2014-11-19
A139: 5 | B139: 2014-09-04 | D139: Exide Inds | E139: Buy | F139: 162.00 | G139: - | H139: 190 | I139: 190.00 | J139: Target Achieved | K139: 28.00 | L139: 17.28% | M139: Successful | N139: 2015-01-02
A140: 6 | B140: 2014-09-04 | D140: Deepak Nitrite | E140: Buy | F140: 75.00 | G140: - | H140: 91.5 | I140: 95-100 | J140: Profit of Rs.16.50/- | K140: 16.50 | L140: 22.00% | M140: Successful | N140: 2014-11-11
A141: 7 | B141: 2014-10-01 | D141: Mercks | E141: Buy | F141: 850.00 | G141: - | H141: 982.5 | I141: 1050.00 | J141: Profit of Rs.132.50/- | K141: 132.50 | L141: 15.59% | M141: Successful | N141: 2015-02-04
A142: 8 | B142: 2014-10-01 | D142: Grindwell Norton | E142: Buy | F142: 475.00 | G142: - | H142: 515 | I142: 600.00 | J142: Profit of Rs.40/- | K142: 40.00 | L142: 8.42% | M142: Successful | N142: 2014-10-27
A143: 9 | B143: 2014-10-01 | D143: Snowman Logistics | E143: Buy | F143: 86.00 | G143: - | H143: 99 | I143: 140.00 | J143: Profit of Rs.13.00/- | K143: 13.00 | L143: 15.12% | M143: Successful | N143: 2014-10-27
A144: 10 | B144: 2014-10-14 | D144: Birla Corp | E144: Buy | F144: 496.60 | G144: - | H144: 621 | I144: 580.00 | J144: Target Achieved | K144: 124.40 | L144: 25.05% | M144: Successful | N144: 2016-08-23
A145: 11 | B145: 2014-10-14 | D145: Ultratech Cem | E145: Buy | F145: 2481.90 | G145: - | H145: 2840 | I145: 2870.00 | J145: Profit of Rs.358.10/- | K145: 358.10 | L145: 14.43% | M145: Successful | N145: 2015-01-13
A146: =1+A143 -> 10 | B146: 2014-10-16 | D146: Sintex Inds | E146: Buy | F146: 84.50 | G146: - | H146: 93 | I146: 110.00 | J146: Profit of Rs.8.50/- | K146: 8.50 | L146: 10.06% | M146: Successful | N146: 2014-10-27
A147: =1+A146 -> 11 | B147: 2014-10-16 | D147: HSIL | E147: Buy | F147: 401.00 | G147: - | H147: 428 | I147: 450.00 | J147: Profit of Rs.27.00/- | K147: 27.00 | L147: 6.73% | M147: Successful | N147: 2015-01-16
A148: 12 | B148: 2014-10-16 | D148: Eveready Inds | E148: Buy | F148: 101.00 | G148: - | H148: 112 | I148: 120.00 | J148: Profit of Rs.11.00/- | K148: 11.00 | L148: 10.89% | M148: Successful | N148: 2014-10-27
A149: 13 | B149: 2014-11-11 | D149: Pennar Inds | E149: Buy | F149: 59.00 | G149: - | H149: 76 | I149: 76.00 | J149: Target Achieved | K149: 17.00 | L149: 28.81% | M149: Successful | N149: 2017-10-24
A150: 14 | B150: 2014-11-11 | D150: Snowman Logistics | E150: Buy | F150: 99.00 | G150: - | H150: 120 | I150: 120.00 | J150: Profit of Rs.21/- | K150: 21.00 | L150: 21.21% | M150: Successful | N150: 2014-11-17
A151: 15 | B151: 2014-11-13 | D151: Dharamsi Morarji Chem | E151: Buy | F151: 22.00 | G151: - | H151: 33.55 | I151: 32.00 | J151: Profit of Rs 11.55/- | K151: 11.55 | L151: 52.50% | M151: Successful | N151: 2015-07-03
A152: 16 | B152: 2014-12-03 | D152: Tatachem | E152: Buy | F152: 440.00 | G152: - | H152: 520 | I152: 520.00 | J152: Profit of Rs 80.00/- | K152: 80.00 | L152: 18.18% | M152: Successful | N152: 2015-07-23
A153: 17 | B153: 2014-12-03 | D153: Advanta | E153: Buy | F153: 360.00 | G153: - | H153: 427 | I153: 425.00 | J153: Profit of Rs.67.00/- | K153: 67.00 | L153: 18.61% | M153: Successful | N153: 2015-02-23
A154: 18 | B154: 2015-01-08 | D154: GDL | E154: Buy | F154: 360.00 | G154: - | H154: 455 | I154: 420.00 | J154: Profit of Rs.95.00/- | K154: 95.00 | L154: 26.39% | M154: Successful | N154: 2015-01-20
A155: 19 | B155: 2015-01-08 | D155: NRB Bearing | E155: Buy | F155: 130.00 | H155: 175.5 | I155: 165.00 | J155: Profit of Rs 45.50/- | K155: 45.50 | L155: 35.00% | M155: Successful | N155: 2017-12-19
A156: 20 | B156: 2015-02-05 | D156: GSFC | E156: Accu | F156: 98.00 | H156: 120 | I156: 120.00 | J156: Target Achieved | K156: 22.00 | L156: 22.45% | M156: Successful | N156: 2017-01-18
A157: 21 | B157: 2015-02-05 | D157: Sundrmfast | E157: Accu | F157: 196.00 | H157: 262 | I157: 255.00 | J157: Target Achieved | K157: 66.00 | L157: 33.67% | M157: Successful | N157: 2016-08-17
A158: 22 | B158: 2015-03-04 | D158: GPPL | E158: Accu | F158: 230-240 | I158: 280-285 | J158: Open
A159: 23 | B159: 2015-03-04 | D159: ORIENTCEM | E159: Accu | F159: 185.00 | H159: 224 | I159: 220-225 | J159: Target Achieved | K159: 39.00 | L159: =K159/F159 -> 21.08% | M159: Successful | N159: 2016-10-04
A160: 24 | B160: 2015-03-27 | D160: PFS | E160: Accu | F160: 49-50 | I160: 67.00 | J160: Open
A161: 25 | B161: 2015-03-30 | D161: Walchandnagar Ind Ltd | E161: Accu | F161: 183.50 | H161: 219 | I161: 218.00 | J161: Profit of Rs.35.50/- | K161: 35.50 | L161: =K161/F161 -> 19.35% | M161: Successful | N161: 2015-04-09
A162: 26 | B162: 2015-04-20 | D162: Kalpataru Power Transmission Ltd | E162: Accu | F162: =(227+237)/2 -> 232.00 | H162: 298 | I162: 298.00 | J162: Target Achieved | K162: 66.00 | L162: 28.45% | M162: Successful | N162: 2017-03-29
A163: 27 | B163: 2015-05-04 | D163: Mastek Ltd | E163: Buy | F163: 385.00 | H163: =212.5+331 -> 543.5 | I163: 510.00 | J163: Profit of Rs 158.50/- | K163: 158.50 | L163: 41.17% | M163: Successful | N163: 2015-08-19
A164: 28 | B164: 2015-05-04 | D164: Suprajit Eng | E164: Buy | F164: 115.50 | H164: 146 | I164: 142.00 | J164: Profit of Rs 30.50/- | K164: 30.50 | L164: 26.41% | M164: Successful | N164: 2015-07-17
A165: 29 | B165: 2015-05-27 | D165: TCI | E165: Buy | F165: 237.50 | H165: 279.5 | I165: 278.00 | J165: Target Achieved | K165: 42.00 | L165: 17.68% | M165: Successful | N165: 2015-08-06
A166: 30 | B166: 2015-06-19 | D166: HSIL | E166: Accu | F166: 340.00 | H166: 448 | I166: 448.00 | J166: Target Achieved | K166: 108.00 | L166: 31.76% | M166: Successful | N166: 2017-10-10
A167: 31 | B167: 2015-07-06 | D167: Capital First | E167: Accu | F167: 390.00 | H167: 460 | I167: 460.00 | J167: Target Achieved | K167: 70.00 | L167: 17.95% | M167: Successful | N167: 2016-04-18
A168: 32 | B168: 2015-07-10 | D168: Dolphin OffShore | E168: Accu | F168: 122.5 | H168: 61.00 | I168: 172.00 | J168: Loss of Rs.61.50/- | K168: -61.50 | L168: -50.20% | M168: Unsuccessful | N168: 2018-08-21
A169: 33 | B169: 2015-08-03 | D169: Allcargo logistics | E169: Accu | F169: 297.50 | H169: 350 | I169: 360.00 | J169: Profit of Rs 52.50/- | K169: 52.50 | L169: =K169/F169 -> 17.65% | M169: Successful | N169: 2015-08-16
A170: 34 | B170: 2015-08-03 | D170: Camline Fine | E170: Accu | F170: 115.50 | H170: 149 | I170: 140.00 | J170: Profit of Rs 33.50/- | K170: 33.50 | L170: 29.00% | M170: Successful | N170: 2017-01-05
A171: 35 | B171: 2015-09-04 | D171: TCI | E171: Accu | F171: 226.00 | H171: 292 | I171: 292.00 | J171: Target Achieved | K171: 66.00 | L171: 29.20% | M171: Successful | N171: 2015-10-09
A172: 36 | B172: 2015-09-07 | D172: Kalpataru Power Transmission Ltd | E172: Accu | F172: 232.50 | H172: 312.5 | I172: 310.00 | J172: Target Achieved | K172: 80.00 | L172: 34.41% | M172: Successful | N172: 2017-03-29
A173: 37 | B173: 2015-09-21 | D173: LLOYD ELECTRIC & ENG LTD | E173: Accu | F173: 196.50 | H173: 238 | I173: 238.00 | J173: Target Achieved | K173: 41.50 | L173: 21.12% | M173: Successful | N173: 2015-10-14
A174: 38 | B174: 2015-09-24 | D174: L&T Finance Holding | E174: Accu | F174: 65.00 | H174: 82 | I174: 82.00 | J174: Target Achieved | K174: 17.00 | L174: 26.15% | M174: Successful | N174: 2016-07-27
A175: 39 | B175: 2015-10-14 | D175: KEC International ltd | E175: Accu | F175: 144.00 | H175: 182.5 | I175: 181.00 | J175: Target Achieved | K175: 38.50 | L175: 26.74% | M175: Successful | N175: 2017-03-23
A176: 40 | B176: 2015-10-14 | D176: Gruh Finance | E176: Accu | F176: 264.00 | H176: 311 | I176: 311.00 | J176: Target Achieved | K176: 47.00 | L176: 17.80% | M176: Successful | N176: 2016-08-22
A177: 41 | B177: 2015-11-10 | D177: Pidilitind | E177: Buy | F177: 549.50 | H177: 630 | I177: 630.00 | J177: Target Achieved | K177: 80.50 | L177: 14.65% | M177: Successful | N177: 2016-02-19
A178: 42 | B178: 2015-12-04 | D178: Zensar Technology | E178: Accu | F178: 1027.50 | H178: 1315 | I178: 1250.00 | J178: Target Achieved | K178: =H178-F178 -> 287.50 | L178: 27.98% | M178: Successful | N178: 2018-05-24
A179: 43 | B179: 2015-12-29 | D179: Vinati Organics Ltd | E179: Accu | F179: 465.00 | H179: 540 | I179: 540.00 | J179: Target Achieved | K179: 75.00 | L179: =K179/F179 -> 16.13% | M179: Successful | N179: 2016-06-09
A180: 44 | B180: 2016-01-11 | D180: GSFC | E180: Buy | F180: 81.00 | H180: 110 | I180: 110.00 | J180: Target Achieved | K180: 29.00 | L180: 35.80% | M180: Successful | N180: 2017-01-10
A181: 45 | B181: 2016-01-13 | D181: SSWL | E181: Buy | F181: 417.50 | H181: 547 | I181: 535.00 | J181: Target Achieved | K181: 129.50 | L181: 31.02% | M181: Successful | N181: 2016-07-27
A182: 46 | B182: 2016-02-08 | D182: Persistent System Ltd | E182: Accu | F182: 650.00 | H182: 800 | I182: 800.00 | J182: Target Achieved | K182: 150.00 | L182: 23.08% | M182: Successful | N182: 2018-02-23
A183: 47 | B183: 2016-03-04 | D183: UPL | E183: Accu | F183: 437.50 | H183: 504.5 | I183: 522.00 | J183: Profit of Rs.67/- | K183: 67.00 | L183: 15.31% | M183: Successful | N183: 2016-04-20
A184: 48 | B184: 2016-03-09 | D184: Ashoka Buildcon Ltd | E184: Accu | F184: 189.50 | H184: 218 | I184: 218.00 | J184: Target Achieved | K184: 28.50 | L184: 15.04% | M184: Successful | N184: 2017-10-26
A185: 49 | B185: 2016-04-11 | D185: PTC INDIA FIN SERV LTD | E185: Accu | F185: 36-37 | I185: 60.00 | J185: Open
A186: 50 | B186: 2016-04-12 | D186: CAMLINFINE $ | E186: Accu | F186: 93.00 | H186: 149 | I186: 140.00 | J186: Profit of Rs 56/- | K186: 56.00 | L186: =K186/F186 -> 60.22% | M186: Successful | N186: 2017-01-05
A187: 51 | B187: 2016-04-12 | D187: Greaves Cotton Ltd. | E187: Accu | F187: 130.00 | H187: 150 | I187: 150-155 | J187: Target Achieved | K187: 20.00 | L187: 15.38% | M187: Successful | N187: 2016-07-13
A188: 52 | B188: 2016-04-13 | D188: DHFL | E188: Accu | F188: 196.00 | H188: 299 | I188: 299.00 | J188: Target Achieved | K188: 103.00 | L188: 52.55% | M188: Successful | N188: 2016-09-07
A189: 53 | B189: 2016-04-13 | D189: Magma | E189: Accu | F189: 88.00 | H189: 103 | I189: 103.00 | J189: Target Achieved | K189: 15.00 | L189: 17.05% | M189: Successful | N189: 2016-06-09
A190: 54 | B190: 2016-05-02 | D190: KEC International ltd $ | E190: Accu | F190: 127.50 | H190: 148 | I190: 148-150 | J190: Target Achieved | K190: 20.50 | L190: 16.08% | M190: Successful | N190: 2016-07-13
A191: 55 | B191: 2016-05-03 | D191: Mindtree | E191: Accu | F191: 675.00 | H191: 815 | I191: 790-800 | J191: Target Achieved | K191: 140.00 | L191: 20.74% | M191: Successful | N191: 2018-02-23
A192: 56 | B192: 2016-06-01 | D192: Atulauto | E192: Accu | F192: 495-505 | I192: 565-570 | J192: Open
A193: 57 | B193: 2016-06-06 | D193: TRITURBINE | E193: Accu | F193: 110.00 | H193: 126.5 | I193: 125.00 | J193: Profit of Rs.16.50/- | K193: 16.50 | L193: =K193/F193 -> 15.00% | M193: Successful | N193: 2016-07-01
A194: 58 | B194: 2016-06-17 | D194: Pennar Industries Ltd | E194: Accu | F194: 44.00 | H194: 69.5 | I194: 69.50 | J194: Profit of Rs.25.50/- | K194: 25.50 | L194: =K194/F194 -> 57.95% | M194: Successful | N194: 2017-08-30
A195: 59 | B195: 2016-06-28 | D195: EVEREADY INDS. IND. LTD. | E195: Accu | F195: 262.50 | H195: 340 | I195: 333.00 | J195: Profit of Rs.77.50/- | K195: 77.50 | L195: =K195/F195 -> 29.52% | M195: Successful | N195: 2017-10-09
A196: 60 | B196: 2016-06-28 | D196: FIEM INDUSTRIES LIMITED | E196: Accu | F196: 840.00 | H196: 1230 | I196: 1230.00 | J196: Target Achieved | K196: 390.00 | L196: =K196/F196 -> 46.43% | M196: Successful | N196: 2016-10-06
A197: 61 | B197: 2016-07-05 | D197: Bajaj Corp Ltd | E197: Accu | F197: 395 | H197: 468.50 | I197: 510.00 | J197: Part profit of Rs.73.50/- | K197: 73.50 | L197: =K197/F197 -> 19% | M197: Successful | N197: 2017-08-30
A198: 62 | B198: 2016-08-02 | D198: GPPL $ | E198: Buy | F198: 167-172 | I198: 198-200 | J198: Open
A199: 63 | B199: 2016-08-04 | D199: WONDERLA HOLIDAYS LTD | E199: Accu | F199: 395-405 | I199: 475.00 | J199: Open
A200: 64 | B200: 2016-08-11 | D200: CAMLINFINE | E200: Accu | F200: 86.50 | H200: 130 | I200: 130.00 | J200: Profit of Rs.43.50/- | K200: =H200-F200 -> 43.50 | L200: =K200/F200 -> 50.29% | M200: Successful | N200: 2017-12-22
A201: 65 | B201: 2016-08-18 | D201: GRANULES | E201: Accu | F201: 133.5 | H201: 126.50 | I201: 178.00 | J201: Exit | K201: -7.00 | L201: -5.24% | M201: Unsuccessful | N201: 2016-09-02
A202: 66 | B202: 2016-08-31 | D202: VA TECH WABAG | E202: Accu | F202: 560.00 | H202: 725 | I202: 725.00 | J202: Target Achieved | K202: 165.00 | L202: 29.46% | M202: Successful | N202: 2016-03-27
A203: 67 | B203: 2016-09-01 | D203: SKIPPER LIMITED | E203: Accu | F203: 160.50 | H203: 210 | I203: 210.00 | J203: Target Achieved | K203: 49.50 | L203: 30.84% | M203: Successful | N203: 2017-05-16
A204: 68 | B204: 2016-10-03 | D204: IFB Industries | E204: Accu | F204: 430.00 | H204: 596 | I204: 575.00 | J204: Profit of Rs.166/- | K204: 166.00 | L204: 38.60% | M204: Successful | N204: 2017-02-03
A205: 69 | B205: 2016-10-14 | D205: ASIANTILES | E205: Accu | F205: 280.00 | H205: 345 | I205: 345.00 | J205: Target Achieved | K205: 65.00 | L205: 23.21% | M205: Successful | N205: 2017-03-20
A206: 70 | B206: 2016-10-14 | D206: DEEPIND | E206: Accu | F206: 245.00 | H206: 325.5 | I206: 330.00 | J206: Profit of Rs.80.5/- | K206: 80.50 | L206: 32.86% | M206: Successful | N206: 2017-02-03
A207: 71 | B207: 2016-10-17 | D207: DCBBANK | E207: Accu | F207: 125.00 | H207: 160 | I207: 160.00 | J207: Target Achieved | K207: 35.00 | L207: 28.00% | M207: Successful | N207: 2017-03-09
A208: 72 | B208: 2016-10-17 | D208: ORIENTREF | E208: Accu | F208: 114.00 | H208: 145 | I208: 145.00 | J208: Target Achieved | K208: 31.00 | L208: =K208/F208 -> 27.19% | M208: Successful | N208: 2017-05-04
A209: 73 | B209: 2016-10-17 | D209: GANECOS | E209: Accu | F209: 212.00 | H209: 280 | I209: 276.00 | J209: Profit of Rs.68/- | K209: 68.00 | L209: =K209/F209 -> 32.08% | M209: Successful | N209: 2017-05-03
A210: 74 | B210: 2016-11-04 | D210: NBCC | E210: Accu | F210: 155.00 | H210: 210 | I210: 210.00 | J210: Profit of Rs.55/- | K210: 55.00 | L210: =K210/F210 -> 35.48% | M210: Successful | N210: 2017-07-28
A211: 75 | B211: 2016-12-06 | D211: PRECAM | E211: Accu | F211: 150.5 | H211: 72.50 | I211: 174.00 | J211: Loss of Rs.78/- | K211: -78.00 | L211: =K211/F211 -> -51.83% | M211: Unsuccessful | N211: 2018-08-21
A212: 76 | B212: 2016-12-08 | D212: INFRATEL | E212: Accu | F212: 380.00 | H212: 478 | I212: 468.00 | J212: Target Achieved | K212: 98.00 | L212: =K212/F212 -> 25.79% | M212: Successful | N212: 2017-10-17
A213: 77 | B213: 2016-12-30 | D213: GODREJPROP | E213: Accu | F213: 305.00 | H213: 375 | I213: 375.00 | J213: Target Achieved | K213: 70.00 | L213: 22.95% | M213: Successful | N213: 2017-02-02
A214: 78 | B214: 2017-01-04 | D214: DEEPAKNTR | E214: Accu | F214: 99.50 | H214: 158 | I214: 158.00 | J214: Target Achieved | K214: 58.50 | L214: 58.79% | M214: Successful | N214: 2017-06-12
A215: 79 | B215: 2017-02-20 | D215: SUBROS | E215: Accu | F215: 202.50 | H215: 234 | I215: 234.00 | J215: Target Achieved | K215: 31.50 | L215: 15.56% | M215: Successful | N215: 2017-04-11
A216: 80 | B216: 2017-02-20 | D216: RECLTD | E216: Accu | F216: 140.50 | H216: 220 | I216: 220.00 | J216: Target Achieved | K216: 79.50 | L216: 56.58% | M216: Successful | N216: 2017-05-09
A217: 81 | B217: 2017-03-24 | D217: VRLLOG | E217: Accu | F217: 300.50 | H217: 417.5 | I217: 420.00 | J217: Profit of Rs.117/- | K217: 117.00 | L217: 38.94% | M217: Successful | N217: 2017-12-01
A218: 82 | B218: 2017-03-24 | D218: FIEMIND | E218: Accu | F218: 850.00 | H218: 1042.5 | I218: 1023.00 | J218: Profit of Rs 192.50/- | K218: 192.50 | L218: 22.65% | M218: Successful | N218: 2017-04-05
A219: 83 | B219: 2017-04-05 | D219: RATNAMANI | E219: Accu | F219: 785.00 | H219: 930 | I219: 920.00 | J219: Profit of Rs.145/- | K219: 145.00 | L219: 18.47% | M219: Successful | N219: 2017-08-29
A220: 84 | B220: 2017-04-06 | D220: ZEEMEDIA | E220: Accu | F220: 40 | H220: 13.10 | I220: 60.00 | J220: Loss of Rs.26.9/- | K220: =H220-F220 -> -26.90 | L220: -67.25% | M220: Unsuccessful | N220: 2018-02-07
A221: 85 | B221: 2017-04-12 | D221: DABUR | E221: Accu | F221: 289.50 | H221: 354 | I221: 360.00 | J221: Profit of Rs.64.5/- | K221: 64.50 | L221: =K221/F221 -> 22.28% | M221: Successful | N221: 2017-11-01
A222: 86 | B222: 2017-04-20 | D222: KPRMILL | E222: Accu | F222: 700.00 | H222: 840 | I222: 840.00 | J222: Profit of Rs.140/- | K222: 140.00 | L222: =K222/F222 -> 20.00% | M222: Successful | N222: 2017-06-07
A223: 87 | B223: 2017-05-22 | D223: GREAVESCOT | E223: Accu | F223: 153-158 | I223: 190.00 | J223: Open
A224: 88 | B224: 2017-06-01 | D224: ESSELPACK | E224: Accu | F224: 130 | H224: 155.50 | I224: 170.00 | J224: Part profit of Rs.51/- | K224: =H224-F224 -> 25.50 | L224: =K224/F224 -> 20% | M224: Successful | N224: 2017-11-17
A225: 89 | B225: 2017-06-15 | D225: KEI | E225: Accu | F225: 214.50 | H225: 262 | I225: 262.00 | J225: Profit of Rs.47.5/- | K225: =H225-F225 -> 47.50 | L225: 22.14% | M225: Successful | N225: 2017-08-30
A226: 90 | B226: 2017-07-17 | D226: MAYURUNIQ | E226: Accu | F226: 370.00 | H226: 447.5 | I226: 450.00 | J226: Target Achieved | K226: 77.50 | L226: 20.95% | M226: Successful | N226: 2017-10-27
A227: 91 | B227: 2017-07-27 | D227: RAMCOCEM | E227: Accu | F227: 657.50 | H227: 825 | I227: 820.00 | J227: Target Achieved | K227: 167.50 | L227: 25.48% | M227: Successful | N227: 2017-12-21
A228: 92 | B228: 2017-08-17 | D228: FINPIPE | E228: Accu | F228: 605.00 | H228: 750 | I228: 750.00 | J228: Profit of Rs.145/- | K228: 145.00 | L228: 23.97% | M228: Successful | N228: 2017-10-19
A229: 93 | B229: 2017-09-01 | D229: SHK | E229: Accu | F229: 255 | H229: 307.50 | I229: 320.00 | J229: Part profit of Rs.52.5/- | K229: 52.50 | L229: 21% | M229: Successful | N229: 2017-12-29
A230: 94 | B230: 2017-09-19 | D230: SKIPPER | E230: Accu | F230: 215.00 | H230: 258 | I230: 258.00 | J230: Target Achieved | K230: 43.00 | L230: 20.00% | M230: Successful | N230: 2017-11-01
A231: 95 | B231: 2017-09-20 | D231: CAMLINFINE | E231: Accu | F231: 75.00 | H231: 90 | I231: 90.00 | J231: Profit of Rs.15.00/- | K231: 15.00 | L231: 20.00% | M231: Successful | N231: 2017-10-11
A232: 96 | B232: 2017-10-03 | D232: GNA | E232: Accu | F232: 315.00 | H232: 392 | I232: 384.00 | J232: Profit of Rs.77/- | K232: 77.00 | L232: 24.44% | M232: Successful | N232: 2017-10-09
A233: 97 | B233: 2017-10-05 | D233: NOCIL | E233: Accu | F233: 145.00 | H233: 179 | I233: 180.00 | J233: Profit of Rs.34/- | K233: 34.00 | L233: 23.45% | M233: Successful | N233: 2017-10-17
A234: 98 | B234: 2017-10-06 | D234: CENTURYPLY | E234: Accu | F234: 256.00 | H234: 323 | I234: 320.00 | J234: Target Achieved | K234: 67.00 | L234: 26.17% | M234: Successful | N234: 2017-11-28
A235: 99 | B235: 2017-10-09 | D235: RECLTD | E235: Accu | F235: 152.5 | H235: 183.50 | I235: 210.00 | J235: Part Profit of Rs.31/- | K235: 31.00 | L235: 20% | M235: Successful | N235: 2017-11-03
A236: 100 | B236: 2017-10-09 | D236: EIHOTEL | E236: Accu | F236: 137.50 | H236: 184 | I236: 183.00 | J236: Profit of Rs.46.5/- | K236: 46.50 | L236: 33.82% | M236: Successful | N236: 2018-01-08
A237: 101 | B237: 2017-10-10 | D237: BOROSIL | E237: Accu | F237: 895.00 | H237: 1122.5 | I237: 1078.00 | J237: Profit of Rs.227.5/- | K237: 227.50 | L237: 25.42% | M237: Successful | N237: 2018-01-17
A238: 102 | B238: 2017-10-10 | D238: NRBBEARING | E238: Accu | F238: 125.50 | H238: 158 | I238: 155.00 | J238: Profit of Rs.32.5/- | K238: 32.50 | L238: 25.90% | M238: Successful | N238: 2017-11-28
A239: 103 | B239: 2017-10-12 | D239: CYIENT | E239: Accu | F239: 525.00 | H239: 629 | I239: 629.00 | J239: Target Achieved | K239: 104.00 | L239: 19.81% | M239: Successful | N239: 2018-01-19
A240: 104 | B240: 2017-11-07 | D240: HATSUN | E240: Accu | F240: 740.00 | H240: 892.5 | I240: 900.00 | J240: Profit of Rs.152.5/- | K240: 152.50 | L240: 20.61% | M240: Successful | N240: 2017-11-13
A241: 105 | B241: 2017-12-04 | D241: SANGHIIND | E241: Accu | F241: 118.50 | H241: 143.5 | I241: 145.00 | J241: Profit of Rs.25/- | K241: 25.00 | L241: 21.10% | M241: Successful | N241: 2017-12-28
A242: 106 | B242: 2017-12-05 | D242: ALLCARGO | E242: Accu | F242: 177.5 | H242: 215.00 | I242: 230.00 | J242: Part Profit of Rs.37.5/- | K242: 37.50 | L242: 21% | M242: Successful | N242: 2017-12-27
A243: 107 | B243: 2017-12-21 | D243: KAJARIACER | E243: Accu | F243: 710-720 | I243: 872.00 | J243: Open
A244: 108 | B244: 2017-12-29 | D244: GNA | E244: Accu | F244: 435.00 | H244: 542.5 | I244: 539.00 | J244: Target Achieved | K244: =H244-F244 -> 107.50 | L244: =K244/F244 -> 24.71% | M244: Successful | N244: 2018-04-16
A245: 109 | B245: 2017-12-29 | D245: ZENSARTECH | E245: Accu | F245: 885.00 | H245: 1090 | I245: 1084.00 | J245: Target Achieved | K245: 205.00 | L245: =K245/F245 -> 23.16% | M245: Successful | N245: 2018-04-23
A246: 110 | B246: 2018-02-07 | D246: GREAVESCOT | E246: Accu | F246: 130-132 | I246: 190.00 | J246: Open
A247: 111 | B247: 2018-02-27 | D247: MOLDTKPAC | E247: Accu | F247: 320-330 | I247: 398.00 | J247: Open
A248: 112 | B248: 2018-03-05 | D248: LICHSGFIN | E248: Accu | F248: 505-515 | I248: 672.00 | J248: Open
A249: 113 | B249: 2018-04-02 | D249: EVERESTIND | E249: Accu | F249: 492.5 | H249: 589.00 | I249: 613.00 | J249: Part Profit of Rs.37.5/- | K249: =H249-F249 -> 96.50 | L249: =K249/F249 -> 20% | M249: Successful | N249: 2018-08-21
A250: 114 | B250: 2018-04-04 | D250: GPPL | E250: Accu | F250: 140-143 | I250: 180.00 | J250: Open
A251: 115 | B251: 2018-04-19 | D251: MANPASAND | E251: Accu | F251: 430 | H251: 220.00 | I251: 537.00 | J251: Loss of Rs.210/- | K251: =H251-F251 -> -210.00 | L251: =K251/F251 -> -48.84% | M251: Unsuccessful | N251: 2018-06-01
A252: 116 | B252: 2018-04-30 | D252: HEIDELBERG | E252: Accu | F252: 154-158 | I252: 196.00 | J252: Open
A253: 117 | B253: 2018-05-17 | D253: PHILIPCARB | E253: Accu | F253: 230-240 | I253: 348.00 | J253: Open
A254: 118 | B254: 2018-06-07 | D254: KEC | E254: Accu | F254: 340-345 | I254: 439.00 | J254: Open
A255: 119 | B255: 2018-07-04 | D255: ASHOKLEY | E255: Accu | F255: 125-130 | I255: 170.00 | J255: Open
... 28 more rows

Sheet Sheet2 (hidden)
A1: SYMBOL | B1: SERIES | C1: OPEN | D1: HIGH | E1: LOW | F1: CLOSE | G1: LAST | H1: PREVCLOSE | I1: TOTTRDQTY | J1: TOTTRDVAL | K1: TIMESTAMP | L1: TOTALTRADES | M1: ISIN | N1: ISIN
A2: 20MICRONS | B2: EQ | C2: 35.9 | D2: 35.9 | E2: 32.3 | F2: 33.4 | G2: 32.7 | H2: 35.9 | I2: 24889 | J2: 855245.35 | K2: 2019-02-11 | L2: 344 | M2: INE144J01027
A3: 21STCENMGM | B3: EQ | C3: 19.5 | D3: 19.5 | E3: 19.5 | F3: 19.5 | G3: 19.5 | H3: 19.85 | I3: 534 | J3: 10413 | K3: 2019-02-11 | L3: 18 | M3: INE253B01015
A4: 3IINFOTECH | B4: EQ | C4: 2.9 | D4: 3.2 | E4: 2.9 | F4: 3 | G4: 3 | H4: 2.9 | I4: 2710561 | J4: 8150213.75 | K4: 2019-02-11 | L4: 1068 | M4: INE748C01020
A5: 3MINDIA | B5: EQ | C5: 21490 | D5: 21775 | E5: 21201.3 | F5: 21619.2 | G5: 21599.85 | H5: 21332.45 | I5: 1734 | J5: 37461338.75 | K5: 2019-02-11 | L5: 813 | M5: INE470A01017
A6: 3PLAND | B6: EQ | C6: 11 | D6: 12 | E6: 9.9 | F6: 11.5 | G6: 11.5 | H6: 11 | I6: 2597 | J6: 28556.15 | K6: 2019-02-11 | L6: 57 | M6: INE105C01023
A7: 5PAISA | B7: EQ | C7: 235 | D7: 247.95 | E7: 214.8 | F7: 232.1 | G7: 232.15 | H7: 232 | I7: 2688 | J7: 627749.75 | K7: 2019-02-11 | L7: 129 | M7: INE618L01018
A8: 63MOONS | B8: EQ | C8: 77.7 | D8: 79.2 | E8: 75.6 | F8: 76.15 | G8: 75.6 | H8: 77.7 | I8: 176131 | J8: 13599023.5 | K8: 2019-02-11 | L8: 5338 | M8: INE111B01023
A9: 8KMILES | B9: EQ | C9: 118 | D9: 118 | E9: 108.4 | F9: 111 | G9: 111.5 | H9: 112.6 | I9: 150448 | J9: 16745498.4 | K9: 2019-02-11 | L9: 2677 | M9: INE650K01021
A10: A2ZINFRA | B10: EQ | C10: 9.7 | D10: 10.65 | E10: 9.7 | F10: 10.65 | G10: 10.65 | H10: 10.15 | I10: 136544 | J10: 1444390.2 | K10: 2019-02-11 | L10: 286 | M10: INE619I01012
A11: AARTIDRUGS | B11: EQ | C11: 585.7 | D11: 590 | E11: 577 | F11: 588.95 | G11: 590 | H11: 589.25 | I11: 27893 | J11: 16333327.65 | K11: 2019-02-11 | L11: 1872 | M11: INE767A01016
A12: AARTIIND | B12: EQ | C12: 1574 | D12: 1574 | E12: 1530.1 | F12: 1541.65 | G12: 1543 | H12: 1579.15 | I12: 60601 | J12: 93847401.05 | K12: 2019-02-11 | L12: 10496 | M12: INE769A01020
A13: AARVEEDEN | B13: EQ | C13: 22.5 | D13: 22.5 | E13: 21.5 | F13: 22 | G13: 22.1 | H13: 22.1 | I13: 4863 | J13: 106455.65 | K13: 2019-02-11 | L13: 46 | M13: INE273D01019
A14: AAVAS | B14: EQ | C14: 856 | D14: 869.9 | E14: 851.1 | F14: 867.4 | G14: 867.95 | H14: 861.75 | I14: 21235 | J14: 18369738.6 | K14: 2019-02-11 | L14: 2303 | M14: INE216P01012
A15: ABAN | B15: EQ | C15: 51.5 | D15: 51.85 | E15: 48.5 | F15: 49.3 | G15: 49.2 | H15: 51.7 | I15: 452183 | J15: 22210318.9 | K15: 2019-02-11 | L15: 3889 | M15: INE421A01028
A16: ABB | B16: EQ | C16: 1262 | D16: 1262 | E16: 1221 | F16: 1233.8 | G16: 1231 | H16: 1255.15 | I16: 50593 | J16: 62796125.4 | K16: 2019-02-11 | L16: 4717 | M16: INE117A01022
A17: ABBOTINDIA | B17: EQ | C17: 8050 | D17: 8050 | E17: 7600 | F17: 7666.4 | G17: 7750 | H17: 8042 | I17: 21425 | J17: 165357906.8 | K17: 2019-02-11 | L17: 4850 | M17: INE358A01014
A18: ABCAPITAL | B18: EQ | C18: 82 | D18: 82.3 | E18: 79 | F18: 79.1 | G18: 79.15 | H18: 81.6 | I18: 1539262 | J18: 122827121.8 | K18: 2019-02-11 | L18: 17669 | M18: INE674K01013
A19: ABFRL | B19: EQ | C19: 211.75 | D19: 212 | E19: 209.45 | F19: 211.1 | G19: 211.25 | H19: 211.95 | I19: 586752 | J19: 123761244.8 | K19: 2019-02-11 | L19: 6715 | M19: INE647O01011
A20: ACC | B20: EQ | C20: 1396 | D20: 1399.45 | E20: 1364.4 | F20: 1368.3 | G20: 1368 | H20: 1395.45 | I20: 1133028 | J20: 1567411849 | K20: 2019-02-11 | L20: 21668 | M20: INE012A01025
A21: ACCELYA | B21: EQ | C21: 935 | D21: 935 | E21: 915 | F21: 920.05 | G21: 920 | H21: 935.05 | I21: 2714 | J21: 2497286.05 | K21: 2019-02-11 | L21: 360 | M21: INE793A01012
A22: ACE | B22: EQ | C22: 83.8 | D22: 85.3 | E22: 82.9 | F22: 83.85 | G22: 84 | H22: 84.6 | I22: 59965 | J22: 5026328.3 | K22: 2019-02-11 | L22: 827 | M22: INE731H01025
A23: ADANIENT | B23: EQ | C23: 122.95 | D23: 123.25 | E23: 115.8 | F23: 118.2 | G23: 117.2 | H23: 123.75 | I23: 7048335 | J23: 837384807.9 | K23: 2019-02-11 | L23: 33383 | M23: INE423A01024
A24: ADANIGAS | B24: EQ | C24: 94.05 | D24: 96.75 | E24: 94 | F24: 94.8 | G24: 95.1 | H24: 95.45 | I24: 239324 | J24: 22703250.1 | K24: 2019-02-11 | L24: 1725 | M24: INE399L01023
A25: ADANIGREEN | B25: EQ | C25: 33 | D25: 35.2 | E25: 32.6 | F25: 32.85 | G25: 33 | H25: 33.9 | I25: 198956 | J25: 6589155.9 | K25: 2019-02-11 | L25: 941 | M25: INE364U01010
A26: ADANIPORTS | B26: EQ | C26: 332.95 | D26: 333.95 | E26: 318.4 | F26: 328.8 | G26: 329 | H26: 331.5 | I26: 3783848 | J26: 1236984581 | K26: 2019-02-11 | L26: 50495 | M26: INE742F01042
A27: ADANIPOWER | B27: EQ | C27: 35.75 | D27: 36.15 | E27: 33.35 | F27: 34.7 | G27: 34.9 | H27: 35.6 | I27: 11790819 | J27: 405425679.3 | K27: 2019-02-11 | L27: 19350 | M27: INE814H01011
A28: ADANITRANS | B28: EQ | C28: 215.4 | D28: 217.8 | E28: 214.55 | F28: 215.3 | G28: 216 | H28: 215.4 | I28: 194096 | J28: 41902249.5 | K28: 2019-02-11 | L28: 13497 | M28: INE931S01010
A29: ADFFOODS | B29: EQ | C29: 242 | D29: 242.05 | E29: 225.6 | F29: 228.75 | G29: 228.3 | H29: 242 | I29: 20484 | J29: 4772035.1 | K29: 2019-02-11 | L29: 944 | M29: INE982B01019
A30: ADHUNIK | B30: EQ | C30: 1.6 | D30: 1.65 | E30: 1.55 | F30: 1.6 | G30: 1.6 | H30: 1.6 | I30: 13660 | J30: 21772 | K30: 2019-02-11 | L30: 28 | M30: INE400H01019
A31: ADHUNIKIND | B31: EQ | C31: 41 | D31: 43.95 | E31: 39.25 | F31: 40.15 | G31: 41 | H31: 41.65 | I31: 2031 | J31: 82318.25 | K31: 2019-02-11 | L31: 42 | M31: INE452L01012
A32: ADLABS | B32: EQ | C32: 8.5 | D32: 8.7 | E32: 8.1 | F32: 8.65 | G32: 8.6 | H32: 8.3 | I32: 121528 | J32: 1022653.65 | K32: 2019-02-11 | L32: 245 | M32: INE172N01012
A33: ADORWELD | B33: EQ | C33: 329.6 | D33: 329.6 | E33: 323 | F33: 323.4 | G33: 323.1 | H33: 323.85 | I33: 2840 | J33: 923132.75 | K33: 2019-02-11 | L33: 126 | M33: INE045A01017
A34: ADROITINFO | B34: EQ | C34: 17.8 | D34: 17.8 | E34: 16.05 | F34: 16.6 | G34: 16.9 | H34: 15.7 | I34: 1685 | J34: 29140.65 | K34: 2019-02-11 | L34: 74 | M34: INE737B01033
A35: ADSL | B35: EQ | C35: 11.1 | D35: 11.3 | E35: 10.75 | F35: 10.85 | G35: 10.85 | H35: 11 | I35: 13196 | J35: 145325.4 | K35: 2019-02-11 | L35: 76 | M35: INE102I01027
A36: ADVANIHOTR | B36: EQ | C36: 67.85 | D36: 68.6 | E36: 65.3 | F36: 68.3 | G36: 68.1 | H36: 67.35 | I36: 3358 | J36: 228211.1 | K36: 2019-02-11 | L36: 64 | M36: INE199C01026
A37: ADVENZYMES | B37: EQ | C37: 165.15 | D37: 165.15 | E37: 152.9 | F37: 154.15 | G37: 153.85 | H37: 165.25 | I37: 84228 | J37: 13164004.1 | K37: 2019-02-11 | L37: 2137 | M37: INE837H01020
A38: AEGISCHEM | B38: EQ | C38: 189.1 | D38: 197.8 | E38: 188.15 | F38: 191.75 | G38: 190.8 | H38: 192.45 | I38: 114766 | J38: 21990951.4 | K38: 2019-02-11 | L38: 17969 | M38: INE208C01025
A39: AGARIND | B39: EQ | C39: 160 | D39: 168 | E39: 151.7 | F39: 156.15 | G39: 156 | H39: 161.35 | I39: 874 | J39: 137302.8 | K39: 2019-02-11 | L39: 56 | M39: INE204E01012
A40: AGCNET | B40: EQ | C40: 107.75 | D40: 109.9 | E40: 99.95 | F40: 100.3 | G40: 100 | H40: 105 | I40: 3175 | J40: 322527.3 | K40: 2019-02-11 | L40: 72 | M40: INE676A01019
A41: AGLSL | B41: EQ | C41: 63.3 | D41: 63.65 | E41: 58.85 | F41: 60.75 | G41: 60.05 | H41: 61.05 | I41: 5455 | J41: 327773.05 | K41: 2019-02-11 | L41: 87 | M41: INE517U01013
A42: AGRITECH | B42: EQ | C42: 56.1 | D42: 58.7 | E42: 52.3 | F42: 53 | G42: 52.5 | H42: 56.3 | I42: 8466 | J42: 458456.75 | K42: 2019-02-11 | L42: 189 | M42: INE449G01018
A43: AHLEAST | B43: EQ | C43: 237.05 | D43: 241.9 | E43: 235.15 | F43: 237.45 | G43: 236.1 | H43: 242.95 | I43: 136 | J43: 32394.75 | K43: 2019-02-11 | L43: 42 | M43: INE926K01017
A44: AHLUCONT | B44: EQ | C44: 265 | D44: 269.05 | E44: 259 | F44: 263.25 | G44: 262.1 | H44: 268.25 | I44: 3472 | J44: 915802.7 | K44: 2019-02-11 | L44: 226 | M44: INE758C01029
A45: AHLWEST | B45: EQ | C45: 349 | D45: 349.9 | E45: 335.25 | F45: 338.2 | G45: 335.25 | H45: 332.65 | I45: 22 | J45: 7563 | K45: 2019-02-11 | L45: 5 | M45: INE915K01010
A46: AIAENG | B46: EQ | C46: 1659 | D46: 1684.55 | E46: 1639 | F46: 1667.95 | G46: 1655.25 | H46: 1661.2 | I46: 63615 | J46: 105432537.3 | K46: 2019-02-11 | L46: 2420 | M46: INE212H01026
A47: AIFL | B47: EQ | C47: 13.95 | D47: 15.3 | E47: 13.9 | F47: 14.05 | G47: 13.9 | H47: 14.6 | I47: 161445 | J47: 2331309.75 | K47: 2019-02-11 | L47: 682 | M47: INE428O01016
A48: AIONJSW | B48: EQ | C48: 31 | D48: 33.1 | E48: 31 | F48: 31.6 | G48: 31.4 | H48: 31.4 | I48: 19045 | J48: 600414.65 | K48: 2019-02-11 | L48: 133 | M48: INE743C01021
A49: AJANTPHARM | B49: EQ | C49: 930 | D49: 1015 | E49: 924.35 | F49: 1002.85 | G49: 1010 | H49: 960.9 | I49: 1269473 | J49: 1237202707 | K49: 2019-02-11 | L49: 38451 | M49: INE031B01049
A50: AJMERA | B50: EQ | C50: 171.95 | D50: 171.95 | E50: 165 | F50: 165.45 | G50: 165.2 | H50: 172.25 | I50: 39297 | J50: 6565102 | K50: 2019-02-11 | L50: 1254 | M50: INE298G01027
A51: AKSHARCHEM | B51: EQ | C51: 310 | D51: 332.4 | E51: 310 | F51: 325.8 | G51: 328 | H51: 313.4 | I51: 3510 | J51: 1125863.3 | K51: 2019-02-11 | L51: 198 | M51: INE542B01011
A52: AKSHOPTFBR | B52: EQ | C52: 20.65 | D52: 20.9 | E52: 20.3 | F52: 20.6 | G52: 20.9 | H52: 20.45 | I52: 333745 | J52: 6849552.15 | K52: 2019-02-11 | L52: 1232 | M52: INE523B01011
A53: AKZOINDIA | B53: EQ | C53: 1737.2 | D53: 1737.2 | E53: 1688.9 | F53: 1700.8 | G53: 1700 | H53: 1720 | I53: 3003 | J53: 5109329.45 | K53: 2019-02-11 | L53: 470 | M53: INE133A01011
A54: ALANKIT | B54: EQ | C54: 29.75 | D54: 30 | E54: 28.95 | F54: 29.9 | G54: 29.9 | H54: 29.8 | I54: 1004578 | J54: 29381221.4 | K54: 2019-02-11 | L54: 2221 | M54: INE914E01040
A55: ALBERTDAVD | B55: EQ | C55: 416 | D55: 416 | E55: 397.4 | F55: 411.05 | G55: 414.5 | H55: 409.75 | I55: 6736 | J55: 2734884.7 | K55: 2019-02-11 | L55: 332 | M55: INE155C01010
A56: ALBK | B56: EQ | C56: 41 | D56: 41.95 | E56: 39.15 | F56: 39.85 | G56: 40.3 | H56: 41.05 | I56: 4831183 | J56: 192477086.4 | K56: 2019-02-11 | L56: 11735 | M56: INE428A01015
A57: ALCHEM | B57: BE | C57: 1.95 | D57: 2.05 | E57: 1.9 | F57: 1.9 | G57: 1.9 | H57: 2 | I57: 9622 | J57: 18464.3 | K57: 2019-02-11 | L57: 26 | M57: INE964B01033
A58: ALEMBICLTD | B58: EQ | C58: 40.55 | D58: 40.55 | E58: 39.1 | F58: 39.9 | G58: 39.95 | H58: 40.75 | I58: 89321 | J58: 3583675.25 | K58: 2019-02-11 | L58: 412 | M58: INE426A01027
A59: ALICON | B59: EQ | C59: 533.1 | D59: 543.95 | E59: 520 | F59: 525.75 | G59: 525 | H59: 545 | I59: 2850 | J59: 1501697.9 | K59: 2019-02-11 | L59: 235 | M59: INE062D01024
A60: ALKALI | B60: EQ | C60: 43 | D60: 44.8 | E60: 41.3 | F60: 41.5 | G60: 41.5 | H60: 43.6 | I60: 7124 | J60: 302929.95 | K60: 2019-02-11 | L60: 154 | M60: INE773I01017
A61: ALKEM | B61: EQ | C61: 1860 | D61: 1914.7 | E61: 1859.95 | F61: 1891.7 | G61: 1896 | H61: 1903.6 | I61: 29265 | J61: 55352647.9 | K61: 2019-02-11 | L61: 8277 | M61: INE540L01014
A62: ALKYLAMINE | B62: EQ | C62: 771.05 | D62: 771.05 | E62: 713.5 | F62: 731.05 | G62: 725 | H62: 751.8 | I62: 2726 | J62: 2011863.7 | K62: 2019-02-11 | L62: 286 | M62: INE150B01021
A63: ALLCARGO | B63: EQ | C63: 102.9 | D63: 105 | E63: 101.3 | F63: 102.6 | G63: 102.7 | H63: 101.15 | I63: 101670 | J63: 10464947.4 | K63: 2019-02-11 | L63: 1586 | M63: INE418H01029
A64: ALLSEC | B64: EQ | C64: 180.9 | D64: 180.95 | E64: 165 | F64: 168.45 | G64: 170.9 | H64: 180.95 | I64: 22769 | J64: 3881033.2 | K64: 2019-02-11 | L64: 629 | M64: INE835G01018
A65: ALMONDZ | B65: EQ | C65: 21.6 | D65: 23.8 | E65: 20.9 | F65: 21.2 | G65: 21.1 | H65: 22.6 | I65: 7859 | J65: 167406.35 | K65: 2019-02-11 | L65: 53 | M65: INE326B01027
A66: ALOKTEXT | B66: EQ | C66: 3.6 | D66: 3.65 | E66: 3.55 | F66: 3.55 | G66: 3.55 | H66: 3.65 | I66: 1407369 | J66: 5068168.45 | K66: 2019-02-11 | L66: 639 | M66: INE270A01011
A67: ALPA | B67: EQ | C67: 24.45 | D67: 25.2 | E67: 23.7 | F67: 24.1 | G67: 24 | H67: 24.2 | I67: 16616 | J67: 406671.85 | K67: 2019-02-11 | L67: 211 | M67: INE385I01010
A68: ALPHAGEO | B68: EQ | C68: 438.7 | D68: 444.9 | E68: 403.7 | F68: 412.95 | G68: 412.05 | H68: 430.55 | I68: 5345 | J68: 2247741.2 | K68: 2019-02-11 | L68: 529 | M68: INE137C01018
A69: AMARAJABAT | B69: EQ | C69: 744.1 | D69: 755 | E69: 737.75 | F69: 740.45 | G69: 744 | H69: 753.1 | I69: 545367 | J69: 405082069.6 | K69: 2019-02-11 | L69: 16054 | M69: INE885A01032
A70: AMBER | B70: EQ | C70: 700 | D70: 715 | E70: 691 | F70: 699.6 | G70: 691.1 | H70: 696.1 | I70: 4580 | J70: 3232485.35 | K70: 2019-02-11 | L70: 696 | M70: INE371P01015
A71: AMBIKCO | B71: EQ | C71: 1144.9 | D71: 1145 | E71: 1135 | F71: 1138.85 | G71: 1137.5 | H71: 1135.45 | I71: 1882 | J71: 2147987.75 | K71: 2019-02-11 | L71: 143 | M71: INE540G01014
A72: AMBUJACEM | B72: EQ | C72: 213.3 | D72: 213.7 | E72: 206.8 | F72: 207.6 | G72: 207 | H72: 213.25 | I72: 1168695 | J72: 243833597.1 | K72: 2019-02-11 | L72: 15792 | M72: INE079A01024
A73: AMDIND | B73: EQ | C73: 20.4 | D73: 21.1 | E73: 20.1 | F73: 20.1 | G73: 20.1 | H73: 20.85 | I73: 5653 | J73: 114794.7 | K73: 2019-02-11 | L73: 54 | M73: INE005I01014
A74: AMJLAND | B74: EQ | C74: 19 | D74: 19.05 | E74: 18.6 | F74: 18.95 | G74: 19.05 | H74: 19.1 | I74: 2255 | J74: 42575.3 | K74: 2019-02-11 | L74: 26 | M74: INE606A01024
A75: AMRUTANJAN | B75: EQ | C75: 305.75 | D75: 305.75 | E75: 296.05 | F75: 298.15 | G75: 297.1 | H75: 305.45 | I75: 7587 | J75: 2271534.65 | K75: 2019-02-11 | L75: 428 | M75: INE098F01031
A76: ANANTRAJ | B76: EQ | C76: 31.65 | D76: 32.3 | E76: 30.75 | F76: 31.05 | G76: 31.1 | H76: 31.6 | I76: 332867 | J76: 10396144.1 | K76: 2019-02-11 | L76: 2248 | M76: INE242C01024
A77: ANDHRABANK | B77: EQ | C77: 24.05 | D77: 24.2 | E77: 23.55 | F77: 23.8 | G77: 23.95 | H77: 24.1 | I77: 739629 | J77: 17629830.4 | K77: 2019-02-11 | L77: 1928 | M77: INE434A01013
A78: ANDHRACEMT | B78: EQ | C78: 4.2 | D78: 4.2 | E78: 3.3 | F78: 3.45 | G78: 3.45 | H78: 4.1 | I78: 382698 | J78: 1331493.5 | K78: 2019-02-11 | L78: 291 | M78: INE666E01012
A79: ANDHRSUGAR | B79: EQ | C79: 307.7 | D79: 308.75 | E79: 302.65 | F79: 304.45 | G79: 303.8 | H79: 307.7 | I79: 8952 | J79: 2727211.3 | K79: 2019-02-11 | L79: 406 | M79: INE715B01013
A80: ANGIND | B80: BE | C80: 1.25 | D80: 1.25 | E80: 1.25 | F80: 1.25 | G80: 1.25 | H80: 1.2 | I80: 7162 | J80: 8952.5 | K80: 2019-02-11 | L80: 9 | M80: INE017D01010
A81: ANIKINDS | B81: EQ | C81: 13.45 | D81: 14.1 | E81: 12.8 | F81: 13.1 | G81: 13 | H81: 13.6 | I81: 6538 | J81: 85669.7 | K81: 2019-02-11 | L81: 70 | M81: INE087B01017
A82: ANKITMETAL | B82: BE | C82: 0.55 | D82: 0.55 | E82: 0.5 | F82: 0.5 | G82: 0.5 | H82: 0.45 | I82: 36371 | J82: 18227.45 | K82: 2019-02-11 | L82: 48 | M82: INE106I01010
A83: ANSALAPI | B83: EQ | C83: 10.15 | D83: 10.35 | E83: 9.2 | F83: 9.8 | G83: 9.8 | H83: 10.15 | I83: 117189 | J83: 1158434.65 | K83: 2019-02-11 | L83: 381 | M83: INE436A01026
A84: ANSALHSG | B84: EQ | C84: 11.6 | D84: 11.6 | E84: 10.4 | F84: 10.65 | G84: 10.6 | H84: 11.2 | I84: 69687 | J84: 754922.9 | K84: 2019-02-11 | L84: 352 | M84: INE880B01015
A85: ANTGRAPHIC | B85: BE | C85: 0.45 | D85: 0.5 | E85: 0.45 | F85: 0.5 | G85: 0.5 | H85: 0.5 | I85: 44400 | J85: 20030.35 | K85: 2019-02-11 | L85: 18 | M85: INE414B01021
A86: APARINDS | B86: EQ | C86: 609.05 | D86: 612.75 | E86: 604 | F86: 605.2 | G86: 605 | H86: 615.4 | I86: 3301 | J86: 2001043.85 | K86: 2019-02-11 | L86: 220 | M86: INE372A01015
A87: APCL | B87: EQ | C87: 99.4 | D87: 105.25 | E87: 97.45 | F87: 104.5 | G87: 105 | H87: 102.1 | I87: 2334 | J87: 236576.25 | K87: 2019-02-11 | L87: 103 | M87: INE071F01012
A88: APCOTEXIND | B88: EQ | C88: 447.6 | D88: 447.6 | E88: 433.05 | F88: 445.4 | G88: 444.95 | H88: 445.9 | I88: 2304 | J88: 1022001.7 | K88: 2019-02-11 | L88: 204 | M88: INE116A01024
A89: APEX | B89: EQ | C89: 296.5 | D89: 298.85 | E89: 282.4 | F89: 284.8 | G89: 284 | H89: 295.4 | I89: 73967 | J89: 21247026.5 | K89: 2019-02-11 | L89: 2087 | M89: INE346W01013
A90: APLAPOLLO | B90: EQ | C90: 1087.85 | D90: 1096.7 | E90: 1075.05 | F90: 1085.5 | G90: 1086 | H90: 1089.15 | I90: 32387 | J90: 35164678.65 | K90: 2019-02-11 | L90: 760 | M90: INE702C01019
A91: APLLTD | B91: EQ | C91: 563 | D91: 586.9 | E91: 551.15 | F91: 554.85 | G91: 553.3 | H91: 565.6 | I91: 38678 | J91: 21754014.45 | K91: 2019-02-11 | L91: 3686 | M91: INE901L01018
A92: APOLLO | B92: EQ | C92: 101.8 | D92: 104.8 | E92: 98 | F92: 99.5 | G92: 99 | H92: 101.55 | I92: 15543 | J92: 1554146.15 | K92: 2019-02-11 | L92: 480 | M92: INE713T01010
A93: APOLLOHOSP | B93: EQ | C93: 1300 | D93: 1300 | E93: 1090 | F93: 1121.9 | G93: 1124.1 | H93: 1257.85 | I93: 5424327 | J93: 6211780280 | K93: 2019-02-11 | L93: 211252 | M93: INE437A01024
A94: APOLLOTYRE | B94: EQ | C94: 202.15 | D94: 204.85 | E94: 200.2 | F94: 201.7 | G94: 202 | H94: 203.15 | I94: 1741712 | J94: 352680769.6 | K94: 2019-02-11 | L94: 17171 | M94: INE438A01022
A95: APOLSINHOT | B95: BE | C95: 944 | D95: 950 | E95: 910.05 | F95: 948.7 | G95: 950 | H95: 932.1 | I95: 379 | J95: 354977.05 | K95: 2019-02-11 | L95: 40 | M95: INE451F01024
A96: APTECHT | B96: EQ | C96: 162.45 | D96: 162.9 | E96: 155 | F96: 156.6 | G96: 155.6 | H96: 162.55 | I96: 144165 | J96: 22819707.9 | K96: 2019-02-11 | L96: 3077 | M96: INE266F01018
A97: ARCHIDPLY | B97: EQ | C97: 37 | D97: 38.4 | E97: 36.6 | F97: 37.1 | G97: 37.7 | H97: 37.1 | I97: 19809 | J97: 745008.55 | K97: 2019-02-11 | L97: 471 | M97: INE877I01016
A98: ARCHIES | B98: EQ | C98: 27.2 | D98: 27.8 | E98: 26.8 | F98: 26.95 | G98: 26.9 | H98: 27 | I98: 51643 | J98: 1400553 | K98: 2019-02-11 | L98: 283 | M98: INE731A01020
A99: ARCOTECH | B99: EQ | C99: 4.85 | D99: 4.9 | E99: 4.55 | F99: 4.6 | G99: 4.7 | H99: 4.75 | I99: 112626 | J99: 523482.1 | K99: 2019-02-11 | L99: 247 | M99: INE574I01035
A100: ARIES | B100: EQ | C100: 88.5 | D100: 89.5 | E100: 85.05 | F100: 85.8 | G100: 86.2 | H100: 88.5 | I100: 14535 | J100: 1254873.85 | K100: 2019-02-11 | L100: 457 | M100: INE298I01015
A101: ARIHANT | B101: EQ | C101: 37.25 | D101: 37.25 | E101: 29.4 | F101: 30 | G101: 30 | H101: 31.9 | I101: 1120 | J101: 35693.4 | K101: 2019-02-11 | L101: 47 | M101: INE413D01011
A102: ARIHANTSUP | B102: EQ | C102: 50.7 | D102: 51.95 | E102: 45.75 | F102: 49.8 | G102: 50.6 | H102: 50.7 | I102: 22718 | J102: 1107503.65 | K102: 2019-02-11 | L102: 266 | M102: INE643K01018
A103: ARMANFIN | B103: EQ | C103: 397.95 | D103: 402 | E103: 380 | F103: 391.95 | G103: 393.9 | H103: 390 | I103: 7913 | J103: 3131311.1 | K103: 2019-02-11 | L103: 133 | M103: INE109C01017
A104: AROGRANITE | B104: EQ | C104: 49 | D104: 51 | E104: 46 | F104: 46.9 | G104: 46.6 | H104: 46.15 | I104: 7552 | J104: 360019.3 | K104: 2019-02-11 | L104: 174 | M104: INE210C01013
A105: ARROWGREEN | B105: BE | C105: 82.8 | D105: 88.7 | E105: 80.75 | F105: 80.9 | G105: 82 | H105: 85 | I105: 5442 | J105: 441244.6 | K105: 2019-02-11 | L105: 303 | M105: INE570D01018
A106: ARROWTEX | B106: EQ | C106: 15.5 | D106: 15.5 | E106: 14.15 | F106: 14.95 | G106: 15 | H106: 14.65 | I106: 4913 | J106: 73038.45 | K106: 2019-02-11 | L106: 66 | M106: INE933J01015
A107: ARSHIYA | B107: EQ | C107: 29.4 | D107: 30.3 | E107: 29.25 | F107: 30 | G107: 30.3 | H107: 29.65 | I107: 34708 | J107: 1035315.1 | K107: 2019-02-11 | L107: 368 | M107: INE968D01022
A108: ARSSINFRA | B108: EQ | C108: 26.8 | D108: 29.45 | E108: 26.35 | F108: 26.9 | G108: 26.4 | H108: 29.2 | I108: 8085 | J108: 219796.45 | K108: 2019-02-11 | L108: 80 | M108: INE267I01010
A109: ARVIND | B109: EQ | C109: 81.1 | D109: 82.3 | E109: 78.75 | F109: 79.45 | G109: 79.65 | H109: 81.35 | I109: 2295080 | J109: 183758381.1 | K109: 2019-02-11 | L109: 13555 | M109: INE034A01011
A110: ARVSMART | B110: EQ | C110: 113 | D110: 114 | E110: 112.25 | F110: 113.1 | G110: 113 | H110: 114.1 | I110: 9853 | J110: 1117249.55 | K110: 2019-02-11 | L110: 173 | M110: INE034S01021
A111: ASAHIINDIA | B111: EQ | C111: 255.95 | D111: 255.95 | E111: 241.35 | F111: 244.9 | G111: 246.5 | H111: 255.05 | I111: 46130 | J111: 11329925.35 | K111: 2019-02-11 | L111: 2230 | M111: INE439A01020
A112: ASAHISONG | B112: EQ | C112: 154 | D112: 154.9 | E112: 146.25 | F112: 152.95 | G112: 153 | H112: 146.25 | I112: 3400 | J112: 514172.25 | K112: 2019-02-11 | L112: 164 | M112: INE228I01012
A113: ASAL | B113: EQ | C113: 50.55 | D113: 51.6 | E113: 49.35 | F113: 50.3 | G113: 49.55 | H113: 51.35 | I113: 2338 | J113: 118796.95 | K113: 2019-02-11 | L113: 55 | M113: INE900C01027
A114: ASHAPURMIN | B114: EQ | C114: 22.2 | D114: 22.2 | E114: 21 | F114: 21.2 | G114: 21.2 | H114: 22.15 | I114: 25943 | J114: 555264.1 | K114: 2019-02-11 | L114: 374 | M114: INE348A01023
A115: ASHIANA | B115: EQ | C115: 108.5 | D115: 108.5 | E115: 100.8 | F115: 102.25 | G115: 103 | H115: 106.8 | I115: 14788 | J115: 1536354.8 | K115: 2019-02-11 | L115: 350 | M115: INE365D01021
A116: ASHIMASYN | B116: BE | C116: 12.65 | D116: 13.35 | E116: 12.6 | F116: 12.85 | G116: 12.8 | H116: 12.95 | I116: 23561 | J116: 308638.5 | K116: 2019-02-11 | L116: 56 | M116: INE440A01010
A117: ASHOKA | B117: EQ | C117: 114.6 | D117: 114.9 | E117: 112 | F117: 112.6 | G117: 113.3 | H117: 114.6 | I117: 39652 | J117: 4490039.35 | K117: 2019-02-11 | L117: 821 | M117: INE442H01029
A118: ASHOKLEY | B118: EQ | C118: 86.8 | D118: 86.8 | E118: 82.6 | F118: 83.1 | G118: 83.3 | H118: 87.05 | I118: 18189713 | J118: 1527243570 | K118: 2019-02-11 | L118: 70235 | M118: INE208A01029
A119: ASIANHOTNR | B119: EQ | C119: 144.95 | D119: 148 | E119: 140.15 | F119: 144.95 | G119: 148 | H119: 140.3 | I119: 182 | J119: 26387.65 | K119: 2019-02-11 | L119: 9 | M119: INE363A01022
A120: ASIANPAINT | B120: EQ | C120: 1447.9 | D120: 1457.3 | E120: 1427 | F120: 1437.1 | G120: 1442.15 | H120: 1448.8 | I120: 728051 | J120: 1047073398 | K120: 2019-02-11 | L120: 30999 | M120: INE021A01026
A121: ASIANTILES | B121: EQ | C121: 155.8 | D121: 155.8 | E121: 150.3 | F121: 152.7 | G121: 152.35 | H121: 154.85 | I121: 30243 | J121: 4610136.4 | K121: 2019-02-11 | L121: 2646 | M121: INE022I01019
A122: ASPINWALL | B122: EQ | C122: 153.5 | D122: 153.5 | E122: 148 | F122: 152.45 | G122: 152.45 | H122: 152.9 | I122: 279 | J122: 42157.7 | K122: 2019-02-11 | L122: 20 | M122: INE991I01015
A123: ASSAMCO | B123: EQ | C123: 1.8 | D123: 1.9 | E123: 1.75 | F123: 1.85 | G123: 1.8 | H123: 1.75 | I123: 213475 | J123: 389447.45 | K123: 2019-02-11 | L123: 179 | M123: INE442A01024
A124: ASTEC | B124: EQ | C124: 493.05 | D124: 493.6 | E124: 486.3 | F124: 490.75 | G124: 493 | H124: 493.3 | I124: 3097 | J124: 1518326.2 | K124: 2019-02-11 | L124: 201 | M124: INE563J01010
A125: ASTERDM | B125: EQ | C125: 152.65 | D125: 159.95 | E125: 152.6 | F125: 157.85 | G125: 157.85 | H125: 154.95 | I125: 21771 | J125: 3404134.1 | K125: 2019-02-11 | L125: 469 | M125: INE914M01019
A126: ASTRAL | B126: EQ | C126: 1100 | D126: 1170 | E126: 1094.45 | F126: 1142.45 | G126: 1140 | H126: 1108.1 | I126: 171485 | J126: 194871275 | K126: 2019-02-11 | L126: 9604 | M126: INE006I01046
A127: ASTRAMICRO | B127: EQ | C127: 74.15 | D127: 76.3 | E127: 71.8 | F127: 74.75 | G127: 76 | H127: 74.35 | I127: 96472 | J127: 7063564.4 | K127: 2019-02-11 | L127: 968 | M127: INE386C01029
A128: ASTRAZEN | B128: EQ | C128: 1827.4 | D128: 1888 | E128: 1808.95 | F128: 1837.45 | G128: 1840 | H128: 1809.3 | I128: 36215 | J128: 67069998.4 | K128: 2019-02-11 | L128: 4666 | M128: INE203A01020
A129: ASTRON | B129: EQ | C129: 98.2 | D129: 102.95 | E129: 96.2 | F129: 97.8 | G129: 97 | H129: 98.6 | I129: 73262 | J129: 7276386.55 | K129: 2019-02-11 | L129: 955 | M129: INE646X01014
A130: ATFL | B130: EQ | C130: 582.05 | D130: 582.05 | E130: 567 | F130: 576.5 | G130: 572 | H130: 582.25 | I130: 2081 | J130: 1197510 | K130: 2019-02-11 | L130: 257 | M130: INE209A01019
A131: ATLANTA | B131: EQ | C131: 13.75 | D131: 15.15 | E131: 13.75 | F131: 15.15 | G131: 15.15 | H131: 14.45 | I131: 48622 | J131: 681808.65 | K131: 2019-02-11 | L131: 448 | M131: INE285H01022
A132: ATLASCYCLE | B132: BE | C132: 67.05 | D132: 68.75 | E132: 64 | F132: 64.85 | G132: 64 | H132: 67.05 | I132: 1909 | J132: 124212.15 | K132: 2019-02-11 | L132: 58 | M132: INE446A01025
A133: ATNINTER | B133: BE | C133: 0.05 | D133: 0.1 | E133: 0.05 | F133: 0.1 | G133: 0.1 | H133: 0.05 | I133: 2124 | J133: 144.7 | K133: 2019-02-11 | L133: 6 | M133: INE803A01027
A134: ATUL | B134: EQ | C134: 3406.55 | D134: 3488.15 | E134: 3375 | F134: 3413.5 | G134: 3425 | H134: 3467.05 | I134: 16695 | J134: 57323234.9 | K134: 2019-02-11 | L134: 1601 | M134: INE100A01010
A135: ATULAUTO | B135: EQ | C135: 305.5 | D135: 306.75 | E135: 296.05 | F135: 301.55 | G135: 303 | H135: 296.9 | I135: 32617 | J135: 9822963.95 | K135: 2019-02-11 | L135: 1296 | M135: INE951D01028
A136: AUBANK | B136: EQ | C136: 593.8 | D136: 593.8 | E136: 576.55 | F136: 588.95 | G136: 584 | H136: 586.05 | I136: 110178 | J136: 64249013.55 | K136: 2019-02-11 | L136: 7408 | M136: INE949L01017
A137: AURIONPRO | B137: EQ | C137: 110.95 | D137: 114.7 | E137: 106.55 | F137: 112.1 | G137: 113 | H137: 112.8 | I137: 17370 | J137: 1913636.55 | K137: 2019-02-11 | L137: 654 | M137: INE132H01018
A138: AUROPHARMA | B138: EQ | C138: 764 | D138: 770 | E138: 749.2 | F138: 763.15 | G138: 764.65 | H138: 761.15 | I138: 1976232 | J138: 1502512317 | K138: 2019-02-11 | L138: 43984 | M138: INE406A01037
A139: AUSOMENT | B139: EQ | C139: 30.3 | D139: 31.8 | E139: 30.3 | F139: 30.4 | G139: 30.3 | H139: 31.85 | I139: 11276 | J139: 343139.3 | K139: 2019-02-11 | L139: 72 | M139: INE218C01016
A140: AUTOAXLES | B140: EQ | C140: 1133 | D140: 1139.95 | E140: 1110.05 | F140: 1112.85 | G140: 1119 | H140: 1137.6 | I140: 2244 | J140: 2508078.75 | K140: 2019-02-11 | L140: 405 | M140: INE449A01011
A141: AUTOIND | B141: EQ | C141: 57.35 | D141: 58.95 | E141: 57.1 | F141: 57.3 | G141: 57.7 | H141: 58.3 | I141: 4382 | J141: 250698.6 | K141: 2019-02-11 | L141: 63 | M141: INE718H01014
A142: AUTOLITIND | B142: EQ | C142: 29 | D142: 29 | E142: 27.7 | F142: 27.85 | G142: 28.5 | H142: 29.05 | I142: 27573 | J142: 783819.45 | K142: 2019-02-11 | L142: 179 | M142: INE448A01013
A143: AVADHSUGAR | B143: EQ | C143: 384.1 | D143: 388.85 | E143: 358.6 | F143: 360.4 | G143: 363 | H143: 382.7 | I143: 25394 | J143: 9444597.35 | K143: 2019-02-11 | L143: 1056 | M143: INE349W01017
A144: AVANTIFEED | B144: EQ | C144: 335 | D144: 343.7 | E144: 331 | F144: 336.2 | G144: 339 | H144: 330.85 | I144: 440447 | J144: 147858466.6 | K144: 2019-02-11 | L144: 13599 | M144: INE871C01038
A145: AVTNPL | B145: EQ | C145: 21.8 | D145: 22 | E145: 21.5 | F145: 21.95 | G145: 21.85 | H145: 21.9 | I145: 6861 | J145: 148796.3 | K145: 2019-02-11 | L145: 86 | M145: INE488D01021
A146: AXISBANK | B146: EQ | C146: 719.9 | D146: 719.9 | E146: 705.3 | F146: 710.85 | G146: 713.3 | H146: 719.4 | I146: 7234953 | J146: 5144337214 | K146: 2019-02-11 | L146: 139946 | M146: INE238A01034
A147: AXISCADES | B147: EQ | C147: 55.05 | D147: 57.7 | E147: 52.5 | F147: 57.2 | G147: 57.7 | H147: 55.05 | I147: 39773 | J147: 2200713.15 | K147: 2019-02-11 | L147: 782 | M147: INE555B01013
A148: AXISGOLD | B148: EQ | C148: 2919 | D148: 2919 | E148: 2877.05 | F148: 2899.3 | G148: 2900 | H148: 2888 | I148: 60 | J148: 174081 | K148: 2019-02-11 | L148: 36 | M148: INF846K01347
A149: AXISNIFTY | B149: EQ | C149: 1118.45 | D149: 1118.45 | E149: 1110 | F149: 1110 | G149: 1110 | H149: 1118.45 | I149: 35 | J149: 38937.33 | K149: 2019-02-11 | L149: 7 | M149: INF846K01ZL0
A150: AYMSYNTEX | B150: EQ | C150: 39 | D150: 39 | E150: 34 | F150: 34.3 | G150: 34.35 | H150: 34.2 | I150: 19964 | J150: 691793.65 | K150: 2019-02-11 | L150: 69 | M150: INE193B01039
A151: BAFNAPHARM | B151: EQ | C151: 9.35 | D151: 9.45 | E151: 8.9 | F151: 9.3 | G151: 9.45 | H151: 8.9 | I151: 23216 | J151: 212740.7 | K151: 2019-02-11 | L151: 118 | M151: INE878I01014
A152: BAGFILMS | B152: EQ | C152: 4.45 | D152: 4.45 | E152: 4.3 | F152: 4.35 | G152: 4.4 | H152: 4.4 | I152: 59373 | J152: 258957.85 | K152: 2019-02-11 | L152: 116 | M152: INE116D01028
A153: BAJAJ-AUTO | B153: EQ | C153: 2850 | D153: 2870 | E153: 2819.05 | F153: 2853.6 | G153: 2846.95 | H153: 2851.4 | I153: 712787 | J153: 2030066708 | K153: 2019-02-11 | L153: 22245 | M153: INE917I01010
A154: BAJAJCON | B154: EQ | C154: 349.25 | D154: 356.1 | E154: 346.2 | F154: 352.65 | G154: 355.2 | H154: 354.1 | I154: 130907 | J154: 45827520.2 | K154: 2019-02-11 | L154: 4894 | M154: INE933K01021
A155: BAJAJELEC | B155: EQ | C155: 483.85 | D155: 486 | E155: 471.1 | F155: 479.85 | G155: 479.9 | H155: 482.1 | I155: 301228 | J155: 143939510.4 | K155: 2019-02-11 | L155: 19683 | M155: INE193E01025
A156: BAJAJFINSV | B156: EQ | C156: 6184 | D156: 6223.5 | E156: 6077.1 | F156: 6096.25 | G156: 6099 | H156: 6182.7 | I156: 113518 | J156: 695160685 | K156: 2019-02-11 | L156: 15791 | M156: INE918I01018
A157: BAJAJHIND | B157: EQ | C157: 7.75 | D157: 7.85 | E157: 7.5 | F157: 7.6 | G157: 7.65 | H157: 7.7 | I157: 751742 | J157: 5754609.95 | K157: 2019-02-11 | L157: 991 | M157: INE306A01021
A158: BAJAJHLDNG | B158: EQ | C158: 3158.45 | D158: 3158.45 | E158: 3095.8 | F158: 3117.25 | G158: 3108 | H158: 3131.5 | I158: 74757 | J158: 234311563.8 | K158: 2019-02-11 | L158: 3328 | M158: INE118A01012
A159: BAJFINANCE | B159: EQ | C159: 2724.7 | D159: 2724.7 | E159: 2635 | F159: 2657.2 | G159: 2668.25 | H159: 2707.15 | I159: 1194702 | J159: 3184222842 | K159: 2019-02-11 | L159: 56949 | M159: INE296A01024
A160: BALAJITELE | B160: EQ | C160: 85 | D160: 85 | E160: 80.55 | F160: 81.45 | G160: 81.45 | H160: 83.3 | I160: 46401 | J160: 3818039.75 | K160: 2019-02-11 | L160: 845 | M160: INE794B01026
A161: BALAMINES | B161: EQ | C161: 395 | D161: 399.95 | E161: 387 | F161: 388.75 | G161: 390.25 | H161: 400.25 | I161: 12272 | J161: 4784164.75 | K161: 2019-02-11 | L161: 652 | M161: INE050E01027
A162: BALKRISHNA | B162: EQ | C162: 38 | D162: 38 | E162: 35.2 | F162: 37.45 | G162: 37.45 | H162: 36.9 | I162: 7071 | J162: 261198.2 | K162: 2019-02-11 | L162: 142 | M162: INE875R01011
A163: BALKRISIND | B163: EQ | C163: 745 | D163: 813 | E163: 744 | F163: 807.15 | G163: 804.5 | H163: 760.7 | I163: 2337557 | J163: 1839012570 | K163: 2019-02-11 | L163: 67422 | M163: INE787D01026
A164: BALLARPUR | B164: EQ | C164: 4 | D164: 4.25 | E164: 3.55 | F164: 3.6 | G164: 3.55 | H164: 3.9 | I164: 1343577 | J164: 5131852.75 | K164: 2019-02-11 | L164: 1068 | M164: INE294A01037
A165: BALMLAWRIE | B165: EQ | C165: 178 | D165: 178 | E165: 174 | F165: 174.2 | G165: 174.1 | H165: 177.3 | I165: 87863 | J165: 15310450.95 | K165: 2019-02-11 | L165: 1395 | M165: INE164A01016
A166: BALPHARMA | B166: EQ | C166: 73.25 | D166: 73.25 | E166: 70.6 | F166: 71.2 | G166: 71.5 | H166: 72.95 | I166: 6142 | J166: 438581.75 | K166: 2019-02-11 | L166: 218 | M166: INE083D01012
A167: BALRAMCHIN | B167: EQ | C167: 107 | D167: 108.6 | E167: 106.05 | F167: 106.9 | G167: 107.2 | H167: 106.75 | I167: 1760608 | J167: 188846044.8 | K167: 2019-02-11 | L167: 27359 | M167: INE119A01028
A168: BANARBEADS | B168: EQ | C168: 43 | D168: 43.95 | E168: 42.05 | F168: 43 | G168: 43 | H168: 44.2 | I168: 1331 | J168: 57799.05 | K168: 2019-02-11 | L168: 139 | M168: INE655B01011
A169: BANARISUG | B169: EQ | C169: 1494.8 | D169: 1494.85 | E169: 1463 | F169: 1465 | G169: 1465 | H169: 1481.8 | I169: 229 | J169: 336394.8 | K169: 2019-02-11 | L169: 55 | M169: INE459A01010
A170: BANCOINDIA | B170: EQ | C170: 169.25 | D170: 171 | E170: 168 | F170: 169.65 | G170: 170.5 | H170: 169.25 | I170: 12914 | J170: 2189942.6 | K170: 2019-02-11 | L170: 309 | M170: INE213C01025
A171: BANDHANBNK | B171: EQ | C171: 466 | D171: 468 | E171: 451.5 | F171: 464.2 | G171: 467 | H171: 464.75 | I171: 502110 | J171: 230590282.6 | K171: 2019-02-11 | L171: 12711 | M171: INE545U01014
A172: BANG | B172: EQ | C172: 51.05 | D172: 52.65 | E172: 50.7 | F172: 51.9 | G172: 52 | H172: 51.95 | I172: 42224 | J172: 2182824.25 | K172: 2019-02-11 | L172: 327 | M172: INE863I01016
A173: BANKBARODA | B173: EQ | C173: 104.7 | D173: 104.85 | E173: 102.9 | F173: 103.9 | G173: 104.35 | H173: 104.9 | I173: 7582047 | J173: 787823746.5 | K173: 2019-02-11 | L173: 25869 | M173: INE028A01039
A174: BANKBEES | B174: EQ | C174: 2765 | D174: 2775 | E174: 2762.51 | F174: 2769.37 | G174: 2774.75 | H174: 2768.4 | I174: 7737 | J174: 21412645.57 | K174: 2019-02-11 | L174: 103 | M174: INF732E01078
A175: BANKINDIA | B175: EQ | C175: 86.3 | D175: 87 | E175: 84.05 | F175: 84.7 | G175: 84.75 | H175: 86.55 | I175: 5596055 | J175: 475775667.4 | K175: 2019-02-11 | L175: 24437 | M175: INE084A01016
A176: BANSWRAS | B176: EQ | C176: 63.15 | D176: 66.75 | E176: 59.35 | F176: 63.05 | G176: 63.95 | H176: 63.15 | I176: 6530 | J176: 420708.25 | K176: 2019-02-11 | L176: 142 | M176: INE629D01012
A177: BARTRONICS | B177: EQ | C177: 5.85 | D177: 5.85 | E177: 5.5 | F177: 5.65 | G177: 5.8 | H177: 5.85 | I177: 14500 | J177: 82407.25 | K177: 2019-02-11 | L177: 69 | M177: INE855F01034
A178: BASF | B178: EQ | C178: 1360 | D178: 1360 | E178: 1285.1 | F178: 1291.85 | G178: 1285.1 | H178: 1339.15 | I178: 4756 | J178: 6204718.85 | K178: 2019-02-11 | L178: 811 | M178: INE373A01013
A179: BASML | B179: EQ | C179: 168 | D179: 174 | E179: 157.1 | F179: 172.7 | G179: 170.05 | H179: 169.6 | I179: 140476 | J179: 23194250.65 | K179: 2019-02-11 | L179: 242 | M179: INE186H01014
A180: BATAINDIA | B180: EQ | C180: 1189 | D180: 1209 | E180: 1176.95 | F180: 1188.4 | G180: 1187.8 | H180: 1190.85 | I180: 1012637 | J180: 1208560378 | K180: 2019-02-11 | L180: 30775 | M180: INE176A01028
A181: BAYERCROP | B181: EQ | C181: 4266.45 | D181: 4296.6 | E181: 4202 | F181: 4237.5 | G181: 4204.05 | H181: 4299.6 | I181: 4867 | J181: 20620278.55 | K181: 2019-02-11 | L181: 2504 | M181: INE462A01022
A182: BBL | B182: EQ | C182: 1055 | D182: 1055.65 | E182: 1025 | F182: 1028.3 | G182: 1026.35 | H182: 1062.5 | I182: 6424 | J182: 6700369.9 | K182: 2019-02-11 | L182: 416 | M182: INE464A01028
A183: BBTC | B183: EQ | C183: 1198 | D183: 1198 | E183: 1177.25 | F183: 1183.45 | G183: 1181.2 | H183: 1202.35 | I183: 41966 | J183: 49741225.55 | K183: 2019-02-11 | L183: 2715 | M183: INE050A01025
A184: BCG | B184: EQ | C184: 2.9 | D184: 2.95 | E184: 2.75 | F184: 2.85 | G184: 2.85 | H184: 2.8 | I184: 459536 | J184: 1314478.55 | K184: 2019-02-11 | L184: 297 | M184: INE425B01027
A185: BDL | B185: EQ | C185: 251 | D185: 251 | E185: 241 | F185: 243.15 | G185: 242.05 | H185: 245.7 | I185: 20830 | J185: 5080415.3 | K185: 2019-02-11 | L185: 1174 | M185: INE171Z01018
A186: BEARDSELL | B186: EQ | C186: 18 | D186: 18 | E186: 16.75 | F186: 17.05 | G186: 17.95 | H186: 17.35 | I186: 886 | J186: 15418.65 | K186: 2019-02-11 | L186: 26 | M186: INE520H01022
A187: BEDMUTHA | B187: EQ | C187: 17.3 | D187: 19.6 | E187: 17.3 | F187: 18 | G187: 17.7 | H187: 18 | I187: 7438 | J187: 137741.7 | K187: 2019-02-11 | L187: 21 | M187: INE844K01012
A188: BEL | B188: EQ | C188: 79.85 | D188: 79.9 | E188: 75.9 | F188: 76.75 | G188: 76.9 | H188: 80 | I188: 8090201 | J188: 622475430.8 | K188: 2019-02-11 | L188: 46206 | M188: INE263A01024
A189: BEML | B189: EQ | C189: 778 | D189: 792.8 | E189: 761.25 | F189: 785.2 | G189: 785.1 | H189: 783.85 | I189: 1583102 | J189: 1232330935 | K189: 2019-02-11 | L189: 34777 | M189: INE258A01016
A190: BEPL | B190: EQ | C190: 68 | D190: 68.5 | E190: 65.55 | F190: 65.75 | G190: 65.7 | H190: 68.85 | I190: 352333 | J190: 23505058.1 | K190: 2019-02-11 | L190: 3784 | M190: INE922A01025
A191: BERGEPAINT | B191: EQ | C191: 312.4 | D191: 312.4 | E191: 298.6 | F191: 299.95 | G191: 300 | H191: 309.75 | I191: 1444102 | J191: 435210594.5 | K191: 2019-02-11 | L191: 14880 | M191: INE463A01038
A192: BFINVEST | B192: EQ | C192: 193 | D192: 194 | E192: 178.75 | F192: 182.9 | G192: 185.4 | H192: 193.9 | I192: 64201 | J192: 11850358.95 | K192: 2019-02-11 | L192: 2873 | M192: INE878K01010
A193: BFUTILITIE | B193: EQ | C193: 172.8 | D193: 173.85 | E193: 150.05 | F193: 154.1 | G193: 153.8 | H193: 173 | I193: 496386 | J193: 80618843.1 | K193: 2019-02-11 | L193: 11568 | M193: INE243D01012
A194: BGLOBAL | B194: BE | C194: 2.55 | D194: 2.6 | E194: 2.45 | F194: 2.45 | G194: 2.45 | H194: 2.55 | I194: 8164 | J194: 20228.55 | K194: 2019-02-11 | L194: 16 | M194: INE224M01013
A195: BGRENERGY | B195: EQ | C195: 47 | D195: 47.3 | E195: 45.7 | F195: 46.65 | G195: 46.9 | H195: 47.05 | I195: 32725 | J195: 1521690.7 | K195: 2019-02-11 | L195: 321 | M195: INE661I01014
A196: BHAGERIA | B196: EQ | C196: 227.9 | D196: 227.95 | E196: 216.05 | F196: 220.05 | G196: 221 | H196: 222.55 | I196: 6525 | J196: 1433661.05 | K196: 2019-02-11 | L196: 276 | M196: INE354C01027
A197: BHAGYANGR | B197: EQ | C197: 31.25 | D197: 34.45 | E197: 29.15 | F197: 30.65 | G197: 30.6 | H197: 30 | I197: 6467 | J197: 195738.7 | K197: 2019-02-11 | L197: 86 | M197: INE458B01036
A198: BHAGYAPROP | B198: EQ | C198: 33.75 | D198: 33.75 | E198: 27.65 | F198: 28.4 | G198: 28.5 | H198: 30.25 | I198: 9788 | J198: 293681.95 | K198: 2019-02-11 | L198: 55 | M198: INE363W01018
A199: BHANDARI | B199: EQ | C199: 1.8 | D199: 1.85 | E199: 1.8 | F199: 1.8 | G199: 1.8 | H199: 1.8 | I199: 40962 | J199: 74156 | K199: 2019-02-11 | L199: 41 | M199: INE474E01029
A200: BHARATFIN | B200: EQ | C200: 935 | D200: 945 | E200: 927.55 | F200: 941.15 | G200: 938.95 | H200: 938.55 | I200: 511568 | J200: 478900174.4 | K200: 2019-02-11 | L200: 14788 | M200: INE180K01011
... 1440 more rows

Sheet Sheet1 (hidden)

Sheet Sheet3 (hidden)
